Workbook

Sheet Read Me
A1: History: The previous salt and freshwater dissolved oxygen (DO) criteria expressed in mg/L DO concentration were replaced by DO criteria epressed as percent saturation. The revised DO criteria were adopted by the Environmental Regulation Commission and became effective for state purposes on 4/23/2013. The new DO criteria became effective for all clean water act purposes upon approval by the USEPA which was received on 09/09/2013.
A2: The revised DO criteria were developed by the FDEP and documented in "Technical Support Document: Derivation of Dissolved Oxygen Criteria to Protect Aquatic Life in Florida’s Fresh and Marine Waters". The Technical Support Document (TSD) can be found at the website https://dep.state.fl.us/water/wqssp/docs/tsd-do-criteria-aquatic-life.pdf (use button below open a copy of the TSD).
A3: As stated in Chapter 62-302.533, F.A.C., in Class I, Class III and Class III-Limited predominantly freshwaters no more than 10 percent of the daily average percent dissolved oxygen (DO) saturation values shall be below 67 percent in the Panhandle West bioregion, 38 percent in the Peninsula and Everglades bioregions, or 34 percent in the Northeast and Big Bend bioregions. A map of the bioregions is contained in SCI 1000: Stream Condition Index Methods (DEP-SOP-003/11 SCI 1000) dated March 1, 2014 (http://www.flrules.org/Gateway/reference.asp?No=Ref-06039). For Class II, Class III, and Class III-Limited predominantly marine waters minimum DO saturation levels shall be: no more than 10 percent of the daily average percent DO saturation shall be below 42 percent saturation; and the seven-day average DO percent saturation shall not be below 51 percent more than once in any twelve week period; and the 30-day average DO percent saturation shall not be below 56 percent more than once per year.
A4: For the full DO criteria and details concerning its implementation, please refer to Chapter 62-302.533, F.A.C. and Chapter 62-303, F.A.C., respectively.
A5: The daily average criteria shall be assessed preferentially using daily average values calculated from full days of diel monitoring data. For IWR assessments of ambient freshwaters, if diel monitoring data are not available, instantaneous samples may be used to assess the DO criterion by comparing the instantaneous value with a time-of-day-specific translation of the daily average criterion as specified in Section 62-303.420(9), F.A.C. The actual DO measurement collected at a given time is assessed against the calculated time-of-day-specific translation for that time, and if the instantaneous DO is greater than or equal to the calculated value, the daily average DO criterion is achieved.
A6: To aid in the application of the revised DO criteria, a series of calculators have been developed to perform the necessary calculations. Specifically, this spreadsheet contains calculators for: 1) Calculation of DO saturation concentration and percent saturation, 2) Calculation of time-of-day interpretation for the freshwater criteria, 3) Assess measured DO saturation based on time-of-day interpretation for the freshwater criteria, and 4) Calculate DO saturation and time-of-day interpretation for the freshwater criteria. The calculators can be accessed by either clicking on the appropriate button below or the appropriate tab at the bottom of the screen.
A7: 1) Calculation of DO saturation concentration
A8: 2) Calculation of time-of-day interpretation for the freshwater criteria
A9: 3) Assess measured DO saturation based on time-of-day interpretation for the freshwater criteria
A10: 4) Calculate DO saturation and time-of-day interpretation for the freshwater criteria

Sheet DO Saturation
A1: Dissolved Oxygen Percent Saturation Calculator
A2: To use: 1) Press "Clear Entries" button on right to remove all old data entries. 2) Enter measured DO concentration in mg/L and Water Temperature in °C (DO concentration and water temperature are always required). 3) Then enter Salinity (ppt)/Specific Conductance measurement in µmhos/cm if available (salinity or conductivity is required for estuarine/marine waters, and is optional for freshwaters) (Note: Calculation preferentially uses salinity. If salinity data is not available then leave salinity blank and enter conductivity and it will be used. If neither salinity or conductivity data are entered then a salinity of zero is assumed.) 4) Entry of Barometric Pressure is optional and should generally be left blank (if blank, 1 atmosphere (i.e., 760 mm Hg) is assumed).
A3: Unshaded (white) fields (Columns A - F) are for data entry. Additional notes are embedded as comments in the heading for each column, please review!
A4: Shaded fields (Columns G and H) are results fields and are protected from change. Do Not Attempt to Change These Fields!
A5: Site ID | B5: Measured DO Concentration, mg/L | C5: Measured Water Temperature (°C) | D5: Measured Salinity (ppt) (Salinity = 1.80655*Chlorinity = 1.0045 Chloride) | E5: Measured Specific Conductance (μS/cm) | F5: Barometric Pressure (mm Hg) (1 atm = 760 mm Hg) | G5: DO Concentration (mg/L) at 100% Saturation | H5: DO Percent Saturation for Given DO Concentration | I5: Barometric Pressure | J5: Final Salinity
A6: 1 | B6: 5 | C6: 10 | G6: =IF(OR(ISBLANK($B6),ISBLANK($C6)),"",(EXP((-139.34411+(157570.1/($C6+273.15)-(66423080/($C6+273.15)^2)+(12438000000/($C6+273.15)^3)-(862194900000/($C6+273.15)^4))-($J6*(0.017674-(10.754/($C6+273.15))+(2140.7/($C6+273.15)^2))))))*($I6/760)*((1-((EXP(11.8581-(3840.7/($C6+273.15))-(216961/($C6+273.15)^2)))/($I6/760)))*(1-(0.000975-(0.00001426*$C6)+(0.00000006436*$C6^2))*($I6/760)))/((1-(EXP(11.8581-(3840.7/($C6+273.15))-(216961/($C6+273.15)^2))))*(1-(0.000975-(0.00001426*$C6)+(0.00000006436*$C6^2))))) -> 11.28794737 | H6: =IF(OR(ISBLANK(B6),ISBLANK(C6)),"",B6/G6*100) -> 44.29503288 | I6: =IF(ISBLANK(F6),760,F6) -> 760 | J6: =IF(AND(ISBLANK($D6),ISBLANK($E6)),0,IF(ISBLANK($D6),IF($E6=0,0,(0.008-(0.1692*((($E6*(1+0.0191*($C6-25))/10000)/4.2914)/((1+(($I6/760*1.01325)*(0.000207-(0.0000000637*($I6/760*1.01325))+(0.000000000003989*($I6/760*1.01325)^2))/(1+(0.03426*$C6)+(0.0004464*$C6^2)+(0.4215-0.003107*$C6)*((($E6*(1+0.0191*($C6-25))/10000)/4.2914)))))*(0.6766097+0.0200564*$C6+0.0001104259*$C6^2-0.00000069698*$C6^3+0.0000000010031*$C6^4)))^0.5)+(25.3851*((($E6*(1+0.0191*($C6-25))/10000)/4.2914)/((1+(($I6/760*1.01325)*(0.000207-(0.0000000637*($I6/760*1.01325))+(0.000000000003989*($I6/760*1.01325)^2))/(1+(0.03426*$C6)+(0.0004464*$C6^2)+(0.4215-0.003107*$C6)*((($E6*(1+0.0191*($C6-25))/10000)/4.2914)))))*(0.6766097+0.0200564*$C6+0.0001104259*$C6^2-0.00000069698*$C6^3+0.0000000010031*$C6^4))))+(14.0941*((($E6*(1+0.0191*($C6-25))/10000)/4.2914)/((1+(($I6/760*1.01325)*(0.000207-(0.0000000637*($I6/760*1.01325))+(0.000000000003989*($I6/760*1.01325)^2))/(1+(0.03426*$C6)+(0.0004464*$C6^2)+(0.4215-0.003107*$C6)*((($E6*(1+0.0191*($C6-25))/10000)/4.2914)))))*(0.6766097+0.0200564*$C6+0.0001104259*$C6^2-0.00000069698*$C6^3+0.0000000010031*$C6^4)))^1.5)-(7.0261*((($E6*(1+0.0191*($C6-25))/10000)/4.2914)/((1+(($I6/760*1.01325)*(0.000207-(0.0000000637*($I6/760*1.01325))+(0.000000000003989*($I6/760*1.01325)^2))/(1+(0.03426*$C6)+(0.0004464*$C6^2)+(0.4215-0.003107*$C6)*((($E6*(1+0.0191*($C6-25))/10000)/4.2914)))))*(0.6766097+0.0200564*$C6+0.0001104259*$C6^2-0.00000069698*$C6^3+0.0000000010031*$C6^4)))^2)+(2.7081*((($E6*(1+0.0191*($C6-25))/10000)/4.2914)/((1+(($I6/760*1.01325)*(0.000207-(0.0000000637*($I6/760*1.01325))+(0.000000000003989*($I6/760*1.01325)^2))/(1+(0.03426*$C6)+(0.0004464*$C6^2)+(0.4215-0.003107*$C6)*((($E6*(1+0.0191*($C6-25))/10000)/4.2914)))))*(0.6766097+0.0200564*$C6+0.0001104259*$C6^2-0.00000069698*$C6^3+0.0000000010031*$C6^4)))^2.5)+(($C6-15)/(1+0.0162*($C6-15))*(0.0005-0.0056*((($E6*(1+0.0191*($C6-25))/10000)/4.2914)/((1+(($I6/760*1.01325)*(0.000207-(0.0000000637*($I6/760*1.01325))+(0.000000000003989*($I6/760*1.01325)^2))/(1+(0.03426*$C6)+(0.0004464*$C6^2)+(0.4215-0.003107*$C6)*((($E6*(1+0.0191*($C6-25))/10000)/4.2914)))))*(0.6766097+0.0200564*$C6+0.0001104259*$C6^2-0.00000069698*$C6^3+0.0000000010031*$C6^4)))^0.5-0.0066*((($E6*(1+0.0191*($C6-25))/10000)/4.2914)/((1+(($I6/760*1.01325)*(0.000207-(0.0000000637*($I6/760*1.01325))+(0.000000000003989*($I6/760*1.01325)^2))/(1+(0.03426*$C6)+(0.0004464*$C6^2)+(0.4215-0.003107*$C6)*((($E6*(1+0.0191*($C6-25))/10000)/4.2914)))))*(0.6766097+0.0200564*$C6+0.0001104259*$C6^2-0.00000069698*$C6^3+0.0000000010031*$C6^4)))-0.0375*((($E6*(1+0.0191*($C6-25))/10000)/4.2914)/((1+(($I6/760*1.01325)*(0.000207-(0.0000000637*($I6/760*1.01325))+(0.000000000003989*($I6/760*1.01325)^2))/(1+(0.03426*$C6)+(0.0004464*$C6^2)+(0.4215-0.003107*$C6)*((($E6*(1+0.0191*($C6-25))/10000)/4.2914)))))*(0.6766097+0.0200564*$C6+0.0001104259*$C6^2-0.00000069698*$C6^3+0.0000000010031*$C6^4)))^1.5+0.0636*((($E6*(1+0.0191*($C6-25))/10000)/4.2914)/((1+(($I6/760*1.01325)*(0.000207-(0.0000000637*($I6/760*1.01325))+(0.000000000003989*($I6/760*1.01325)^2))/(1+(0.03426*$C6)+(0.0004464*$C6^2)+(0.4215-0.003107*$C6)*((($E6*(1+0.0191*($C6-25))/10000)/4.2914)))))*(0.6766097+0.0200564*$C6+0.0001104259*$C6^2-0.00000069698*$C6^3+0.0000000010031*$C6^4)))^2-0.0144*((($E6*(1+0.0191*($C6-25))/10000)/4.2914)/((1+(($I6/760*1.01325)*(0.000207-(0.0000000637*($I6/760*1.01325))+(0.000000000003989*($I6/760*1.01325)^2))/(1+(0.03426*$C6)+(0.0004464*$C6^2)+(0.4215-0.003107*$C6)*((($E6*(1+0.0191*($C6-25))/10000)/4.2914)))))*(0.6766097+0.0200564*$C6+0.0001104259*$C6^2-0.00000069698*$C6^3+0.0000000010031*$C6^4)))^2.5)))-(0.008/(1+(1.5*400*((($E6*(1+0.0191*($C6-25))/10000)/4.2914)/((1+(($I6/760*1.01325)*(0.000207-(0.0000000637*($I6/760*1.01325))+(0.000000000003989*($I6/760*1.01325)^2))/(1+(0.03426*$C6)+(0.0004464*$C6^2)+(0.4215-0.003107*$C6)*((($E6*(1+0.0191*($C6-25))/10000)/4.2914)))))*(0.6766097+0.0200564*$C6+0.0001104259*$C6^2-0.00000069698*$C6^3+0.0000000010031*$C6^4))))+(400*((($E6*(1+0.0191*($C6-25))/10000)/4.2914)/((1+(($I6/760*1.01325)*(0.000207-(0.0000000637*($I6/760*1.01325))+(0.000000000003989*($I6/760*1.01325)^2))/(1+(0.03426*$C6)+(0.0004464*$C6^2)+(0.4215-0.003107*$C6)*((($E6*(1+0.0191*($C6-25))/10000)/4.2914)))))*(0.6766097+0.0200564*$C6+0.0001104259*$C6^2-0.00000069698*$C6^3+0.0000000010031*$C6^4))))^2))-((0.0005*($C6-15)/(1+0.0162*($C6-15)))/(1+(100*((($E6*(1+0.0191*($C6-25))/10000)/4.2914)/((1+(($I6/760*1.01325)*(0.000207-(0.0000000637*($I6/760*1.01325))+(0.000000000003989*($I6/760*1.01325)^2))/(1+(0.03426*$C6)+(0.0004464*$C6^2)+(0.4215-0.003107*$C6)*((($E6*(1+0.0191*($C6-25))/10000)/4.2914)))))*(0.6766097+0.0200564*$C6+0.0001104259*$C6^2-0.00000069698*$C6^3+0.0000000010031*$C6^4))))^0.5+(100*((($E6*(1+0.0191*($C6-25))/10000)/4.2914)/((1+(($I6/760*1.01325)*(0.000207-(0.0000000637*($I6/760*1.01325))+(0.000000000003989*($I6/760*1.01325)^2))/(1+(0.03426*$C6)+(0.0004464*$C6^2)+(0.4215-0.003107*$C6)*((($E6*(1+0.0191*($C6-25))/10000)/4.2914)))))*(0.6766097+0.0200564*$C6+0.0001104259*$C6^2-0.00000069698*$C6^3+0.0000000010031*$C6^4))))^1.5))),$D6)) -> 0
A7: =A6+1 -> 2 | B7: 5 | C7: =C6+0.1 -> 10.1 | G7: 11.26138408 | H7: 44.39951576 | I7: 760 | J7: 0
A8: =A7+1 -> 3 | B8: 5 | C8: =C7+0.1 -> 10.2 | G8: 11.23493106 | H8: =IF(OR(ISBLANK(B8),ISBLANK(C8)),"",B8/G8*100) -> 44.5040559 | I8: =IF(ISBLANK(F8),760,F8) -> 760 | J8: 0
A9: 4 | B9: 5 | C9: 10.3 | G9: 11.20858772 | H9: 44.608653 | I9: 760 | J9: 0
A10: 5 | B10: 5 | C10: 10.4 | G10: 11.18235345 | H10: 44.71330676 | I10: 760 | J10: 0
A11: 6 | B11: 5 | C11: 10.5 | G11: 11.15622767 | H11: 44.81801689 | I11: 760 | J11: 0
A12: 7 | B12: 5 | C12: 10.6 | G12: 11.13020978 | H12: 44.92278311 | I12: 760 | J12: 0
A13: 8 | B13: 5 | C13: 10.7 | G13: 11.10429921 | H13: 45.02760513 | I13: 760 | J13: 0
A14: 9 | B14: 5 | C14: 10.8 | G14: 11.07849536 | H14: 45.13248268 | I14: 760 | J14: 0
A15: 10 | B15: 5 | C15: 10.9 | G15: 11.05279766 | H15: 45.23741547 | I15: 760 | J15: 0
A16: 11 | B16: 5 | C16: 11 | G16: 11.02720554 | H16: 45.34240322 | I16: 760 | J16: 0
A17: 12 | B17: 5 | C17: 11.1 | G17: 11.00171841 | H17: 45.44744568 | I17: 760 | J17: 0
A18: 13 | B18: 5 | C18: 11.2 | G18: 10.97633572 | H18: 45.55254255 | I18: 760 | J18: 0
A19: 14 | B19: 5 | C19: 11.3 | G19: 10.95105689 | H19: 45.65769359 | I19: 760 | J19: 0
A20: 15 | B20: 5 | C20: 11.4 | G20: 10.92588136 | H20: 45.76289852 | I20: 760 | J20: 0
A21: 16 | B21: 5 | C21: 11.5 | G21: 10.90080857 | H21: 45.86815709 | I21: 760 | J21: 0
A22: 17 | B22: 5 | C22: 11.6 | G22: 10.87583797 | H22: 45.97346904 | I22: 760 | J22: 0
A23: 18 | B23: 5 | C23: 11.7 | G23: 10.85096899 | H23: 46.0788341 | I23: 760 | J23: 0
A24: 19 | B24: 5 | C24: 11.8 | G24: 10.82620109 | H24: 46.18425204 | I24: 760 | J24: 0
A25: 20 | B25: 5 | C25: 11.9 | G25: 10.80153373 | H25: 46.2897226 | I25: 760 | J25: 0
A26: 21 | B26: 5 | C26: 12 | G26: 10.77696635 | H26: 46.39524554 | I26: 760 | J26: 0
A27: 22 | B27: 5 | C27: 12.1 | G27: 10.75249842 | H27: 46.5008206 | I27: 760 | J27: 0
A28: 23 | B28: 5 | C28: 12.2 | G28: 10.72812939 | H28: 46.60644756 | I28: 760 | J28: 0
A29: 24 | B29: 5 | C29: 12.3 | G29: 10.70385874 | H29: 46.71212618 | I29: 760 | J29: 0
A30: 25 | B30: 5 | C30: 12.4 | G30: 10.67968592 | H30: 46.81785622 | I30: 760 | J30: 0
A31: 26 | B31: 5 | C31: 12.5 | G31: 10.65561042 | H31: 46.92363746 | I31: 760 | J31: 0
A32: 27 | B32: 5 | C32: 12.6 | G32: 10.63163169 | H32: 47.02946965 | I32: 760 | J32: 0
A33: 28 | B33: 5 | C33: 12.7 | G33: 10.60774923 | H33: 47.13535259 | I33: 760 | J33: 0
A34: 29 | B34: 5 | C34: 12.8 | G34: 10.5839625 | H34: 47.24128605 | I34: 760 | J34: 0
A35: 30 | B35: 5 | C35: 12.9 | G35: 10.56027099 | H35: 47.34726981 | I35: 760 | J35: 0
A36: 31 | B36: 5 | C36: 13 | G36: 10.53667419 | H36: 47.45330365 | I36: 760 | J36: 0
A37: 32 | B37: 5 | C37: 13.1 | G37: 10.51317159 | H37: 47.55938737 | I37: 760 | J37: 0
A38: 33 | B38: 5 | C38: 13.2 | G38: 10.48976267 | H38: 47.66552075 | I38: 760 | J38: 0
A39: 34 | B39: 5 | C39: 13.3 | G39: 10.46644692 | H39: 47.77170359 | I39: 760 | J39: 0
A40: 35 | B40: 5 | C40: 13.4 | G40: 10.44322385 | H40: 47.87793569 | I40: 760 | J40: 0
A41: 36 | B41: 5 | C41: 13.5 | G41: 10.42009296 | H41: 47.98421684 | I41: 760 | J41: 0
A42: 37 | B42: 5 | C42: 13.6 | G42: 10.39705374 | H42: 48.09054686 | I42: 760 | J42: 0
A43: 38 | B43: 5 | C43: 13.7 | G43: 10.3741057 | H43: 48.19692554 | I43: 760 | J43: 0
A44: 39 | B44: 5 | C44: 13.8 | G44: 10.35124835 | H44: 48.3033527 | I44: 760 | J44: 0
A45: 40 | B45: 5 | C45: 13.9 | G45: 10.3284812 | H45: 48.40982815 | I45: 760 | J45: 0
A46: 41 | B46: 5 | C46: 14 | G46: 10.30580376 | H46: 48.51635171 | I46: 760 | J46: 0
A47: 42 | B47: 5 | C47: 14.1 | G47: 10.28321555 | H47: 48.6229232 | I47: 760 | J47: 0
A48: 43 | B48: 5 | C48: 14.2 | G48: 10.26071609 | H48: 48.72954244 | I48: 760 | J48: 0
A49: 44 | B49: 5 | C49: 14.3 | G49: 10.23830489 | H49: 48.83620925 | I49: 760 | J49: 0
A50: 45 | B50: 5 | C50: 14.4 | G50: 10.21598149 | H50: 48.94292347 | I50: 760 | J50: 0
A51: 46 | B51: 5 | C51: 14.5 | G51: 10.1937454 | H51: 49.04968493 | I51: 760 | J51: 0
A52: 47 | B52: 5 | C52: 14.6 | G52: 10.17159616 | H52: 49.15649346 | I52: 760 | J52: 0
A53: 48 | B53: 5 | C53: 14.7 | G53: 10.1495333 | H53: 49.26334891 | I53: 760 | J53: 0
A54: 49 | B54: 5 | C54: 14.8 | G54: 10.12755635 | H54: 49.37025111 | I54: 760 | J54: 0
A55: 50 | B55: 5 | C55: 14.9 | G55: 10.10566485 | H55: 49.47719991 | I55: 760 | J55: 0
A56: 51 | B56: 5 | C56: 15 | G56: 10.08385834 | H56: 49.58419517 | I56: 760 | J56: 0
A57: 52 | B57: 5 | C57: 15.1 | G57: 10.06213636 | H57: 49.69123672 | I57: 760 | J57: 0
A58: 53 | B58: 5 | C58: 15.2 | G58: 10.04049846 | H58: 49.79832444 | I58: 760 | J58: 0
A59: 54 | B59: 5 | C59: 15.3 | G59: 10.01894419 | H59: 49.90545817 | I59: 760 | J59: 0
A60: 55 | B60: 5 | C60: 15.4 | G60: 9.997473083 | H60: 50.01263778 | I60: 760 | J60: 0
A61: 56 | B61: 5 | C61: 15.5 | G61: 9.976084704 | H61: 50.11986313 | I61: 760 | J61: 0
A62: 57 | B62: 5 | C62: 15.6 | G62: 9.954778606 | H62: 50.2271341 | I62: 760 | J62: 0
A63: 58 | B63: 5 | C63: 15.7 | G63: 9.933554344 | H63: 50.33445056 | I63: 760 | J63: 0
A64: 59 | B64: 5 | C64: 15.8 | G64: 9.912411479 | H64: 50.44181237 | I64: 760 | J64: 0
A65: 60 | B65: 5 | C65: 15.9 | G65: 9.891349573 | H65: 50.54921943 | I65: 760 | J65: 0
A66: 61 | B66: 5 | C66: 16 | G66: 9.87036819 | H66: 50.65667161 | I66: 760 | J66: 0
A67: 62 | B67: 5 | C67: 16.1 | G67: 9.849466896 | H67: 50.76416879 | I67: 760 | J67: 0
A68: 63 | B68: 5 | C68: 16.2 | G68: 9.828645262 | H68: 50.87171087 | I68: 760 | J68: 0
A69: 64 | B69: 5 | C69: 16.3 | G69: 9.807902858 | H69: 50.97929774 | I69: 760 | J69: 0
A70: 65 | B70: 5 | C70: 16.4 | G70: =IF(OR(ISBLANK($B70),ISBLANK($C70)),"",(EXP((-139.34411+(157570.1/($C70+273.15)-(66423080/($C70+273.15)^2)+(12438000000/($C70+273.15)^3)-(862194900000/($C70+273.15)^4))-($J70*(0.017674-(10.754/($C70+273.15))+(2140.7/($C70+273.15)^2))))))*($I70/760)*((1-((EXP(11.8581-(3840.7/($C70+273.15))-(216961/($C70+273.15)^2)))/($I70/760)))*(1-(0.000975-(0.00001426*$C70)+(0.00000006436*$C70^2))*($I70/760)))/((1-(EXP(11.8581-(3840.7/($C70+273.15))-(216961/($C70+273.15)^2))))*(1-(0.000975-(0.00001426*$C70)+(0.00000006436*$C70^2))))) -> 9.78723926 | H70: 51.08692929 | I70: 760 | J70: =IF(AND(ISBLANK($D70),ISBLANK($E70)),0,IF(ISBLANK($D70),IF($E70=0,0,(0.008-(0.1692*((($E70*(1+0.0191*($C70-25))/10000)/4.2914)/((1+(($I70/760*1.01325)*(0.000207-(0.0000000637*($I70/760*1.01325))+(0.000000000003989*($I70/760*1.01325)^2))/(1+(0.03426*$C70)+(0.0004464*$C70^2)+(0.4215-0.003107*$C70)*((($E70*(1+0.0191*($C70-25))/10000)/4.2914)))))*(0.6766097+0.0200564*$C70+0.0001104259*$C70^2-0.00000069698*$C70^3+0.0000000010031*$C70^4)))^0.5)+(25.3851*((($E70*(1+0.0191*($C70-25))/10000)/4.2914)/((1+(($I70/760*1.01325)*(0.000207-(0.0000000637*($I70/760*1.01325))+(0.000000000003989*($I70/760*1.01325)^2))/(1+(0.03426*$C70)+(0.0004464*$C70^2)+(0.4215-0.003107*$C70)*((($E70*(1+0.0191*($C70-25))/10000)/4.2914)))))*(0.6766097+0.0200564*$C70+0.0001104259*$C70^2-0.00000069698*$C70^3+0.0000000010031*$C70^4))))+(14.0941*((($E70*(1+0.0191*($C70-25))/10000)/4.2914)/((1+(($I70/760*1.01325)*(0.000207-(0.0000000637*($I70/760*1.01325))+(0.000000000003989*($I70/760*1.01325)^2))/(1+(0.03426*$C70)+(0.0004464*$C70^2)+(0.4215-0.003107*$C70)*((($E70*(1+0.0191*($C70-25))/10000)/4.2914)))))*(0.6766097+0.0200564*$C70+0.0001104259*$C70^2-0.00000069698*$C70^3+0.0000000010031*$C70^4)))^1.5)-(7.0261*((($E70*(1+0.0191*($C70-25))/10000)/4.2914)/((1+(($I70/760*1.01325)*(0.000207-(0.0000000637*($I70/760*1.01325))+(0.000000000003989*($I70/760*1.01325)^2))/(1+(0.03426*$C70)+(0.0004464*$C70^2)+(0.4215-0.003107*$C70)*((($E70*(1+0.0191*($C70-25))/10000)/4.2914)))))*(0.6766097+0.0200564*$C70+0.0001104259*$C70^2-0.00000069698*$C70^3+0.0000000010031*$C70^4)))^2)+(2.7081*((($E70*(1+0.0191*($C70-25))/10000)/4.2914)/((1+(($I70/760*1.01325)*(0.000207-(0.0000000637*($I70/760*1.01325))+(0.000000000003989*($I70/760*1.01325)^2))/(1+(0.03426*$C70)+(0.0004464*$C70^2)+(0.4215-0.003107*$C70)*((($E70*(1+0.0191*($C70-25))/10000)/4.2914)))))*(0.6766097+0.0200564*$C70+0.0001104259*$C70^2-0.00000069698*$C70^3+0.0000000010031*$C70^4)))^2.5)+(($C70-15)/(1+0.0162*($C70-15))*(0.0005-0.0056*((($E70*(1+0.0191*($C70-25))/10000)/4.2914)/((1+(($I70/760*1.01325)*(0.000207-(0.0000000637*($I70/760*1.01325))+(0.000000000003989*($I70/760*1.01325)^2))/(1+(0.03426*$C70)+(0.0004464*$C70^2)+(0.4215-0.003107*$C70)*((($E70*(1+0.0191*($C70-25))/10000)/4.2914)))))*(0.6766097+0.0200564*$C70+0.0001104259*$C70^2-0.00000069698*$C70^3+0.0000000010031*$C70^4)))^0.5-0.0066*((($E70*(1+0.0191*($C70-25))/10000)/4.2914)/((1+(($I70/760*1.01325)*(0.000207-(0.0000000637*($I70/760*1.01325))+(0.000000000003989*($I70/760*1.01325)^2))/(1+(0.03426*$C70)+(0.0004464*$C70^2)+(0.4215-0.003107*$C70)*((($E70*(1+0.0191*($C70-25))/10000)/4.2914)))))*(0.6766097+0.0200564*$C70+0.0001104259*$C70^2-0.00000069698*$C70^3+0.0000000010031*$C70^4)))-0.0375*((($E70*(1+0.0191*($C70-25))/10000)/4.2914)/((1+(($I70/760*1.01325)*(0.000207-(0.0000000637*($I70/760*1.01325))+(0.000000000003989*($I70/760*1.01325)^2))/(1+(0.03426*$C70)+(0.0004464*$C70^2)+(0.4215-0.003107*$C70)*((($E70*(1+0.0191*($C70-25))/10000)/4.2914)))))*(0.6766097+0.0200564*$C70+0.0001104259*$C70^2-0.00000069698*$C70^3+0.0000000010031*$C70^4)))^1.5+0.0636*((($E70*(1+0.0191*($C70-25))/10000)/4.2914)/((1+(($I70/760*1.01325)*(0.000207-(0.0000000637*($I70/760*1.01325))+(0.000000000003989*($I70/760*1.01325)^2))/(1+(0.03426*$C70)+(0.0004464*$C70^2)+(0.4215-0.003107*$C70)*((($E70*(1+0.0191*($C70-25))/10000)/4.2914)))))*(0.6766097+0.0200564*$C70+0.0001104259*$C70^2-0.00000069698*$C70^3+0.0000000010031*$C70^4)))^2-0.0144*((($E70*(1+0.0191*($C70-25))/10000)/4.2914)/((1+(($I70/760*1.01325)*(0.000207-(0.0000000637*($I70/760*1.01325))+(0.000000000003989*($I70/760*1.01325)^2))/(1+(0.03426*$C70)+(0.0004464*$C70^2)+(0.4215-0.003107*$C70)*((($E70*(1+0.0191*($C70-25))/10000)/4.2914)))))*(0.6766097+0.0200564*$C70+0.0001104259*$C70^2-0.00000069698*$C70^3+0.0000000010031*$C70^4)))^2.5)))-(0.008/(1+(1.5*400*((($E70*(1+0.0191*($C70-25))/10000)/4.2914)/((1+(($I70/760*1.01325)*(0.000207-(0.0000000637*($I70/760*1.01325))+(0.000000000003989*($I70/760*1.01325)^2))/(1+(0.03426*$C70)+(0.0004464*$C70^2)+(0.4215-0.003107*$C70)*((($E70*(1+0.0191*($C70-25))/10000)/4.2914)))))*(0.6766097+0.0200564*$C70+0.0001104259*$C70^2-0.00000069698*$C70^3+0.0000000010031*$C70^4))))+(400*((($E70*(1+0.0191*($C70-25))/10000)/4.2914)/((1+(($I70/760*1.01325)*(0.000207-(0.0000000637*($I70/760*1.01325))+(0.000000000003989*($I70/760*1.01325)^2))/(1+(0.03426*$C70)+(0.0004464*$C70^2)+(0.4215-0.003107*$C70)*((($E70*(1+0.0191*($C70-25))/10000)/4.2914)))))*(0.6766097+0.0200564*$C70+0.0001104259*$C70^2-0.00000069698*$C70^3+0.0000000010031*$C70^4))))^2))-((0.0005*($C70-15)/(1+0.0162*($C70-15)))/(1+(100*((($E70*(1+0.0191*($C70-25))/10000)/4.2914)/((1+(($I70/760*1.01325)*(0.000207-(0.0000000637*($I70/760*1.01325))+(0.000000000003989*($I70/760*1.01325)^2))/(1+(0.03426*$C70)+(0.0004464*$C70^2)+(0.4215-0.003107*$C70)*((($E70*(1+0.0191*($C70-25))/10000)/4.2914)))))*(0.6766097+0.0200564*$C70+0.0001104259*$C70^2-0.00000069698*$C70^3+0.0000000010031*$C70^4))))^0.5+(100*((($E70*(1+0.0191*($C70-25))/10000)/4.2914)/((1+(($I70/760*1.01325)*(0.000207-(0.0000000637*($I70/760*1.01325))+(0.000000000003989*($I70/760*1.01325)^2))/(1+(0.03426*$C70)+(0.0004464*$C70^2)+(0.4215-0.003107*$C70)*((($E70*(1+0.0191*($C70-25))/10000)/4.2914)))))*(0.6766097+0.0200564*$C70+0.0001104259*$C70^2-0.00000069698*$C70^3+0.0000000010031*$C70^4))))^1.5))),$D70)) -> 0
A71: 66 | B71: 5 | C71: 16.5 | G71: 9.766654042 | H71: 51.19460542 | I71: 760 | J71: 0
A72: =A71+1 -> 67 | B72: 5 | C72: =C71+0.1 -> 16.6 | G72: 9.746146784 | H72: =IF(OR(ISBLANK(B72),ISBLANK(C72)),"",B72/G72*100) -> 51.30232604 | I72: =IF(ISBLANK(F72),760,F72) -> 760 | J72: 0
A73: 68 | B73: 5 | C73: 16.7 | G73: 9.725717067 | H73: 51.41009105 | I73: 760 | J73: 0
A74: 69 | B74: 5 | C74: 16.8 | G74: 9.705364475 | H74: 51.51790036 | I74: 760 | J74: 0
A75: 70 | B75: 5 | C75: 16.9 | G75: 9.685088592 | H75: 51.62575389 | I75: 760 | J75: 0
A76: 71 | B76: 5 | C76: 17 | G76: 9.664889006 | H76: 51.73365154 | I76: 760 | J76: 0
A77: 72 | B77: 5 | C77: 17.1 | G77: 9.644765309 | H77: 51.84159323 | I77: 760 | J77: 0
A78: 73 | B78: 5 | C78: 17.2 | G78: 9.624717092 | H78: 51.9495789 | I78: 760 | J78: 0
A79: 74 | B79: 5 | C79: 17.3 | G79: 9.604743951 | H79: 52.05760847 | I79: 760 | J79: 0
A80: 75 | B80: 5 | C80: 17.4 | G80: 9.584845481 | H80: 52.16568186 | I80: 760 | J80: 0
A81: 76 | B81: 5 | C81: 17.5 | G81: 9.565021282 | H81: 52.27379901 | I81: 760 | J81: 0
A82: 77 | B82: 5 | C82: 17.6 | G82: 9.545270956 | H82: 52.38195985 | I82: 760 | J82: 0
A83: 78 | B83: 5 | C83: 17.7 | G83: 9.525594107 | H83: 52.49016433 | I83: 760 | J83: 0
A84: 79 | B84: 5 | C84: 17.8 | G84: 9.505990339 | H84: 52.59841239 | I84: 760 | J84: 0
A85: 80 | B85: 5 | C85: 17.9 | G85: 9.486459261 | H85: 52.70670397 | I85: 760 | J85: 0
A86: 81 | B86: 5 | C86: 18 | G86: 9.467000483 | H86: 52.81503903 | I86: 760 | J86: 0
A87: 82 | B87: 5 | C87: 18.1 | G87: 9.447613618 | H87: 52.92341751 | I87: 760 | J87: 0
A88: 83 | B88: 5 | C88: 18.2 | G88: 9.428298279 | H88: 53.03183939 | I88: 760 | J88: 0
A89: 84 | B89: 5 | C89: 18.3 | G89: 9.409054083 | H89: 53.1403046 | I89: 760 | J89: 0
A90: 85 | B90: 5 | C90: 18.4 | G90: 9.389880648 | H90: 53.24881313 | I90: 760 | J90: 0
A91: 86 | B91: 5 | C91: 18.5 | G91: 9.370777596 | H91: 53.35736494 | I91: 760 | J91: 0
A92: 87 | B92: 5 | C92: 18.6 | G92: 9.35174455 | H92: 53.46596 | I92: 760 | J92: 0
A93: 88 | B93: 5 | C93: 18.7 | G93: 9.332781133 | H93: 53.57459828 | I93: 760 | J93: 0
A94: 89 | B94: 5 | C94: 18.8 | G94: 9.313886973 | H94: 53.68327976 | I94: 760 | J94: 0
A95: 90 | B95: 5 | C95: 18.9 | G95: 9.295061699 | H95: 53.79200442 | I95: 760 | J95: 0
A96: 91 | B96: 5 | C96: 19 | G96: 9.276304941 | H96: 53.90077225 | I96: 760 | J96: 0
A97: 92 | B97: 5 | C97: 19.1 | G97: 9.257616334 | H97: 54.00958324 | I97: 760 | J97: 0
A98: 93 | B98: 5 | C98: 19.2 | G98: 9.238995511 | H98: 54.11843738 | I98: 760 | J98: 0
A99: 94 | B99: 5 | C99: 19.3 | G99: 9.22044211 | H99: 54.22733466 | I99: 760 | J99: 0
A100: 95 | B100: 5 | C100: 19.4 | G100: 9.20195577 | H100: 54.33627508 | I100: 760 | J100: 0
A101: 96 | B101: 5 | C101: 19.5 | G101: 9.183536132 | H101: 54.44525864 | I101: 760 | J101: 0
A102: 97 | B102: 5 | C102: 19.6 | G102: 9.165182839 | H102: 54.55428536 | I102: 760 | J102: 0
A103: 98 | B103: 5 | C103: 19.7 | G103: 9.146895536 | H103: 54.66335524 | I103: 760 | J103: 0
A104: 99 | B104: 5 | C104: 19.8 | G104: 9.128673869 | H104: 54.77246829 | I104: 760 | J104: 0
A105: 100 | B105: 5 | C105: 19.9 | G105: 9.110517488 | H105: 54.88162452 | I105: 760 | J105: 0
A106: 101 | B106: 5 | C106: 20 | G106: 9.092426043 | H106: 54.99082397 | I106: 760 | J106: 0
A107: 102 | B107: 5 | C107: 20.1 | G107: 9.074399186 | H107: 55.10006665 | I107: 760 | J107: 0
A108: 103 | B108: 5 | C108: 20.2 | G108: 9.056436573 | H108: 55.20935259 | I108: 760 | J108: 0
A109: 104 | B109: 5 | C109: 20.3 | G109: 9.03853786 | H109: 55.31868182 | I109: 760 | J109: 0
A110: 105 | B110: 5 | C110: 20.4 | G110: 9.020702704 | H110: 55.42805438 | I110: 760 | J110: 0
A111: 106 | B111: 5 | C111: 20.5 | G111: 9.002930766 | H111: 55.53747029 | I111: 760 | J111: 0
A112: 107 | B112: 5 | C112: 20.6 | G112: 8.985221709 | H112: 55.64692961 | I112: 760 | J112: 0
A113: 108 | B113: 5 | C113: 20.7 | G113: 8.967575195 | H113: 55.75643238 | I113: 760 | J113: 0
A114: 109 | B114: 5 | C114: 20.8 | G114: 8.949990891 | H114: 55.86597864 | I114: 760 | J114: 0
A115: 110 | B115: 5 | C115: 20.9 | G115: 8.932468464 | H115: 55.97556845 | I115: 760 | J115: 0
A116: 111 | B116: 5 | C116: 21 | G116: 8.915007584 | H116: 56.08520187 | I116: 760 | J116: 0
A117: 112 | B117: 5 | C117: 21.1 | G117: 8.897607921 | H117: 56.19487894 | I117: 760 | J117: 0
A118: 113 | B118: 5 | C118: 21.2 | G118: 8.880269148 | H118: 56.30459974 | I118: 760 | J118: 0
A119: 114 | B119: 5 | C119: 21.3 | G119: 8.86299094 | H119: 56.41436433 | I119: 760 | J119: 0
A120: 115 | B120: 5 | C120: 21.4 | G120: 8.845772974 | H120: 56.52417278 | I120: 760 | J120: 0
A121: 116 | B121: 5 | C121: 21.5 | G121: 8.828614928 | H121: 56.63402517 | I121: 760 | J121: 0
A122: 117 | B122: 5 | C122: 21.6 | G122: 8.811516481 | H122: 56.74392156 | I122: 760 | J122: 0
A123: 118 | B123: 5 | C123: 21.7 | G123: 8.794477316 | H123: 56.85386204 | I123: 760 | J123: 0
A124: 119 | B124: 5 | C124: 21.8 | G124: 8.777497115 | H124: 56.96384669 | I124: 760 | J124: 0
A125: 120 | B125: 5 | C125: 21.9 | G125: 8.760575565 | H125: 57.0738756 | I125: 760 | J125: 0
A126: 121 | B126: 5 | C126: 22 | G126: 8.743712351 | H126: 57.18394887 | I126: 760 | J126: 0
A127: 122 | B127: 5 | C127: 22.1 | G127: 8.726907163 | H127: 57.29406658 | I127: 760 | J127: 0
A128: 123 | B128: 5 | C128: 22.2 | G128: 8.71015969 | H128: 57.40422883 | I128: 760 | J128: 0
A129: 124 | B129: 5 | C129: 22.3 | G129: 8.693469625 | H129: 57.51443573 | I129: 760 | J129: 0
A130: 125 | B130: 5 | C130: 22.4 | G130: 8.676836661 | H130: 57.62468737 | I130: 760 | J130: 0
A131: 126 | B131: 5 | C131: 22.5 | G131: 8.660260494 | H131: 57.73498388 | I131: 760 | J131: 0
A132: 127 | B132: 5 | C132: 22.6 | G132: 8.64374082 | H132: 57.84532536 | I132: 760 | J132: 0
A133: 128 | B133: 5 | C133: 22.7 | G133: 8.627277337 | H133: 57.95571192 | I133: 760 | J133: 0
A134: 129 | B134: 5 | C134: 22.8 | G134: =IF(OR(ISBLANK($B134),ISBLANK($C134)),"",(EXP((-139.34411+(157570.1/($C134+273.15)-(66423080/($C134+273.15)^2)+(12438000000/($C134+273.15)^3)-(862194900000/($C134+273.15)^4))-($J134*(0.017674-(10.754/($C134+273.15))+(2140.7/($C134+273.15)^2))))))*($I134/760)*((1-((EXP(11.8581-(3840.7/($C134+273.15))-(216961/($C134+273.15)^2)))/($I134/760)))*(1-(0.000975-(0.00001426*$C134)+(0.00000006436*$C134^2))*($I134/760)))/((1-(EXP(11.8581-(3840.7/($C134+273.15))-(216961/($C134+273.15)^2))))*(1-(0.000975-(0.00001426*$C134)+(0.00000006436*$C134^2))))) -> 8.610869747 | H134: 58.06614369 | I134: 760 | J134: =IF(AND(ISBLANK($D134),ISBLANK($E134)),0,IF(ISBLANK($D134),IF($E134=0,0,(0.008-(0.1692*((($E134*(1+0.0191*($C134-25))/10000)/4.2914)/((1+(($I134/760*1.01325)*(0.000207-(0.0000000637*($I134/760*1.01325))+(0.000000000003989*($I134/760*1.01325)^2))/(1+(0.03426*$C134)+(0.0004464*$C134^2)+(0.4215-0.003107*$C134)*((($E134*(1+0.0191*($C134-25))/10000)/4.2914)))))*(0.6766097+0.0200564*$C134+0.0001104259*$C134^2-0.00000069698*$C134^3+0.0000000010031*$C134^4)))^0.5)+(25.3851*((($E134*(1+0.0191*($C134-25))/10000)/4.2914)/((1+(($I134/760*1.01325)*(0.000207-(0.0000000637*($I134/760*1.01325))+(0.000000000003989*($I134/760*1.01325)^2))/(1+(0.03426*$C134)+(0.0004464*$C134^2)+(0.4215-0.003107*$C134)*((($E134*(1+0.0191*($C134-25))/10000)/4.2914)))))*(0.6766097+0.0200564*$C134+0.0001104259*$C134^2-0.00000069698*$C134^3+0.0000000010031*$C134^4))))+(14.0941*((($E134*(1+0.0191*($C134-25))/10000)/4.2914)/((1+(($I134/760*1.01325)*(0.000207-(0.0000000637*($I134/760*1.01325))+(0.000000000003989*($I134/760*1.01325)^2))/(1+(0.03426*$C134)+(0.0004464*$C134^2)+(0.4215-0.003107*$C134)*((($E134*(1+0.0191*($C134-25))/10000)/4.2914)))))*(0.6766097+0.0200564*$C134+0.0001104259*$C134^2-0.00000069698*$C134^3+0.0000000010031*$C134^4)))^1.5)-(7.0261*((($E134*(1+0.0191*($C134-25))/10000)/4.2914)/((1+(($I134/760*1.01325)*(0.000207-(0.0000000637*($I134/760*1.01325))+(0.000000000003989*($I134/760*1.01325)^2))/(1+(0.03426*$C134)+(0.0004464*$C134^2)+(0.4215-0.003107*$C134)*((($E134*(1+0.0191*($C134-25))/10000)/4.2914)))))*(0.6766097+0.0200564*$C134+0.0001104259*$C134^2-0.00000069698*$C134^3+0.0000000010031*$C134^4)))^2)+(2.7081*((($E134*(1+0.0191*($C134-25))/10000)/4.2914)/((1+(($I134/760*1.01325)*(0.000207-(0.0000000637*($I134/760*1.01325))+(0.000000000003989*($I134/760*1.01325)^2))/(1+(0.03426*$C134)+(0.0004464*$C134^2)+(0.4215-0.003107*$C134)*((($E134*(1+0.0191*($C134-25))/10000)/4.2914)))))*(0.6766097+0.0200564*$C134+0.0001104259*$C134^2-0.00000069698*$C134^3+0.0000000010031*$C134^4)))^2.5)+(($C134-15)/(1+0.0162*($C134-15))*(0.0005-0.0056*((($E134*(1+0.0191*($C134-25))/10000)/4.2914)/((1+(($I134/760*1.01325)*(0.000207-(0.0000000637*($I134/760*1.01325))+(0.000000000003989*($I134/760*1.01325)^2))/(1+(0.03426*$C134)+(0.0004464*$C134^2)+(0.4215-0.003107*$C134)*((($E134*(1+0.0191*($C134-25))/10000)/4.2914)))))*(0.6766097+0.0200564*$C134+0.0001104259*$C134^2-0.00000069698*$C134^3+0.0000000010031*$C134^4)))^0.5-0.0066*((($E134*(1+0.0191*($C134-25))/10000)/4.2914)/((1+(($I134/760*1.01325)*(0.000207-(0.0000000637*($I134/760*1.01325))+(0.000000000003989*($I134/760*1.01325)^2))/(1+(0.03426*$C134)+(0.0004464*$C134^2)+(0.4215-0.003107*$C134)*((($E134*(1+0.0191*($C134-25))/10000)/4.2914)))))*(0.6766097+0.0200564*$C134+0.0001104259*$C134^2-0.00000069698*$C134^3+0.0000000010031*$C134^4)))-0.0375*((($E134*(1+0.0191*($C134-25))/10000)/4.2914)/((1+(($I134/760*1.01325)*(0.000207-(0.0000000637*($I134/760*1.01325))+(0.000000000003989*($I134/760*1.01325)^2))/(1+(0.03426*$C134)+(0.0004464*$C134^2)+(0.4215-0.003107*$C134)*((($E134*(1+0.0191*($C134-25))/10000)/4.2914)))))*(0.6766097+0.0200564*$C134+0.0001104259*$C134^2-0.00000069698*$C134^3+0.0000000010031*$C134^4)))^1.5+0.0636*((($E134*(1+0.0191*($C134-25))/10000)/4.2914)/((1+(($I134/760*1.01325)*(0.000207-(0.0000000637*($I134/760*1.01325))+(0.000000000003989*($I134/760*1.01325)^2))/(1+(0.03426*$C134)+(0.0004464*$C134^2)+(0.4215-0.003107*$C134)*((($E134*(1+0.0191*($C134-25))/10000)/4.2914)))))*(0.6766097+0.0200564*$C134+0.0001104259*$C134^2-0.00000069698*$C134^3+0.0000000010031*$C134^4)))^2-0.0144*((($E134*(1+0.0191*($C134-25))/10000)/4.2914)/((1+(($I134/760*1.01325)*(0.000207-(0.0000000637*($I134/760*1.01325))+(0.000000000003989*($I134/760*1.01325)^2))/(1+(0.03426*$C134)+(0.0004464*$C134^2)+(0.4215-0.003107*$C134)*((($E134*(1+0.0191*($C134-25))/10000)/4.2914)))))*(0.6766097+0.0200564*$C134+0.0001104259*$C134^2-0.00000069698*$C134^3+0.0000000010031*$C134^4)))^2.5)))-(0.008/(1+(1.5*400*((($E134*(1+0.0191*($C134-25))/10000)/4.2914)/((1+(($I134/760*1.01325)*(0.000207-(0.0000000637*($I134/760*1.01325))+(0.000000000003989*($I134/760*1.01325)^2))/(1+(0.03426*$C134)+(0.0004464*$C134^2)+(0.4215-0.003107*$C134)*((($E134*(1+0.0191*($C134-25))/10000)/4.2914)))))*(0.6766097+0.0200564*$C134+0.0001104259*$C134^2-0.00000069698*$C134^3+0.0000000010031*$C134^4))))+(400*((($E134*(1+0.0191*($C134-25))/10000)/4.2914)/((1+(($I134/760*1.01325)*(0.000207-(0.0000000637*($I134/760*1.01325))+(0.000000000003989*($I134/760*1.01325)^2))/(1+(0.03426*$C134)+(0.0004464*$C134^2)+(0.4215-0.003107*$C134)*((($E134*(1+0.0191*($C134-25))/10000)/4.2914)))))*(0.6766097+0.0200564*$C134+0.0001104259*$C134^2-0.00000069698*$C134^3+0.0000000010031*$C134^4))))^2))-((0.0005*($C134-15)/(1+0.0162*($C134-15)))/(1+(100*((($E134*(1+0.0191*($C134-25))/10000)/4.2914)/((1+(($I134/760*1.01325)*(0.000207-(0.0000000637*($I134/760*1.01325))+(0.000000000003989*($I134/760*1.01325)^2))/(1+(0.03426*$C134)+(0.0004464*$C134^2)+(0.4215-0.003107*$C134)*((($E134*(1+0.0191*($C134-25))/10000)/4.2914)))))*(0.6766097+0.0200564*$C134+0.0001104259*$C134^2-0.00000069698*$C134^3+0.0000000010031*$C134^4))))^0.5+(100*((($E134*(1+0.0191*($C134-25))/10000)/4.2914)/((1+(($I134/760*1.01325)*(0.000207-(0.0000000637*($I134/760*1.01325))+(0.000000000003989*($I134/760*1.01325)^2))/(1+(0.03426*$C134)+(0.0004464*$C134^2)+(0.4215-0.003107*$C134)*((($E134*(1+0.0191*($C134-25))/10000)/4.2914)))))*(0.6766097+0.0200564*$C134+0.0001104259*$C134^2-0.00000069698*$C134^3+0.0000000010031*$C134^4))))^1.5))),$D134)) -> 0
A135: 130 | B135: 5 | C135: 22.9 | G135: 8.594517751 | H135: 58.17662078 | I135: 760 | J135: 0
A136: =A135+1 -> 131 | B136: 5 | C136: =C135+0.1 -> 23 | G136: 8.578221052 | H136: =IF(OR(ISBLANK(B136),ISBLANK(C136)),"",B136/G136*100) -> 58.28714333 | I136: =IF(ISBLANK(F136),760,F136) -> 760 | J136: 0
A137: 132 | B137: 5 | C137: 23.1 | G137: 8.561979356 | H137: 58.39771147 | I137: 760 | J137: 0
A138: 133 | B138: 5 | C138: 23.2 | G138: 8.545792368 | H138: 58.50832532 | I138: 760 | J138: 0
A139: 134 | B139: 5 | C139: 23.3 | G139: 8.529659798 | H139: 58.61898503 | I139: 760 | J139: 0
A140: 135 | B140: 5 | C140: 23.4 | G140: 8.513581355 | H140: 58.72969074 | I140: 760 | J140: 0
A141: 136 | B141: 5 | C141: 23.5 | G141: 8.49755675 | H141: 58.84044258 | I141: 760 | J141: 0
A142: 137 | B142: 5 | C142: 23.6 | G142: 8.481585696 | H142: 58.95124071 | I142: 760 | J142: 0
A143: 138 | B143: 5 | C143: 23.7 | G143: 8.465667908 | H143: 59.06208529 | I143: 760 | J143: 0
A144: 139 | B144: 5 | C144: 23.8 | G144: 8.449803102 | H144: 59.17297646 | I144: 760 | J144: 0
A145: 140 | B145: 5 | C145: 23.9 | G145: 8.433990995 | H145: 59.28391438 | I145: 760 | J145: 0
A146: 141 | B146: 5 | C146: 24 | G146: 8.418231306 | H146: 59.39489921 | I146: 760 | J146: 0
A147: 142 | B147: 5 | C147: 24.1 | G147: 8.402523757 | H147: 59.50593113 | I147: 760 | J147: 0
A148: 143 | B148: 5 | C148: 24.2 | G148: 8.386868068 | H148: 59.6170103 | I148: 760 | J148: 0
A149: 144 | B149: 5 | C149: 24.3 | G149: 8.371263964 | H149: 59.72813689 | I149: 760 | J149: 0
A150: 145 | B150: 5 | C150: 24.4 | G150: 8.35571117 | H150: 59.83931108 | I150: 760 | J150: 0
A151: 146 | B151: 5 | C151: 24.5 | G151: 8.340209412 | H151: 59.95053305 | I151: 760 | J151: 0
A152: 147 | B152: 5 | C152: 24.6 | G152: 8.324758418 | H152: 60.06180298 | I152: 760 | J152: 0
A153: 148 | B153: 5 | C153: 24.7 | G153: 8.309357918 | H153: 60.17312107 | I153: 760 | J153: 0
A154: 149 | B154: 5 | C154: 24.8 | G154: 8.294007643 | H154: 60.28448749 | I154: 760 | J154: 0
A155: 150 | B155: 5 | C155: 24.9 | G155: 8.278707325 | H155: 60.39590245 | I155: 760 | J155: 0
A156: 151 | B156: 5 | C156: 25 | G156: 8.263456698 | H156: 60.50736614 | I156: 760 | J156: 0
A157: 152 | B157: 5 | C157: 25.1 | G157: 8.248255497 | H157: 60.61887877 | I157: 760 | J157: 0
A158: 153 | B158: 5 | C158: 25.2 | G158: 8.233103459 | H158: 60.73044053 | I158: 760 | J158: 0
A159: 154 | B159: 5 | C159: 25.3 | G159: 8.218000322 | H159: 60.84205164 | I159: 760 | J159: 0
A160: 155 | B160: 5 | C160: 25.4 | G160: 8.202945826 | H160: 60.95371232 | I160: 760 | J160: 0
A161: 156 | B161: 5 | C161: 25.5 | G161: 8.187939711 | H161: 61.06542277 | I161: 760 | J161: 0
A162: 157 | B162: 5 | C162: 25.6 | G162: 8.172981719 | H162: 61.17718321 | I162: 760 | J162: 0
A163: 158 | B163: 5 | C163: 25.7 | G163: 8.158071596 | H163: 61.28899387 | I163: 760 | J163: 0
A164: 159 | B164: 5 | C164: 25.8 | G164: 8.143209084 | H164: 61.40085497 | I164: 760 | J164: 0
A165: 160 | B165: 5 | C165: 25.9 | G165: 8.128393932 | H165: 61.51276675 | I165: 760 | J165: 0
A166: 161 | B166: 5 | C166: 26 | G166: 8.113625886 | H166: 61.62472944 | I166: 760 | J166: 0
A167: 162 | B167: 5 | C167: 26.1 | G167: 8.098904697 | H167: 61.73674327 | I167: 760 | J167: 0
A168: 163 | B168: 5 | C168: 26.2 | G168: 8.084230113 | H168: 61.84880848 | I168: 760 | J168: 0
A169: 164 | B169: 5 | C169: 26.3 | G169: 8.069601888 | H169: 61.96092533 | I169: 760 | J169: 0
A170: 165 | B170: 5 | C170: 26.4 | G170: 8.055019774 | H170: 62.07309405 | I170: 760 | J170: 0
A171: 166 | B171: 5 | C171: 26.5 | G171: 8.040483526 | H171: 62.1853149 | I171: 760 | J171: 0
A172: 167 | B172: 5 | C172: 26.6 | G172: 8.025992899 | H172: 62.29758813 | I172: 760 | J172: 0
A173: 168 | B173: 5 | C173: 26.7 | G173: 8.011547652 | H173: 62.40991401 | I173: 760 | J173: 0
A174: 169 | B174: 5 | C174: 26.8 | G174: 7.997147541 | H174: 62.52229279 | I174: 760 | J174: 0
A175: 170 | B175: 5 | C175: 26.9 | G175: 7.982792327 | H175: 62.63472473 | I175: 760 | J175: 0
A176: 171 | B176: 5 | C176: 27 | G176: 7.968481771 | H176: 62.74721012 | I176: 760 | J176: 0
A177: 172 | B177: 5 | C177: 27.1 | G177: 7.954215635 | H177: 62.85974921 | I177: 760 | J177: 0
A178: 173 | B178: 5 | C178: 27.2 | G178: 7.939993682 | H178: 62.9723423 | I178: 760 | J178: 0
A179: 174 | B179: 5 | C179: 27.3 | G179: 7.925815678 | H179: 63.08498965 | I179: 760 | J179: 0
A180: 175 | B180: 5 | C180: 27.4 | G180: 7.911681388 | H180: 63.19769155 | I180: 760 | J180: 0
A181: 176 | B181: 5 | C181: 27.5 | G181: 7.89759058 | H181: 63.31044829 | I181: 760 | J181: 0
A182: 177 | B182: 5 | C182: 27.6 | G182: 7.883543022 | H182: 63.42326015 | I182: 760 | J182: 0
A183: 178 | B183: 5 | C183: 27.7 | G183: 7.869538484 | H183: 63.53612744 | I183: 760 | J183: 0
A184: 179 | B184: 5 | C184: 27.8 | G184: 7.855576737 | H184: 63.64905045 | I184: 760 | J184: 0
A185: 180 | B185: 5 | C185: 27.9 | G185: 7.841657553 | H185: 63.76202947 | I185: 760 | J185: 0
A186: 181 | B186: 5 | C186: 28 | G186: 7.827780706 | H186: 63.87506482 | I186: 760 | J186: 0
A187: 182 | B187: 5 | C187: 28.1 | G187: 7.81394597 | H187: 63.9881568 | I187: 760 | J187: 0
A188: 183 | B188: 5 | C188: 28.2 | G188: 7.800153122 | H188: 64.10130573 | I188: 760 | J188: 0
A189: 184 | B189: 5 | C189: 28.3 | G189: 7.786401937 | H189: 64.21451192 | I189: 760 | J189: 0
A190: 185 | B190: 5 | C190: 28.4 | G190: 7.772692195 | H190: 64.32777568 | I190: 760 | J190: 0
A191: 186 | B191: 5 | C191: 28.5 | G191: 7.759023675 | H191: 64.44109735 | I191: 760 | J191: 0
A192: 187 | B192: 5 | C192: 28.6 | G192: 7.745396158 | H192: 64.55447724 | I192: 760 | J192: 0
A193: 188 | B193: 5 | C193: 28.7 | G193: 7.731809424 | H193: 64.66791569 | I193: 760 | J193: 0
A194: 189 | B194: 5 | C194: 28.8 | G194: 7.718263258 | H194: 64.78141303 | I194: 760 | J194: 0
A195: 190 | B195: 5 | C195: 28.9 | G195: 7.704757443 | H195: 64.89496959 | I195: 760 | J195: 0
A196: 191 | B196: 5 | C196: 29 | G196: 7.691291765 | H196: 65.00858572 | I196: 760 | J196: 0
A197: 192 | B197: 5 | C197: 29.1 | G197: 7.677866009 | H197: 65.12226176 | I197: 760 | J197: 0
A198: 193 | B198: 5 | C198: 29.2 | G198: =IF(OR(ISBLANK($B198),ISBLANK($C198)),"",(EXP((-139.34411+(157570.1/($C198+273.15)-(66423080/($C198+273.15)^2)+(12438000000/($C198+273.15)^3)-(862194900000/($C198+273.15)^4))-($J198*(0.017674-(10.754/($C198+273.15))+(2140.7/($C198+273.15)^2))))))*($I198/760)*((1-((EXP(11.8581-(3840.7/($C198+273.15))-(216961/($C198+273.15)^2)))/($I198/760)))*(1-(0.000975-(0.00001426*$C198)+(0.00000006436*$C198^2))*($I198/760)))/((1-(EXP(11.8581-(3840.7/($C198+273.15))-(216961/($C198+273.15)^2))))*(1-(0.000975-(0.00001426*$C198)+(0.00000006436*$C198^2))))) -> 7.664479964 | H198: 65.23599805 | I198: 760 | J198: =IF(AND(ISBLANK($D198),ISBLANK($E198)),0,IF(ISBLANK($D198),IF($E198=0,0,(0.008-(0.1692*((($E198*(1+0.0191*($C198-25))/10000)/4.2914)/((1+(($I198/760*1.01325)*(0.000207-(0.0000000637*($I198/760*1.01325))+(0.000000000003989*($I198/760*1.01325)^2))/(1+(0.03426*$C198)+(0.0004464*$C198^2)+(0.4215-0.003107*$C198)*((($E198*(1+0.0191*($C198-25))/10000)/4.2914)))))*(0.6766097+0.0200564*$C198+0.0001104259*$C198^2-0.00000069698*$C198^3+0.0000000010031*$C198^4)))^0.5)+(25.3851*((($E198*(1+0.0191*($C198-25))/10000)/4.2914)/((1+(($I198/760*1.01325)*(0.000207-(0.0000000637*($I198/760*1.01325))+(0.000000000003989*($I198/760*1.01325)^2))/(1+(0.03426*$C198)+(0.0004464*$C198^2)+(0.4215-0.003107*$C198)*((($E198*(1+0.0191*($C198-25))/10000)/4.2914)))))*(0.6766097+0.0200564*$C198+0.0001104259*$C198^2-0.00000069698*$C198^3+0.0000000010031*$C198^4))))+(14.0941*((($E198*(1+0.0191*($C198-25))/10000)/4.2914)/((1+(($I198/760*1.01325)*(0.000207-(0.0000000637*($I198/760*1.01325))+(0.000000000003989*($I198/760*1.01325)^2))/(1+(0.03426*$C198)+(0.0004464*$C198^2)+(0.4215-0.003107*$C198)*((($E198*(1+0.0191*($C198-25))/10000)/4.2914)))))*(0.6766097+0.0200564*$C198+0.0001104259*$C198^2-0.00000069698*$C198^3+0.0000000010031*$C198^4)))^1.5)-(7.0261*((($E198*(1+0.0191*($C198-25))/10000)/4.2914)/((1+(($I198/760*1.01325)*(0.000207-(0.0000000637*($I198/760*1.01325))+(0.000000000003989*($I198/760*1.01325)^2))/(1+(0.03426*$C198)+(0.0004464*$C198^2)+(0.4215-0.003107*$C198)*((($E198*(1+0.0191*($C198-25))/10000)/4.2914)))))*(0.6766097+0.0200564*$C198+0.0001104259*$C198^2-0.00000069698*$C198^3+0.0000000010031*$C198^4)))^2)+(2.7081*((($E198*(1+0.0191*($C198-25))/10000)/4.2914)/((1+(($I198/760*1.01325)*(0.000207-(0.0000000637*($I198/760*1.01325))+(0.000000000003989*($I198/760*1.01325)^2))/(1+(0.03426*$C198)+(0.0004464*$C198^2)+(0.4215-0.003107*$C198)*((($E198*(1+0.0191*($C198-25))/10000)/4.2914)))))*(0.6766097+0.0200564*$C198+0.0001104259*$C198^2-0.00000069698*$C198^3+0.0000000010031*$C198^4)))^2.5)+(($C198-15)/(1+0.0162*($C198-15))*(0.0005-0.0056*((($E198*(1+0.0191*($C198-25))/10000)/4.2914)/((1+(($I198/760*1.01325)*(0.000207-(0.0000000637*($I198/760*1.01325))+(0.000000000003989*($I198/760*1.01325)^2))/(1+(0.03426*$C198)+(0.0004464*$C198^2)+(0.4215-0.003107*$C198)*((($E198*(1+0.0191*($C198-25))/10000)/4.2914)))))*(0.6766097+0.0200564*$C198+0.0001104259*$C198^2-0.00000069698*$C198^3+0.0000000010031*$C198^4)))^0.5-0.0066*((($E198*(1+0.0191*($C198-25))/10000)/4.2914)/((1+(($I198/760*1.01325)*(0.000207-(0.0000000637*($I198/760*1.01325))+(0.000000000003989*($I198/760*1.01325)^2))/(1+(0.03426*$C198)+(0.0004464*$C198^2)+(0.4215-0.003107*$C198)*((($E198*(1+0.0191*($C198-25))/10000)/4.2914)))))*(0.6766097+0.0200564*$C198+0.0001104259*$C198^2-0.00000069698*$C198^3+0.0000000010031*$C198^4)))-0.0375*((($E198*(1+0.0191*($C198-25))/10000)/4.2914)/((1+(($I198/760*1.01325)*(0.000207-(0.0000000637*($I198/760*1.01325))+(0.000000000003989*($I198/760*1.01325)^2))/(1+(0.03426*$C198)+(0.0004464*$C198^2)+(0.4215-0.003107*$C198)*((($E198*(1+0.0191*($C198-25))/10000)/4.2914)))))*(0.6766097+0.0200564*$C198+0.0001104259*$C198^2-0.00000069698*$C198^3+0.0000000010031*$C198^4)))^1.5+0.0636*((($E198*(1+0.0191*($C198-25))/10000)/4.2914)/((1+(($I198/760*1.01325)*(0.000207-(0.0000000637*($I198/760*1.01325))+(0.000000000003989*($I198/760*1.01325)^2))/(1+(0.03426*$C198)+(0.0004464*$C198^2)+(0.4215-0.003107*$C198)*((($E198*(1+0.0191*($C198-25))/10000)/4.2914)))))*(0.6766097+0.0200564*$C198+0.0001104259*$C198^2-0.00000069698*$C198^3+0.0000000010031*$C198^4)))^2-0.0144*((($E198*(1+0.0191*($C198-25))/10000)/4.2914)/((1+(($I198/760*1.01325)*(0.000207-(0.0000000637*($I198/760*1.01325))+(0.000000000003989*($I198/760*1.01325)^2))/(1+(0.03426*$C198)+(0.0004464*$C198^2)+(0.4215-0.003107*$C198)*((($E198*(1+0.0191*($C198-25))/10000)/4.2914)))))*(0.6766097+0.0200564*$C198+0.0001104259*$C198^2-0.00000069698*$C198^3+0.0000000010031*$C198^4)))^2.5)))-(0.008/(1+(1.5*400*((($E198*(1+0.0191*($C198-25))/10000)/4.2914)/((1+(($I198/760*1.01325)*(0.000207-(0.0000000637*($I198/760*1.01325))+(0.000000000003989*($I198/760*1.01325)^2))/(1+(0.03426*$C198)+(0.0004464*$C198^2)+(0.4215-0.003107*$C198)*((($E198*(1+0.0191*($C198-25))/10000)/4.2914)))))*(0.6766097+0.0200564*$C198+0.0001104259*$C198^2-0.00000069698*$C198^3+0.0000000010031*$C198^4))))+(400*((($E198*(1+0.0191*($C198-25))/10000)/4.2914)/((1+(($I198/760*1.01325)*(0.000207-(0.0000000637*($I198/760*1.01325))+(0.000000000003989*($I198/760*1.01325)^2))/(1+(0.03426*$C198)+(0.0004464*$C198^2)+(0.4215-0.003107*$C198)*((($E198*(1+0.0191*($C198-25))/10000)/4.2914)))))*(0.6766097+0.0200564*$C198+0.0001104259*$C198^2-0.00000069698*$C198^3+0.0000000010031*$C198^4))))^2))-((0.0005*($C198-15)/(1+0.0162*($C198-15)))/(1+(100*((($E198*(1+0.0191*($C198-25))/10000)/4.2914)/((1+(($I198/760*1.01325)*(0.000207-(0.0000000637*($I198/760*1.01325))+(0.000000000003989*($I198/760*1.01325)^2))/(1+(0.03426*$C198)+(0.0004464*$C198^2)+(0.4215-0.003107*$C198)*((($E198*(1+0.0191*($C198-25))/10000)/4.2914)))))*(0.6766097+0.0200564*$C198+0.0001104259*$C198^2-0.00000069698*$C198^3+0.0000000010031*$C198^4))))^0.5+(100*((($E198*(1+0.0191*($C198-25))/10000)/4.2914)/((1+(($I198/760*1.01325)*(0.000207-(0.0000000637*($I198/760*1.01325))+(0.000000000003989*($I198/760*1.01325)^2))/(1+(0.03426*$C198)+(0.0004464*$C198^2)+(0.4215-0.003107*$C198)*((($E198*(1+0.0191*($C198-25))/10000)/4.2914)))))*(0.6766097+0.0200564*$C198+0.0001104259*$C198^2-0.00000069698*$C198^3+0.0000000010031*$C198^4))))^1.5))),$D198)) -> 0
A199: 194 | B199: 5 | C199: 29.3 | G199: 7.651133418 | H199: 65.34979495 | I199: 760 | J199: 0
A200: =A199+1 -> 195 | B200: 5 | C200: =C199+0.1 -> 29.4 | G200: 7.63782616 | H200: =IF(OR(ISBLANK(B200),ISBLANK(C200)),"",B200/G200*100) -> 65.46365281 | I200: =IF(ISBLANK(F200),760,F200) -> 760 | J200: 0
... 805 more rows

Sheet Time of Day Interpreter
A1: Time-of-Day Interpreter for Florida's Freshwater DO Criteria!
A2: To use: Choose SCI Bioregion and waterbody type from Drop-down lists. Then enter local time at which DO measurement was taken in 24 hour format (e.g., 16:10). Note: The time-of-day interpretion is only applicable for freshwaters! | N2: Bioregions | O2: Waterbody Type
A3: Unshaded (white) fields (Columns A - F) are for data entry. Additional notes are embedded as comments in the heading for each column, please review!
A4: Yellow shaded cells (Column E) are the result field and are protected from change. Do Not Attempt to Change This Field! | N4: Big Bend | O4: Stream/Canal
A5: Sample | B5: SCI-2012 Bioregion | C5: Waterbody Type | D5: Time-of-day Sample was Collected (local time) | E5: Time-of-day Interpretation of Criteria | G5: Streams | J5: Lakes | N5: Everglades | O5: Lake/Wetland
C6: (e.g., Lake or Stream) | D6: (24 hr format, 23:15) | G6: Northeast + Big Bend | H6: Peninsula + Everglades | I6: Panhandle West | J6: Northeast + Big Bend | K6: Peninsula + Everglades | L6: Panhandle West | N6: Northeast | O6: Estuary/Marine
A7: 1 | B7: Northeast | C7: Stream/Canal | D7: 11:11:00 | E7: =IF(OR(ISBLANK($B7),ISBLANK($C7),ISBLANK($D7)),"",IF($C7="Estuary/Marine","Time of day Adjustment not appropriate for marine waters!",IF(OR(CONCATENATE($B7,"-",$C7)="Peninsula-Lake/Wetland",CONCATENATE($B7,"-",$C7)="Everglades-Lake/Wetland"),K7,IF(OR(CONCATENATE($B7,"-",$C7)="Northeast-Lake/Wetland",CONCATENATE($B7,"-",$C7)="Big Bend-Lake/Wetland"),J7,IF(CONCATENATE($B7,"-",$C7)="Panhandle West-Lake/Wetland",L7,IF(OR(CONCATENATE($B7,"-",$C7)="Peninsula-Stream/Canal",CONCATENATE($B7,"-",$C7)="Everglades-Stream/Canal"),H7,IF(OR(CONCATENATE($B7,"-",$C7)="Northeast-Stream/Canal",CONCATENATE($B7,"-",$C7)="Big Bend-Stream/Canal"),G7,IF(CONCATENATE($B7,"-",$C7)="Panhandle West-Stream/Canal",I7,"Error! Check Entries")))))))) -> 34.42164431 | G7: =1.18443700433286E-13*(HOUR($D7)*60+MINUTE($D7))^5 - 4.14323598958596E-10*(HOUR($D7)*60+MINUTE($D7))^4 + 4.77287727122539E-07*(HOUR($D7)*60+MINUTE($D7))^3 - 0.000196917585728373*(HOUR($D7)*60+MINUTE($D7))^2 + 0.0231405627601475*(HOUR($D7)*60+MINUTE($D7)) + 31.2398283659495 -> 34.42164431 | H7: =1.98879987167155E-13*(HOUR($D7)*60+MINUTE($D7))^5 - 6.89410992615642E-10*(HOUR($D7)*60+MINUTE($D7))^4 + 7.83730333422071E-07*(HOUR($D7)*60+MINUTE($D7))^3 - 0.00031597890334556*(HOUR($D7)*60+MINUTE($D7))^2 + 0.0355135105918976*(HOUR($D7)*60+MINUTE($D7)) + 33.4327310978006 -> 39.06672017 | I7: =9.08511511657608E-14*(HOUR($D7)*60+MINUTE($D7))^5 - 2.99407211249053E-10*(HOUR($D7)*60+MINUTE($D7))^4 + 3.1560253348998E-07*(HOUR($D7)*60+MINUTE($D7))^3 - 0.000108510891323021*(HOUR($D7)*60+MINUTE($D7))^2 + 0.00628484730145829*(HOUR($D7)*60+MINUTE($D7)) + 65.6142372750764 -> 67.98547319 | J7: =1.45776613020539E-13*(HOUR($D7)*60+MINUTE($D7))^5-5.56072270585461E-10*(HOUR($D7)*60+MINUTE($D7))^4+7.06833400255548E-07*(HOUR($D7)*60+MINUTE($D7))^3-0.000318788465226261*(HOUR($D7)*60+MINUTE($D7))^2+0.0281711711660364*(HOUR($D7)*60+MINUTE($D7))+34.1911117699055 -> 30.20868276 | K7: =1.37090283182826E-13*(HOUR($D7)*60+MINUTE($D7))^5 - 5.04960255463897E-10*(HOUR($D7)*60+MINUTE($D7))^4 + 6.13524315934422E-07*(HOUR($D7)*60+MINUTE($D7))^3 - 0.00025817433468811*(HOUR($D7)*60+MINUTE($D7))^2 + 0.0195966892410979*(HOUR($D7)*60+MINUTE($D7)) + 37.1360250050275 -> 35.68104915 | L7: =7.11895278892582E-14*(HOUR($D7)*60+MINUTE($D7))^5-2.64195273421019E-10*(HOUR($D7)*60+MINUTE($D7))^4 + 3.22473039456213E-07*(HOUR($D7)*60+MINUTE($D7))^3 - 0.00013606873481109*(HOUR($D7)*60+MINUTE($D7))^2 + 0.0107100719720847*(HOUR($D7)*60+MINUTE($D7))+66.3535900428978 -> 65.82576341 | N7: Panhandle West
A8: 2 | E8: =IF(OR(ISBLANK($B8),ISBLANK($C8),ISBLANK($D8)),"",IF($C8="Estuary/Marine","Time of day Adjustment not appropriate for marine waters!",IF(OR(CONCATENATE($B8,"-",$C8)="Peninsula-Lake/Wetland",CONCATENATE($B8,"-",$C8)="Everglades-Lake/Wetland"),K8,IF(OR(CONCATENATE($B8,"-",$C8)="Northeast-Lake/Wetland",CONCATENATE($B8,"-",$C8)="Big Bend-Lake/Wetland"),J8,IF(CONCATENATE($B8,"-",$C8)="Panhandle West-Lake/Wetland",L8,IF(OR(CONCATENATE($B8,"-",$C8)="Peninsula-Stream/Canal",CONCATENATE($B8,"-",$C8)="Everglades-Stream/Canal"),H8,IF(OR(CONCATENATE($B8,"-",$C8)="Northeast-Stream/Canal",CONCATENATE($B8,"-",$C8)="Big Bend-Stream/Canal"),G8,IF(CONCATENATE($B8,"-",$C8)="Panhandle West-Stream/Canal",I8,"Error! Check Entries")))))))) ->  | G8: =1.18443700433286E-13*(HOUR($D8)*60+MINUTE($D8))^5 - 4.14323598958596E-10*(HOUR($D8)*60+MINUTE($D8))^4 + 4.77287727122539E-07*(HOUR($D8)*60+MINUTE($D8))^3 - 0.000196917585728373*(HOUR($D8)*60+MINUTE($D8))^2 + 0.0231405627601475*(HOUR($D8)*60+MINUTE($D8)) + 31.2398283659495 -> 31.23982837 | H8: =1.98879987167155E-13*(HOUR($D8)*60+MINUTE($D8))^5 - 6.89410992615642E-10*(HOUR($D8)*60+MINUTE($D8))^4 + 7.83730333422071E-07*(HOUR($D8)*60+MINUTE($D8))^3 - 0.00031597890334556*(HOUR($D8)*60+MINUTE($D8))^2 + 0.0355135105918976*(HOUR($D8)*60+MINUTE($D8)) + 33.4327310978006 -> 33.4327311 | I8: =9.08511511657608E-14*(HOUR($D8)*60+MINUTE($D8))^5 - 2.99407211249053E-10*(HOUR($D8)*60+MINUTE($D8))^4 + 3.1560253348998E-07*(HOUR($D8)*60+MINUTE($D8))^3 - 0.000108510891323021*(HOUR($D8)*60+MINUTE($D8))^2 + 0.00628484730145829*(HOUR($D8)*60+MINUTE($D8)) + 65.6142372750764 -> 65.61423728 | J8: 34.19111177 | K8: =1.37090283182826E-13*(HOUR($D8)*60+MINUTE($D8))^5 - 5.04960255463897E-10*(HOUR($D8)*60+MINUTE($D8))^4 + 6.13524315934422E-07*(HOUR($D8)*60+MINUTE($D8))^3 - 0.00025817433468811*(HOUR($D8)*60+MINUTE($D8))^2 + 0.0195966892410979*(HOUR($D8)*60+MINUTE($D8)) + 37.1360250050275 -> 37.13602501 | L8: =7.11895278892582E-14*(HOUR($D8)*60+MINUTE($D8))^5-2.64195273421019E-10*(HOUR($D8)*60+MINUTE($D8))^4 + 3.22473039456213E-07*(HOUR($D8)*60+MINUTE($D8))^3 - 0.00013606873481109*(HOUR($D8)*60+MINUTE($D8))^2 + 0.0107100719720847*(HOUR($D8)*60+MINUTE($D8))+66.3535900428978 -> 66.35359004 | N8: Peninsula
A9: 3 | E9: =IF(OR(ISBLANK($B9),ISBLANK($C9),ISBLANK($D9)),"",IF($C9="Estuary/Marine","Time of day Adjustment not appropriate for marine waters!",IF(OR(CONCATENATE($B9,"-",$C9)="Peninsula-Lake/Wetland",CONCATENATE($B9,"-",$C9)="Everglades-Lake/Wetland"),K9,IF(OR(CONCATENATE($B9,"-",$C9)="Northeast-Lake/Wetland",CONCATENATE($B9,"-",$C9)="Big Bend-Lake/Wetland"),J9,IF(CONCATENATE($B9,"-",$C9)="Panhandle West-Lake/Wetland",L9,IF(OR(CONCATENATE($B9,"-",$C9)="Peninsula-Stream/Canal",CONCATENATE($B9,"-",$C9)="Everglades-Stream/Canal"),H9,IF(OR(CONCATENATE($B9,"-",$C9)="Northeast-Stream/Canal",CONCATENATE($B9,"-",$C9)="Big Bend-Stream/Canal"),G9,IF(CONCATENATE($B9,"-",$C9)="Panhandle West-Stream/Canal",I9,"Error! Check Entries")))))))) ->  | G9: 31.23982837 | H9: 33.4327311 | I9: 65.61423728 | J9: 34.19111177 | K9: 37.13602501 | L9: 66.35359004 | N9: Marine
A10: 4 | E10: =IF(OR(ISBLANK($B10),ISBLANK($C10),ISBLANK($D10)),"",IF($C10="Estuary/Marine","Time of day Adjustment not appropriate for marine waters!",IF(OR(CONCATENATE($B10,"-",$C10)="Peninsula-Lake/Wetland",CONCATENATE($B10,"-",$C10)="Everglades-Lake/Wetland"),K10,IF(OR(CONCATENATE($B10,"-",$C10)="Northeast-Lake/Wetland",CONCATENATE($B10,"-",$C10)="Big Bend-Lake/Wetland"),J10,IF(CONCATENATE($B10,"-",$C10)="Panhandle West-Lake/Wetland",L10,IF(OR(CONCATENATE($B10,"-",$C10)="Peninsula-Stream/Canal",CONCATENATE($B10,"-",$C10)="Everglades-Stream/Canal"),H10,IF(OR(CONCATENATE($B10,"-",$C10)="Northeast-Stream/Canal",CONCATENATE($B10,"-",$C10)="Big Bend-Stream/Canal"),G10,IF(CONCATENATE($B10,"-",$C10)="Panhandle West-Stream/Canal",I10,"Error! Check Entries")))))))) ->  | G10: 31.23982837 | H10: 33.4327311 | I10: 65.61423728 | J10: 34.19111177 | K10: 37.13602501 | L10: 66.35359004 | N10: Marine
A11: 5 | G11: 31.23982837 | H11: 33.4327311 | I11: 65.61423728 | J11: 34.19111177 | K11: 37.13602501 | L11: 66.35359004 | N11: Marine
A12: 6 | G12: 31.23982837 | H12: 33.4327311 | I12: 65.61423728 | J12: 34.19111177 | K12: 37.13602501 | L12: 66.35359004 | N12: Marine
A13: 7 | G13: 31.23982837 | H13: 33.4327311 | I13: 65.61423728 | J13: 34.19111177 | K13: 37.13602501 | L13: 66.35359004 | N13: Marine
A14: 8 | G14: 31.23982837 | H14: 33.4327311 | I14: 65.61423728 | J14: 34.19111177 | K14: 37.13602501 | L14: 66.35359004 | N14: Marine
A15: 9 | G15: 31.23982837 | H15: 33.4327311 | I15: 65.61423728 | J15: 34.19111177 | K15: 37.13602501 | L15: 66.35359004 | N15: Marine
A16: 10 | G16: 31.23982837 | H16: 33.4327311 | I16: 65.61423728 | J16: 34.19111177 | K16: 37.13602501 | L16: 66.35359004 | N16: Marine
A17: 11 | G17: 31.23982837 | H17: 33.4327311 | I17: 65.61423728 | J17: 34.19111177 | K17: 37.13602501 | L17: 66.35359004 | N17: Marine
A18: 12 | G18: 31.23982837 | H18: 33.4327311 | I18: 65.61423728 | J18: 34.19111177 | K18: 37.13602501 | L18: 66.35359004 | N18: Marine
A19: 13 | G19: 31.23982837 | H19: 33.4327311 | I19: 65.61423728 | J19: 34.19111177 | K19: 37.13602501 | L19: 66.35359004 | N19: Marine
A20: 14 | G20: 31.23982837 | H20: 33.4327311 | I20: 65.61423728 | J20: 34.19111177 | K20: 37.13602501 | L20: 66.35359004 | N20: Marine
A21: 15 | G21: 31.23982837 | H21: 33.4327311 | I21: 65.61423728 | J21: 34.19111177 | K21: 37.13602501 | L21: 66.35359004 | N21: Marine
A22: 16 | G22: 31.23982837 | H22: 33.4327311 | I22: 65.61423728 | J22: 34.19111177 | K22: 37.13602501 | L22: 66.35359004 | N22: Marine
A23: 17 | G23: 31.23982837 | H23: 33.4327311 | I23: 65.61423728 | J23: 34.19111177 | K23: 37.13602501 | L23: 66.35359004 | N23: Marine
A24: 18 | G24: 31.23982837 | H24: 33.4327311 | I24: 65.61423728 | J24: 34.19111177 | K24: 37.13602501 | L24: 66.35359004 | N24: Marine
A25: 19 | G25: 31.23982837 | H25: 33.4327311 | I25: 65.61423728 | J25: 34.19111177 | K25: 37.13602501 | L25: 66.35359004 | N25: Marine
A26: 20 | G26: 31.23982837 | H26: 33.4327311 | I26: 65.61423728 | J26: 34.19111177 | K26: 37.13602501 | L26: 66.35359004 | N26: Marine
A27: 21 | G27: 31.23982837 | H27: 33.4327311 | I27: 65.61423728 | J27: 34.19111177 | K27: 37.13602501 | L27: 66.35359004 | N27: Marine
A28: 22 | G28: 31.23982837 | H28: 33.4327311 | I28: 65.61423728 | J28: 34.19111177 | K28: 37.13602501 | L28: 66.35359004 | N28: Marine
A29: 23 | G29: 31.23982837 | H29: 33.4327311 | I29: 65.61423728 | J29: 34.19111177 | K29: 37.13602501 | L29: 66.35359004 | N29: Marine
A30: 24 | G30: 31.23982837 | H30: 33.4327311 | I30: 65.61423728 | J30: 34.19111177 | K30: 37.13602501 | L30: 66.35359004 | N30: Marine
A31: 25 | G31: 31.23982837 | H31: 33.4327311 | I31: 65.61423728 | J31: 34.19111177 | K31: 37.13602501 | L31: 66.35359004 | N31: Marine
A32: 26 | G32: 31.23982837 | H32: 33.4327311 | I32: 65.61423728 | J32: 34.19111177 | K32: 37.13602501 | L32: 66.35359004 | N32: Marine
A33: 27 | G33: 31.23982837 | H33: 33.4327311 | I33: 65.61423728 | J33: 34.19111177 | K33: 37.13602501 | L33: 66.35359004 | N33: Marine
A34: 28 | G34: 31.23982837 | H34: 33.4327311 | I34: 65.61423728 | J34: 34.19111177 | K34: 37.13602501 | L34: 66.35359004 | N34: Marine
A35: 29 | G35: 31.23982837 | H35: 33.4327311 | I35: 65.61423728 | J35: 34.19111177 | K35: 37.13602501 | L35: 66.35359004 | N35: Marine
A36: 30 | G36: 31.23982837 | H36: 33.4327311 | I36: 65.61423728 | J36: 34.19111177 | K36: 37.13602501 | L36: 66.35359004 | N36: Marine
A37: 31 | G37: 31.23982837 | H37: 33.4327311 | I37: 65.61423728 | J37: 34.19111177 | K37: 37.13602501 | L37: 66.35359004 | N37: Marine
A38: 32 | G38: 31.23982837 | H38: 33.4327311 | I38: 65.61423728 | J38: 34.19111177 | K38: 37.13602501 | L38: 66.35359004 | N38: Marine
A39: 33 | G39: 31.23982837 | H39: 33.4327311 | I39: 65.61423728 | J39: 34.19111177 | K39: 37.13602501 | L39: 66.35359004 | N39: Marine
A40: 34 | G40: 31.23982837 | H40: 33.4327311 | I40: 65.61423728 | J40: 34.19111177 | K40: 37.13602501 | L40: 66.35359004 | N40: Marine
A41: 35 | G41: 31.23982837 | H41: 33.4327311 | I41: 65.61423728 | J41: 34.19111177 | K41: 37.13602501 | L41: 66.35359004 | N41: Marine
A42: 36 | G42: 31.23982837 | H42: 33.4327311 | I42: 65.61423728 | J42: 34.19111177 | K42: 37.13602501 | L42: 66.35359004 | N42: Marine
A43: 37 | G43: 31.23982837 | H43: 33.4327311 | I43: 65.61423728 | J43: 34.19111177 | K43: 37.13602501 | L43: 66.35359004 | N43: Marine
A44: 38 | G44: 31.23982837 | H44: 33.4327311 | I44: 65.61423728 | J44: 34.19111177 | K44: 37.13602501 | L44: 66.35359004 | N44: Marine
A45: 39 | G45: 31.23982837 | H45: 33.4327311 | I45: 65.61423728 | J45: 34.19111177 | K45: 37.13602501 | L45: 66.35359004 | N45: Marine
A46: 40 | G46: 31.23982837 | H46: 33.4327311 | I46: 65.61423728 | J46: 34.19111177 | K46: 37.13602501 | L46: 66.35359004 | N46: Marine
A47: 41 | G47: 31.23982837 | H47: 33.4327311 | I47: 65.61423728 | J47: 34.19111177 | K47: 37.13602501 | L47: 66.35359004 | N47: Marine
A48: 42 | G48: 31.23982837 | H48: 33.4327311 | I48: 65.61423728 | J48: 34.19111177 | K48: 37.13602501 | L48: 66.35359004 | N48: Marine
A49: 43 | G49: 31.23982837 | H49: 33.4327311 | I49: 65.61423728 | J49: 34.19111177 | K49: 37.13602501 | L49: 66.35359004 | N49: Marine
A50: 44 | G50: 31.23982837 | H50: 33.4327311 | I50: 65.61423728 | J50: 34.19111177 | K50: 37.13602501 | L50: 66.35359004 | N50: Marine
A51: 45 | G51: 31.23982837 | H51: 33.4327311 | I51: 65.61423728 | J51: 34.19111177 | K51: 37.13602501 | L51: 66.35359004 | N51: Marine
A52: 46 | G52: 31.23982837 | H52: 33.4327311 | I52: 65.61423728 | J52: 34.19111177 | K52: 37.13602501 | L52: 66.35359004 | N52: Marine
A53: 47 | G53: 31.23982837 | H53: 33.4327311 | I53: 65.61423728 | J53: 34.19111177 | K53: 37.13602501 | L53: 66.35359004 | N53: Marine
A54: 48 | G54: 31.23982837 | H54: 33.4327311 | I54: 65.61423728 | J54: 34.19111177 | K54: 37.13602501 | L54: 66.35359004 | N54: Marine
A55: 49 | G55: 31.23982837 | H55: 33.4327311 | I55: 65.61423728 | J55: 34.19111177 | K55: 37.13602501 | L55: 66.35359004 | N55: Marine
A56: 50 | G56: 31.23982837 | H56: 33.4327311 | I56: 65.61423728 | J56: 34.19111177 | K56: 37.13602501 | L56: 66.35359004 | N56: Marine
A57: 51 | G57: 31.23982837 | H57: 33.4327311 | I57: 65.61423728 | J57: 34.19111177 | K57: 37.13602501 | L57: 66.35359004 | N57: Marine
A58: 52 | G58: 31.23982837 | H58: 33.4327311 | I58: 65.61423728 | J58: 34.19111177 | K58: 37.13602501 | L58: 66.35359004 | N58: Marine
A59: 53 | G59: 31.23982837 | H59: 33.4327311 | I59: 65.61423728 | J59: 34.19111177 | K59: 37.13602501 | L59: 66.35359004 | N59: Marine
A60: 54 | G60: 31.23982837 | H60: 33.4327311 | I60: 65.61423728 | J60: 34.19111177 | K60: 37.13602501 | L60: 66.35359004 | N60: Marine
A61: 55 | G61: 31.23982837 | H61: 33.4327311 | I61: 65.61423728 | J61: 34.19111177 | K61: 37.13602501 | L61: 66.35359004 | N61: Marine
A62: 56 | G62: 31.23982837 | H62: 33.4327311 | I62: 65.61423728 | J62: 34.19111177 | K62: 37.13602501 | L62: 66.35359004 | N62: Marine
A63: 57 | G63: 31.23982837 | H63: 33.4327311 | I63: 65.61423728 | J63: 34.19111177 | K63: 37.13602501 | L63: 66.35359004 | N63: Marine
A64: 58 | G64: 31.23982837 | H64: 33.4327311 | I64: 65.61423728 | J64: 34.19111177 | K64: 37.13602501 | L64: 66.35359004 | N64: Marine
A65: 59 | G65: 31.23982837 | H65: 33.4327311 | I65: 65.61423728 | J65: 34.19111177 | K65: 37.13602501 | L65: 66.35359004 | N65: Marine
A66: 60 | G66: 31.23982837 | H66: 33.4327311 | I66: 65.61423728 | J66: 34.19111177 | K66: 37.13602501 | L66: 66.35359004 | N66: Marine
A67: 61 | G67: 31.23982837 | H67: 33.4327311 | I67: 65.61423728 | J67: 34.19111177 | K67: 37.13602501 | L67: 66.35359004 | N67: Marine
A68: 62 | G68: 31.23982837 | H68: 33.4327311 | I68: 65.61423728 | J68: 34.19111177 | K68: 37.13602501 | L68: 66.35359004 | N68: Marine
A69: 63 | G69: 31.23982837 | H69: 33.4327311 | I69: 65.61423728 | J69: 34.19111177 | K69: 37.13602501 | L69: 66.35359004 | N69: Marine
A70: 64 | G70: 31.23982837 | H70: 33.4327311 | I70: 65.61423728 | J70: 34.19111177 | K70: 37.13602501 | L70: 66.35359004 | N70: Marine
A71: 65 | G71: 31.23982837 | H71: 33.4327311 | I71: 65.61423728 | J71: =1.45776613020539E-13*(HOUR($D71)*60+MINUTE($D71))^5-5.56072270585461E-10*(HOUR($D71)*60+MINUTE($D71))^4+7.06833400255548E-07*(HOUR($D71)*60+MINUTE($D71))^3-0.000318788465226261*(HOUR($D71)*60+MINUTE($D71))^2+0.0281711711660364*(HOUR($D71)*60+MINUTE($D71))+34.1911117699055 -> 34.19111177 | K71: 37.13602501 | L71: 66.35359004 | N71: Marine
A72: 66 | G72: =1.18443700433286E-13*(HOUR($D72)*60+MINUTE($D72))^5 - 4.14323598958596E-10*(HOUR($D72)*60+MINUTE($D72))^4 + 4.77287727122539E-07*(HOUR($D72)*60+MINUTE($D72))^3 - 0.000196917585728373*(HOUR($D72)*60+MINUTE($D72))^2 + 0.0231405627601475*(HOUR($D72)*60+MINUTE($D72)) + 31.2398283659495 -> 31.23982837 | H72: =1.98879987167155E-13*(HOUR($D72)*60+MINUTE($D72))^5 - 6.89410992615642E-10*(HOUR($D72)*60+MINUTE($D72))^4 + 7.83730333422071E-07*(HOUR($D72)*60+MINUTE($D72))^3 - 0.00031597890334556*(HOUR($D72)*60+MINUTE($D72))^2 + 0.0355135105918976*(HOUR($D72)*60+MINUTE($D72)) + 33.4327310978006 -> 33.4327311 | I72: =9.08511511657608E-14*(HOUR($D72)*60+MINUTE($D72))^5 - 2.99407211249053E-10*(HOUR($D72)*60+MINUTE($D72))^4 + 3.1560253348998E-07*(HOUR($D72)*60+MINUTE($D72))^3 - 0.000108510891323021*(HOUR($D72)*60+MINUTE($D72))^2 + 0.00628484730145829*(HOUR($D72)*60+MINUTE($D72)) + 65.6142372750764 -> 65.61423728 | J72: 34.19111177 | K72: =1.37090283182826E-13*(HOUR($D72)*60+MINUTE($D72))^5 - 5.04960255463897E-10*(HOUR($D72)*60+MINUTE($D72))^4 + 6.13524315934422E-07*(HOUR($D72)*60+MINUTE($D72))^3 - 0.00025817433468811*(HOUR($D72)*60+MINUTE($D72))^2 + 0.0195966892410979*(HOUR($D72)*60+MINUTE($D72)) + 37.1360250050275 -> 37.13602501 | L72: =7.11895278892582E-14*(HOUR($D72)*60+MINUTE($D72))^5-2.64195273421019E-10*(HOUR($D72)*60+MINUTE($D72))^4 + 3.22473039456213E-07*(HOUR($D72)*60+MINUTE($D72))^3 - 0.00013606873481109*(HOUR($D72)*60+MINUTE($D72))^2 + 0.0107100719720847*(HOUR($D72)*60+MINUTE($D72))+66.3535900428978 -> 66.35359004 | N72: Marine
A73: 67 | G73: 31.23982837 | H73: 33.4327311 | I73: 65.61423728 | J73: 34.19111177 | K73: 37.13602501 | L73: 66.35359004 | N73: Marine
A74: 68 | E74: =IF(OR(ISBLANK($B74),ISBLANK($C74),ISBLANK($D74)),"",IF($C74="Estuary/Marine","Time of day Adjustment not appropriate for marine waters!",IF(OR(CONCATENATE($B74,"-",$C74)="Peninsula-Lake/Wetland",CONCATENATE($B74,"-",$C74)="Everglades-Lake/Wetland"),K74,IF(OR(CONCATENATE($B74,"-",$C74)="Northeast-Lake/Wetland",CONCATENATE($B74,"-",$C74)="Big Bend-Lake/Wetland"),J74,IF(CONCATENATE($B74,"-",$C74)="Panhandle West-Lake/Wetland",L74,IF(OR(CONCATENATE($B74,"-",$C74)="Peninsula-Stream/Canal",CONCATENATE($B74,"-",$C74)="Everglades-Stream/Canal"),H74,IF(OR(CONCATENATE($B74,"-",$C74)="Northeast-Stream/Canal",CONCATENATE($B74,"-",$C74)="Big Bend-Stream/Canal"),G74,IF(CONCATENATE($B74,"-",$C74)="Panhandle West-Stream/Canal",I74,"Error! Check Entries")))))))) ->  | G74: 31.23982837 | H74: 33.4327311 | I74: 65.61423728 | J74: 34.19111177 | K74: 37.13602501 | L74: 66.35359004 | N74: Marine
A75: 69 | G75: 31.23982837 | H75: 33.4327311 | I75: 65.61423728 | J75: 34.19111177 | K75: 37.13602501 | L75: 66.35359004 | N75: Marine
A76: 70 | G76: 31.23982837 | H76: 33.4327311 | I76: 65.61423728 | J76: 34.19111177 | K76: 37.13602501 | L76: 66.35359004 | N76: Marine
A77: 71 | G77: 31.23982837 | H77: 33.4327311 | I77: 65.61423728 | J77: 34.19111177 | K77: 37.13602501 | L77: 66.35359004 | N77: Marine
A78: 72 | G78: 31.23982837 | H78: 33.4327311 | I78: 65.61423728 | J78: 34.19111177 | K78: 37.13602501 | L78: 66.35359004 | N78: Marine
A79: 73 | G79: 31.23982837 | H79: 33.4327311 | I79: 65.61423728 | J79: 34.19111177 | K79: 37.13602501 | L79: 66.35359004 | N79: Marine
A80: 74 | G80: 31.23982837 | H80: 33.4327311 | I80: 65.61423728 | J80: 34.19111177 | K80: 37.13602501 | L80: 66.35359004 | N80: Marine
A81: 75 | G81: 31.23982837 | H81: 33.4327311 | I81: 65.61423728 | J81: 34.19111177 | K81: 37.13602501 | L81: 66.35359004 | N81: Marine
A82: 76 | G82: 31.23982837 | H82: 33.4327311 | I82: 65.61423728 | J82: 34.19111177 | K82: 37.13602501 | L82: 66.35359004 | N82: Marine
A83: 77 | G83: 31.23982837 | H83: 33.4327311 | I83: 65.61423728 | J83: 34.19111177 | K83: 37.13602501 | L83: 66.35359004 | N83: Marine
A84: 78 | G84: 31.23982837 | H84: 33.4327311 | I84: 65.61423728 | J84: 34.19111177 | K84: 37.13602501 | L84: 66.35359004 | N84: Marine
A85: 79 | G85: 31.23982837 | H85: 33.4327311 | I85: 65.61423728 | J85: 34.19111177 | K85: 37.13602501 | L85: 66.35359004 | N85: Marine
A86: 80 | G86: 31.23982837 | H86: 33.4327311 | I86: 65.61423728 | J86: 34.19111177 | K86: 37.13602501 | L86: 66.35359004 | N86: Marine
A87: 81 | G87: 31.23982837 | H87: 33.4327311 | I87: 65.61423728 | J87: 34.19111177 | K87: 37.13602501 | L87: 66.35359004 | N87: Marine
A88: 82 | G88: 31.23982837 | H88: 33.4327311 | I88: 65.61423728 | J88: 34.19111177 | K88: 37.13602501 | L88: 66.35359004 | N88: Marine
A89: 83 | G89: 31.23982837 | H89: 33.4327311 | I89: 65.61423728 | J89: 34.19111177 | K89: 37.13602501 | L89: 66.35359004 | N89: Marine
A90: 84 | G90: 31.23982837 | H90: 33.4327311 | I90: 65.61423728 | J90: 34.19111177 | K90: 37.13602501 | L90: 66.35359004 | N90: Marine
A91: 85 | G91: 31.23982837 | H91: 33.4327311 | I91: 65.61423728 | J91: 34.19111177 | K91: 37.13602501 | L91: 66.35359004 | N91: Marine
A92: 86 | G92: 31.23982837 | H92: 33.4327311 | I92: 65.61423728 | J92: 34.19111177 | K92: 37.13602501 | L92: 66.35359004 | N92: Marine
A93: 87 | G93: 31.23982837 | H93: 33.4327311 | I93: 65.61423728 | J93: 34.19111177 | K93: 37.13602501 | L93: 66.35359004 | N93: Marine
A94: 88 | G94: 31.23982837 | H94: 33.4327311 | I94: 65.61423728 | J94: 34.19111177 | K94: 37.13602501 | L94: 66.35359004 | N94: Marine
A95: 89 | G95: 31.23982837 | H95: 33.4327311 | I95: 65.61423728 | J95: 34.19111177 | K95: 37.13602501 | L95: 66.35359004 | N95: Marine
A96: 90 | G96: 31.23982837 | H96: 33.4327311 | I96: 65.61423728 | J96: 34.19111177 | K96: 37.13602501 | L96: 66.35359004 | N96: Marine
A97: 91 | G97: 31.23982837 | H97: 33.4327311 | I97: 65.61423728 | J97: 34.19111177 | K97: 37.13602501 | L97: 66.35359004 | N97: Marine
A98: 92 | G98: 31.23982837 | H98: 33.4327311 | I98: 65.61423728 | J98: 34.19111177 | K98: 37.13602501 | L98: 66.35359004 | N98: Marine
A99: 93 | G99: 31.23982837 | H99: 33.4327311 | I99: 65.61423728 | J99: 34.19111177 | K99: 37.13602501 | L99: 66.35359004 | N99: Marine
A100: 94 | G100: 31.23982837 | H100: 33.4327311 | I100: 65.61423728 | J100: 34.19111177 | K100: 37.13602501 | L100: 66.35359004 | N100: Marine
A101: 95 | G101: 31.23982837 | H101: 33.4327311 | I101: 65.61423728 | J101: 34.19111177 | K101: 37.13602501 | L101: 66.35359004 | N101: Marine
A102: 96 | G102: 31.23982837 | H102: 33.4327311 | I102: 65.61423728 | J102: 34.19111177 | K102: 37.13602501 | L102: 66.35359004 | N102: Marine
A103: 97 | G103: 31.23982837 | H103: 33.4327311 | I103: 65.61423728 | J103: 34.19111177 | K103: 37.13602501 | L103: 66.35359004 | N103: Marine
A104: 98 | G104: 31.23982837 | H104: 33.4327311 | I104: 65.61423728 | J104: 34.19111177 | K104: 37.13602501 | L104: 66.35359004 | N104: Marine
A105: 99 | G105: 31.23982837 | H105: 33.4327311 | I105: 65.61423728 | J105: 34.19111177 | K105: 37.13602501 | L105: 66.35359004 | N105: Marine
A106: 100 | G106: 31.23982837 | H106: 33.4327311 | I106: 65.61423728 | J106: 34.19111177 | K106: 37.13602501 | L106: 66.35359004 | N106: Marine
A107: 101 | G107: 31.23982837 | H107: 33.4327311 | I107: 65.61423728 | J107: 34.19111177 | K107: 37.13602501 | L107: 66.35359004 | N107: Marine
A108: 102 | G108: 31.23982837 | H108: 33.4327311 | I108: 65.61423728 | J108: 34.19111177 | K108: 37.13602501 | L108: 66.35359004 | N108: Marine
A109: 103 | G109: 31.23982837 | H109: 33.4327311 | I109: 65.61423728 | J109: 34.19111177 | K109: 37.13602501 | L109: 66.35359004 | N109: Marine
A110: 104 | G110: 31.23982837 | H110: 33.4327311 | I110: 65.61423728 | J110: 34.19111177 | K110: 37.13602501 | L110: 66.35359004 | N110: Marine
A111: 105 | G111: 31.23982837 | H111: 33.4327311 | I111: 65.61423728 | J111: 34.19111177 | K111: 37.13602501 | L111: 66.35359004 | N111: Marine
A112: 106 | G112: 31.23982837 | H112: 33.4327311 | I112: 65.61423728 | J112: 34.19111177 | K112: 37.13602501 | L112: 66.35359004 | N112: Marine
A113: 107 | G113: 31.23982837 | H113: 33.4327311 | I113: 65.61423728 | J113: 34.19111177 | K113: 37.13602501 | L113: 66.35359004 | N113: Marine
A114: 108 | G114: 31.23982837 | H114: 33.4327311 | I114: 65.61423728 | J114: 34.19111177 | K114: 37.13602501 | L114: 66.35359004 | N114: Marine
A115: 109 | G115: 31.23982837 | H115: 33.4327311 | I115: 65.61423728 | J115: 34.19111177 | K115: 37.13602501 | L115: 66.35359004 | N115: Marine
A116: 110 | G116: 31.23982837 | H116: 33.4327311 | I116: 65.61423728 | J116: 34.19111177 | K116: 37.13602501 | L116: 66.35359004 | N116: Marine
A117: 111 | G117: 31.23982837 | H117: 33.4327311 | I117: 65.61423728 | J117: 34.19111177 | K117: 37.13602501 | L117: 66.35359004 | N117: Marine
A118: 112 | G118: 31.23982837 | H118: 33.4327311 | I118: 65.61423728 | J118: 34.19111177 | K118: 37.13602501 | L118: 66.35359004 | N118: Marine
A119: 113 | G119: 31.23982837 | H119: 33.4327311 | I119: 65.61423728 | J119: 34.19111177 | K119: 37.13602501 | L119: 66.35359004 | N119: Marine
A120: 114 | G120: 31.23982837 | H120: 33.4327311 | I120: 65.61423728 | J120: 34.19111177 | K120: 37.13602501 | L120: 66.35359004 | N120: Marine
A121: 115 | G121: 31.23982837 | H121: 33.4327311 | I121: 65.61423728 | J121: 34.19111177 | K121: 37.13602501 | L121: 66.35359004 | N121: Marine
A122: 116 | G122: 31.23982837 | H122: 33.4327311 | I122: 65.61423728 | J122: 34.19111177 | K122: 37.13602501 | L122: 66.35359004 | N122: Marine
A123: 117 | G123: 31.23982837 | H123: 33.4327311 | I123: 65.61423728 | J123: 34.19111177 | K123: 37.13602501 | L123: 66.35359004 | N123: Marine
A124: 118 | G124: 31.23982837 | H124: 33.4327311 | I124: 65.61423728 | J124: 34.19111177 | K124: 37.13602501 | L124: 66.35359004 | N124: Marine
A125: 119 | G125: 31.23982837 | H125: 33.4327311 | I125: 65.61423728 | J125: 34.19111177 | K125: 37.13602501 | L125: 66.35359004 | N125: Marine
A126: 120 | G126: 31.23982837 | H126: 33.4327311 | I126: 65.61423728 | J126: 34.19111177 | K126: 37.13602501 | L126: 66.35359004 | N126: Marine
A127: 121 | G127: 31.23982837 | H127: 33.4327311 | I127: 65.61423728 | J127: 34.19111177 | K127: 37.13602501 | L127: 66.35359004 | N127: Marine
A128: 122 | G128: 31.23982837 | H128: 33.4327311 | I128: 65.61423728 | J128: 34.19111177 | K128: 37.13602501 | L128: 66.35359004 | N128: Marine
A129: 123 | G129: 31.23982837 | H129: 33.4327311 | I129: 65.61423728 | J129: 34.19111177 | K129: 37.13602501 | L129: 66.35359004 | N129: Marine
A130: 124 | G130: 31.23982837 | H130: 33.4327311 | I130: 65.61423728 | J130: 34.19111177 | K130: 37.13602501 | L130: 66.35359004 | N130: Marine
A131: 125 | G131: 31.23982837 | H131: 33.4327311 | I131: 65.61423728 | J131: 34.19111177 | K131: 37.13602501 | L131: 66.35359004 | N131: Marine
A132: 126 | G132: 31.23982837 | H132: 33.4327311 | I132: 65.61423728 | J132: 34.19111177 | K132: 37.13602501 | L132: 66.35359004 | N132: Marine
A133: 127 | G133: 31.23982837 | H133: 33.4327311 | I133: 65.61423728 | J133: 34.19111177 | K133: 37.13602501 | L133: 66.35359004 | N133: Marine
A134: 128 | G134: 31.23982837 | H134: 33.4327311 | I134: 65.61423728 | J134: 34.19111177 | K134: 37.13602501 | L134: 66.35359004 | N134: Marine
A135: 129 | G135: 31.23982837 | H135: 33.4327311 | I135: 65.61423728 | J135: =1.45776613020539E-13*(HOUR($D135)*60+MINUTE($D135))^5-5.56072270585461E-10*(HOUR($D135)*60+MINUTE($D135))^4+7.06833400255548E-07*(HOUR($D135)*60+MINUTE($D135))^3-0.000318788465226261*(HOUR($D135)*60+MINUTE($D135))^2+0.0281711711660364*(HOUR($D135)*60+MINUTE($D135))+34.1911117699055 -> 34.19111177 | K135: 37.13602501 | L135: 66.35359004 | N135: Marine
A136: 130 | G136: =1.18443700433286E-13*(HOUR($D136)*60+MINUTE($D136))^5 - 4.14323598958596E-10*(HOUR($D136)*60+MINUTE($D136))^4 + 4.77287727122539E-07*(HOUR($D136)*60+MINUTE($D136))^3 - 0.000196917585728373*(HOUR($D136)*60+MINUTE($D136))^2 + 0.0231405627601475*(HOUR($D136)*60+MINUTE($D136)) + 31.2398283659495 -> 31.23982837 | H136: =1.98879987167155E-13*(HOUR($D136)*60+MINUTE($D136))^5 - 6.89410992615642E-10*(HOUR($D136)*60+MINUTE($D136))^4 + 7.83730333422071E-07*(HOUR($D136)*60+MINUTE($D136))^3 - 0.00031597890334556*(HOUR($D136)*60+MINUTE($D136))^2 + 0.0355135105918976*(HOUR($D136)*60+MINUTE($D136)) + 33.4327310978006 -> 33.4327311 | I136: =9.08511511657608E-14*(HOUR($D136)*60+MINUTE($D136))^5 - 2.99407211249053E-10*(HOUR($D136)*60+MINUTE($D136))^4 + 3.1560253348998E-07*(HOUR($D136)*60+MINUTE($D136))^3 - 0.000108510891323021*(HOUR($D136)*60+MINUTE($D136))^2 + 0.00628484730145829*(HOUR($D136)*60+MINUTE($D136)) + 65.6142372750764 -> 65.61423728 | J136: 34.19111177 | K136: =1.37090283182826E-13*(HOUR($D136)*60+MINUTE($D136))^5 - 5.04960255463897E-10*(HOUR($D136)*60+MINUTE($D136))^4 + 6.13524315934422E-07*(HOUR($D136)*60+MINUTE($D136))^3 - 0.00025817433468811*(HOUR($D136)*60+MINUTE($D136))^2 + 0.0195966892410979*(HOUR($D136)*60+MINUTE($D136)) + 37.1360250050275 -> 37.13602501 | L136: =7.11895278892582E-14*(HOUR($D136)*60+MINUTE($D136))^5-2.64195273421019E-10*(HOUR($D136)*60+MINUTE($D136))^4 + 3.22473039456213E-07*(HOUR($D136)*60+MINUTE($D136))^3 - 0.00013606873481109*(HOUR($D136)*60+MINUTE($D136))^2 + 0.0107100719720847*(HOUR($D136)*60+MINUTE($D136))+66.3535900428978 -> 66.35359004 | N136: Marine
A137: 131 | G137: 31.23982837 | H137: 33.4327311 | I137: 65.61423728 | J137: 34.19111177 | K137: 37.13602501 | L137: 66.35359004 | N137: Marine
A138: 132 | E138: =IF(OR(ISBLANK($B138),ISBLANK($C138),ISBLANK($D138)),"",IF($C138="Estuary/Marine","Time of day Adjustment not appropriate for marine waters!",IF(OR(CONCATENATE($B138,"-",$C138)="Peninsula-Lake/Wetland",CONCATENATE($B138,"-",$C138)="Everglades-Lake/Wetland"),K138,IF(OR(CONCATENATE($B138,"-",$C138)="Northeast-Lake/Wetland",CONCATENATE($B138,"-",$C138)="Big Bend-Lake/Wetland"),J138,IF(CONCATENATE($B138,"-",$C138)="Panhandle West-Lake/Wetland",L138,IF(OR(CONCATENATE($B138,"-",$C138)="Peninsula-Stream/Canal",CONCATENATE($B138,"-",$C138)="Everglades-Stream/Canal"),H138,IF(OR(CONCATENATE($B138,"-",$C138)="Northeast-Stream/Canal",CONCATENATE($B138,"-",$C138)="Big Bend-Stream/Canal"),G138,IF(CONCATENATE($B138,"-",$C138)="Panhandle West-Stream/Canal",I138,"Error! Check Entries")))))))) ->  | G138: 31.23982837 | H138: 33.4327311 | I138: 65.61423728 | J138: 34.19111177 | K138: 37.13602501 | L138: 66.35359004 | N138: Marine
A139: 133 | G139: 31.23982837 | H139: 33.4327311 | I139: 65.61423728 | J139: 34.19111177 | K139: 37.13602501 | L139: 66.35359004 | N139: Marine
A140: 134 | G140: 31.23982837 | H140: 33.4327311 | I140: 65.61423728 | J140: 34.19111177 | K140: 37.13602501 | L140: 66.35359004 | N140: Marine
A141: 135 | G141: 31.23982837 | H141: 33.4327311 | I141: 65.61423728 | J141: 34.19111177 | K141: 37.13602501 | L141: 66.35359004 | N141: Marine
A142: 136 | G142: 31.23982837 | H142: 33.4327311 | I142: 65.61423728 | J142: 34.19111177 | K142: 37.13602501 | L142: 66.35359004 | N142: Marine
A143: 137 | G143: 31.23982837 | H143: 33.4327311 | I143: 65.61423728 | J143: 34.19111177 | K143: 37.13602501 | L143: 66.35359004 | N143: Marine
A144: 138 | G144: 31.23982837 | H144: 33.4327311 | I144: 65.61423728 | J144: 34.19111177 | K144: 37.13602501 | L144: 66.35359004 | N144: Marine
A145: 139 | G145: 31.23982837 | H145: 33.4327311 | I145: 65.61423728 | J145: 34.19111177 | K145: 37.13602501 | L145: 66.35359004 | N145: Marine
A146: 140 | G146: 31.23982837 | H146: 33.4327311 | I146: 65.61423728 | J146: 34.19111177 | K146: 37.13602501 | L146: 66.35359004 | N146: Marine
A147: 141 | G147: 31.23982837 | H147: 33.4327311 | I147: 65.61423728 | J147: 34.19111177 | K147: 37.13602501 | L147: 66.35359004 | N147: Marine
A148: 142 | G148: 31.23982837 | H148: 33.4327311 | I148: 65.61423728 | J148: 34.19111177 | K148: 37.13602501 | L148: 66.35359004 | N148: Marine
A149: 143 | G149: 31.23982837 | H149: 33.4327311 | I149: 65.61423728 | J149: 34.19111177 | K149: 37.13602501 | L149: 66.35359004 | N149: Marine
A150: 144 | G150: 31.23982837 | H150: 33.4327311 | I150: 65.61423728 | J150: 34.19111177 | K150: 37.13602501 | L150: 66.35359004 | N150: Marine
A151: 145 | G151: 31.23982837 | H151: 33.4327311 | I151: 65.61423728 | J151: 34.19111177 | K151: 37.13602501 | L151: 66.35359004 | N151: Marine
A152: 146 | G152: 31.23982837 | H152: 33.4327311 | I152: 65.61423728 | J152: 34.19111177 | K152: 37.13602501 | L152: 66.35359004 | N152: Marine
A153: 147 | G153: 31.23982837 | H153: 33.4327311 | I153: 65.61423728 | J153: 34.19111177 | K153: 37.13602501 | L153: 66.35359004 | N153: Marine
A154: 148 | G154: 31.23982837 | H154: 33.4327311 | I154: 65.61423728 | J154: 34.19111177 | K154: 37.13602501 | L154: 66.35359004 | N154: Marine
A155: 149 | G155: 31.23982837 | H155: 33.4327311 | I155: 65.61423728 | J155: 34.19111177 | K155: 37.13602501 | L155: 66.35359004 | N155: Marine
A156: 150 | G156: 31.23982837 | H156: 33.4327311 | I156: 65.61423728 | J156: 34.19111177 | K156: 37.13602501 | L156: 66.35359004 | N156: Marine
A157: 151 | G157: 31.23982837 | H157: 33.4327311 | I157: 65.61423728 | J157: 34.19111177 | K157: 37.13602501 | L157: 66.35359004 | N157: Marine
A158: 152 | G158: 31.23982837 | H158: 33.4327311 | I158: 65.61423728 | J158: 34.19111177 | K158: 37.13602501 | L158: 66.35359004 | N158: Marine
A159: 153 | G159: 31.23982837 | H159: 33.4327311 | I159: 65.61423728 | J159: 34.19111177 | K159: 37.13602501 | L159: 66.35359004 | N159: Marine
A160: 154 | G160: 31.23982837 | H160: 33.4327311 | I160: 65.61423728 | J160: 34.19111177 | K160: 37.13602501 | L160: 66.35359004 | N160: Marine
A161: 155 | G161: 31.23982837 | H161: 33.4327311 | I161: 65.61423728 | J161: 34.19111177 | K161: 37.13602501 | L161: 66.35359004 | N161: Marine
A162: 156 | G162: 31.23982837 | H162: 33.4327311 | I162: 65.61423728 | J162: 34.19111177 | K162: 37.13602501 | L162: 66.35359004 | N162: Marine
A163: 157 | G163: 31.23982837 | H163: 33.4327311 | I163: 65.61423728 | J163: 34.19111177 | K163: 37.13602501 | L163: 66.35359004 | N163: Marine
A164: 158 | G164: 31.23982837 | H164: 33.4327311 | I164: 65.61423728 | J164: 34.19111177 | K164: 37.13602501 | L164: 66.35359004 | N164: Marine
A165: 159 | G165: 31.23982837 | H165: 33.4327311 | I165: 65.61423728 | J165: 34.19111177 | K165: 37.13602501 | L165: 66.35359004 | N165: Marine
A166: 160 | G166: 31.23982837 | H166: 33.4327311 | I166: 65.61423728 | J166: 34.19111177 | K166: 37.13602501 | L166: 66.35359004 | N166: Marine
A167: 161 | G167: 31.23982837 | H167: 33.4327311 | I167: 65.61423728 | J167: 34.19111177 | K167: 37.13602501 | L167: 66.35359004 | N167: Marine
A168: 162 | G168: 31.23982837 | H168: 33.4327311 | I168: 65.61423728 | J168: 34.19111177 | K168: 37.13602501 | L168: 66.35359004 | N168: Marine
A169: 163 | G169: 31.23982837 | H169: 33.4327311 | I169: 65.61423728 | J169: 34.19111177 | K169: 37.13602501 | L169: 66.35359004 | N169: Marine
A170: 164 | G170: 31.23982837 | H170: 33.4327311 | I170: 65.61423728 | J170: 34.19111177 | K170: 37.13602501 | L170: 66.35359004 | N170: Marine
A171: 165 | G171: 31.23982837 | H171: 33.4327311 | I171: 65.61423728 | J171: 34.19111177 | K171: 37.13602501 | L171: 66.35359004 | N171: Marine
A172: 166 | G172: 31.23982837 | H172: 33.4327311 | I172: 65.61423728 | J172: 34.19111177 | K172: 37.13602501 | L172: 66.35359004 | N172: Marine
A173: 167 | G173: 31.23982837 | H173: 33.4327311 | I173: 65.61423728 | J173: 34.19111177 | K173: 37.13602501 | L173: 66.35359004 | N173: Marine
A174: 168 | G174: 31.23982837 | H174: 33.4327311 | I174: 65.61423728 | J174: 34.19111177 | K174: 37.13602501 | L174: 66.35359004 | N174: Marine
A175: 169 | G175: 31.23982837 | H175: 33.4327311 | I175: 65.61423728 | J175: 34.19111177 | K175: 37.13602501 | L175: 66.35359004 | N175: Marine
A176: 170 | G176: 31.23982837 | H176: 33.4327311 | I176: 65.61423728 | J176: 34.19111177 | K176: 37.13602501 | L176: 66.35359004 | N176: Marine
A177: 171 | G177: 31.23982837 | H177: 33.4327311 | I177: 65.61423728 | J177: 34.19111177 | K177: 37.13602501 | L177: 66.35359004 | N177: Marine
A178: 172 | G178: 31.23982837 | H178: 33.4327311 | I178: 65.61423728 | J178: 34.19111177 | K178: 37.13602501 | L178: 66.35359004 | N178: Marine
A179: 173 | G179: 31.23982837 | H179: 33.4327311 | I179: 65.61423728 | J179: 34.19111177 | K179: 37.13602501 | L179: 66.35359004 | N179: Marine
A180: 174 | G180: 31.23982837 | H180: 33.4327311 | I180: 65.61423728 | J180: 34.19111177 | K180: 37.13602501 | L180: 66.35359004 | N180: Marine
A181: 175 | G181: 31.23982837 | H181: 33.4327311 | I181: 65.61423728 | J181: 34.19111177 | K181: 37.13602501 | L181: 66.35359004 | N181: Marine
A182: 176 | G182: 31.23982837 | H182: 33.4327311 | I182: 65.61423728 | J182: 34.19111177 | K182: 37.13602501 | L182: 66.35359004 | N182: Marine
A183: 177 | G183: 31.23982837 | H183: 33.4327311 | I183: 65.61423728 | J183: 34.19111177 | K183: 37.13602501 | L183: 66.35359004 | N183: Marine
A184: 178 | G184: 31.23982837 | H184: 33.4327311 | I184: 65.61423728 | J184: 34.19111177 | K184: 37.13602501 | L184: 66.35359004 | N184: Marine
A185: 179 | G185: 31.23982837 | H185: 33.4327311 | I185: 65.61423728 | J185: 34.19111177 | K185: 37.13602501 | L185: 66.35359004 | N185: Marine
A186: 180 | G186: 31.23982837 | H186: 33.4327311 | I186: 65.61423728 | J186: 34.19111177 | K186: 37.13602501 | L186: 66.35359004 | N186: Marine
A187: 181 | G187: 31.23982837 | H187: 33.4327311 | I187: 65.61423728 | J187: 34.19111177 | K187: 37.13602501 | L187: 66.35359004 | N187: Marine
A188: 182 | G188: 31.23982837 | H188: 33.4327311 | I188: 65.61423728 | J188: 34.19111177 | K188: 37.13602501 | L188: 66.35359004 | N188: Marine
A189: 183 | G189: 31.23982837 | H189: 33.4327311 | I189: 65.61423728 | J189: 34.19111177 | K189: 37.13602501 | L189: 66.35359004 | N189: Marine
A190: 184 | G190: 31.23982837 | H190: 33.4327311 | I190: 65.61423728 | J190: 34.19111177 | K190: 37.13602501 | L190: 66.35359004 | N190: Marine
A191: 185 | G191: 31.23982837 | H191: 33.4327311 | I191: 65.61423728 | J191: 34.19111177 | K191: 37.13602501 | L191: 66.35359004 | N191: Marine
A192: 186 | G192: 31.23982837 | H192: 33.4327311 | I192: 65.61423728 | J192: 34.19111177 | K192: 37.13602501 | L192: 66.35359004 | N192: Marine
A193: 187 | G193: 31.23982837 | H193: 33.4327311 | I193: 65.61423728 | J193: 34.19111177 | K193: 37.13602501 | L193: 66.35359004 | N193: Marine
A194: 188 | G194: 31.23982837 | H194: 33.4327311 | I194: 65.61423728 | J194: 34.19111177 | K194: 37.13602501 | L194: 66.35359004 | N194: Marine
A195: 189 | G195: 31.23982837 | H195: 33.4327311 | I195: 65.61423728 | J195: 34.19111177 | K195: 37.13602501 | L195: 66.35359004 | N195: Marine
A196: 190 | G196: 31.23982837 | H196: 33.4327311 | I196: 65.61423728 | J196: 34.19111177 | K196: 37.13602501 | L196: 66.35359004 | N196: Marine
A197: 191 | G197: 31.23982837 | H197: 33.4327311 | I197: 65.61423728 | J197: 34.19111177 | K197: 37.13602501 | L197: 66.35359004 | N197: Marine
A198: 192 | G198: 31.23982837 | H198: 33.4327311 | I198: 65.61423728 | J198: 34.19111177 | K198: 37.13602501 | L198: 66.35359004 | N198: Marine
A199: 193 | G199: 31.23982837 | H199: 33.4327311 | I199: 65.61423728 | J199: =1.45776613020539E-13*(HOUR($D199)*60+MINUTE($D199))^5-5.56072270585461E-10*(HOUR($D199)*60+MINUTE($D199))^4+7.06833400255548E-07*(HOUR($D199)*60+MINUTE($D199))^3-0.000318788465226261*(HOUR($D199)*60+MINUTE($D199))^2+0.0281711711660364*(HOUR($D199)*60+MINUTE($D199))+34.1911117699055 -> 34.19111177 | K199: 37.13602501 | L199: 66.35359004 | N199: Marine
A200: 194 | G200: =1.18443700433286E-13*(HOUR($D200)*60+MINUTE($D200))^5 - 4.14323598958596E-10*(HOUR($D200)*60+MINUTE($D200))^4 + 4.77287727122539E-07*(HOUR($D200)*60+MINUTE($D200))^3 - 0.000196917585728373*(HOUR($D200)*60+MINUTE($D200))^2 + 0.0231405627601475*(HOUR($D200)*60+MINUTE($D200)) + 31.2398283659495 -> 31.23982837 | H200: =1.98879987167155E-13*(HOUR($D200)*60+MINUTE($D200))^5 - 6.89410992615642E-10*(HOUR($D200)*60+MINUTE($D200))^4 + 7.83730333422071E-07*(HOUR($D200)*60+MINUTE($D200))^3 - 0.00031597890334556*(HOUR($D200)*60+MINUTE($D200))^2 + 0.0355135105918976*(HOUR($D200)*60+MINUTE($D200)) + 33.4327310978006 -> 33.4327311 | I200: =9.08511511657608E-14*(HOUR($D200)*60+MINUTE($D200))^5 - 2.99407211249053E-10*(HOUR($D200)*60+MINUTE($D200))^4 + 3.1560253348998E-07*(HOUR($D200)*60+MINUTE($D200))^3 - 0.000108510891323021*(HOUR($D200)*60+MINUTE($D200))^2 + 0.00628484730145829*(HOUR($D200)*60+MINUTE($D200)) + 65.6142372750764 -> 65.61423728 | J200: 34.19111177 | K200: =1.37090283182826E-13*(HOUR($D200)*60+MINUTE($D200))^5 - 5.04960255463897E-10*(HOUR($D200)*60+MINUTE($D200))^4 + 6.13524315934422E-07*(HOUR($D200)*60+MINUTE($D200))^3 - 0.00025817433468811*(HOUR($D200)*60+MINUTE($D200))^2 + 0.0195966892410979*(HOUR($D200)*60+MINUTE($D200)) + 37.1360250050275 -> 37.13602501 | L200: =7.11895278892582E-14*(HOUR($D200)*60+MINUTE($D200))^5-2.64195273421019E-10*(HOUR($D200)*60+MINUTE($D200))^4 + 3.22473039456213E-07*(HOUR($D200)*60+MINUTE($D200))^3 - 0.00013606873481109*(HOUR($D200)*60+MINUTE($D200))^2 + 0.0107100719720847*(HOUR($D200)*60+MINUTE($D200))+66.3535900428978 -> 66.35359004 | N200: Marine
... 1307 more rows

Sheet Time of Day Interpret & Assess
A1: Time-of-Day Interpreter for Florida's Freshwater DO Criteria!
A2: To use: 1) Enter measured % DO Saturation (i.e., from instantaneous measurement, not daily average calculated from diel data) 2) Choose SCI Bioregion and Waterbody Type from Drop-down lists. 3) Then enter local time that the DO saturation measurement was taken in 24 hour format (e.g., 16:10). Note: The time-of-day interpretion is only applicable for freshwaters! | P2: Bioregions | Q2: Waterbody Type
A3: Unshaded (white) fields (Columns A - E) are for data entry. Additional notes are embedded as comments in the heading for each column, please review!
A4: Yellow shaded cells (Columns F and G) are the result fields and are protected from change. Do Not Attempt to Change These Fields! | P4: Big Bend | Q4: Stream/Canal
A5: Sample | B5: Measured DO Saturation, % | C5: SCI-2012 Bioregion | D5: Waterbody Type | E5: Time-of-day Sample Collected (local time) | F5: Time-of-day Interpretation of Criteria, % | G5: DO Saturation Criteria Achieved | I5: Streams | L5: Lakes | P5: Everglades | Q5: Lake/Wetland
D6: (e.g., Lake or Stream) | E6: (24 hr format, 23:15) | I6: Northeast + Big Bend | J6: Peninsula + Everglades | K6: Panhandle West | L6: Northeast + Big Bend | M6: Peninsula + Everglades | N6: Panhandle West | P6: Northeast | Q6: Estuary/Marine
A7: 1 | B7: 38.85 | C7: Peninsula | D7: Lake/Wetland | E7: 16:44:00 | F7: =IF(AND(ISBLANK($B7),ISBLANK($C7),ISBLANK($D7),ISBLANK($E7)),"",IF(OR(ISBLANK($B7),ISBLANK($C7),ISBLANK($D7),ISBLANK($E7)),"Enter all required values",IF($D7="Estuary/Marine","Time of day Adjustment not appropriate for marine waters!",IF(OR(CONCATENATE($C7,"-",$D7)="Peninsula-Lake/Wetland",CONCATENATE($C7,"-",$D7)="Everglades-Lake/Wetland"),M7,IF(OR(CONCATENATE($C7,"-",$D7)="Northeast-Lake/Wetland",CONCATENATE($C7,"-",$D7)="Big Bend-Lake/Wetland"),L7,IF(CONCATENATE($C7,"-",$D7)="Panhandle West-Lake/Wetland",N7,IF(OR(CONCATENATE($C7,"-",$D7)="Peninsula-Stream/Canal",CONCATENATE($C7,"-",$D7)="Everglades-Stream/Canal"),J7,IF(OR(CONCATENATE($C7,"-",$D7)="Northeast-Stream/Canal",CONCATENATE($C7,"-",$D7)="Big Bend-Stream/Canal"),I7,IF(CONCATENATE($C7,"-",$D7)="Panhandle West-Stream/Canal",K7,"Error! Check Entries"))))))))) -> 44.24922308 | G7: =IF(AND(ISBLANK(B7),NOT(ISNUMBER(F7))),"",IF(ISBLANK(B7),"Measured DO Saturation Not entered!",IF(ISNUMBER(F7),IF(B7<F7,"No","Yes"),"Enter all required values!"))) -> No | I7: =1.18443700433286E-13*(HOUR($E7)*60+MINUTE($E7))^5 - 4.14323598958596E-10*(HOUR($E7)*60+MINUTE($E7))^4 + 4.77287727122539E-07*(HOUR($E7)*60+MINUTE($E7))^3 - 0.000196917585728373*(HOUR($E7)*60+MINUTE($E7))^2 + 0.0231405627601475*(HOUR($E7)*60+MINUTE($E7)) + 31.2398283659495 -> 38.8539401 | J7: =1.98879987167155E-13*(HOUR($E7)*60+MINUTE($E7))^5 - 6.89410992615642E-10*(HOUR($E7)*60+MINUTE($E7))^4 + 7.83730333422071E-07*(HOUR($E7)*60+MINUTE($E7))^3 - 0.00031597890334556*(HOUR($E7)*60+MINUTE($E7))^2 + 0.0355135105918976*(HOUR($E7)*60+MINUTE($E7)) + 33.4327310978006 -> 46.13087876 | K7: =9.08511511657608E-14*(HOUR($E7)*60+MINUTE($E7))^5 - 2.99407211249053E-10*(HOUR($E7)*60+MINUTE($E7))^4 + 3.1560253348998E-07*(HOUR($E7)*60+MINUTE($E7))^3 - 0.000108510891323021*(HOUR($E7)*60+MINUTE($E7))^2 + 0.00628484730145829*(HOUR($E7)*60+MINUTE($E7)) + 65.6142372750764 -> 70.40466454 | L7: =1.45776613020539E-13*(HOUR($E7)*60+MINUTE($E7))^5-5.56072270585461E-10*(HOUR($E7)*60+MINUTE($E7))^4+7.06833400255548E-07*(HOUR($E7)*60+MINUTE($E7))^3-0.000318788465226261*(HOUR($E7)*60+MINUTE($E7))^2+0.0281711711660364*(HOUR($E7)*60+MINUTE($E7))+34.1911117699055 -> 40.17307903 | M7: =1.37090283182826E-13*(HOUR($E7)*60+MINUTE($E7))^5 - 5.04960255463897E-10*(HOUR($E7)*60+MINUTE($E7))^4 + 6.13524315934422E-07*(HOUR($E7)*60+MINUTE($E7))^3 - 0.00025817433468811*(HOUR($E7)*60+MINUTE($E7))^2 + 0.0195966892410979*(HOUR($E7)*60+MINUTE($E7)) + 37.1360250050275 -> 44.24922308 | N7: =7.11895278892582E-14*(HOUR($E7)*60+MINUTE($E7))^5-2.64195273421019E-10*(HOUR($E7)*60+MINUTE($E7))^4 + 3.22473039456213E-07*(HOUR($E7)*60+MINUTE($E7))^3 - 0.00013606873481109*(HOUR($E7)*60+MINUTE($E7))^2 + 0.0107100719720847*(HOUR($E7)*60+MINUTE($E7))+66.3535900428978 -> 70.48218197 | P7: Panhandle West
A8: 2 | B8: 44.2 | C8: Northeast | D8: Stream/Canal | E8: 11:11:00 | F8: =IF(AND(ISBLANK($B8),ISBLANK($C8),ISBLANK($D8),ISBLANK($E8)),"",IF(OR(ISBLANK($B8),ISBLANK($C8),ISBLANK($D8),ISBLANK($E8)),"Enter all required values",IF($D8="Estuary/Marine","Time of day Adjustment not appropriate for marine waters!",IF(OR(CONCATENATE($C8,"-",$D8)="Peninsula-Lake/Wetland",CONCATENATE($C8,"-",$D8)="Everglades-Lake/Wetland"),M8,IF(OR(CONCATENATE($C8,"-",$D8)="Northeast-Lake/Wetland",CONCATENATE($C8,"-",$D8)="Big Bend-Lake/Wetland"),L8,IF(CONCATENATE($C8,"-",$D8)="Panhandle West-Lake/Wetland",N8,IF(OR(CONCATENATE($C8,"-",$D8)="Peninsula-Stream/Canal",CONCATENATE($C8,"-",$D8)="Everglades-Stream/Canal"),J8,IF(OR(CONCATENATE($C8,"-",$D8)="Northeast-Stream/Canal",CONCATENATE($C8,"-",$D8)="Big Bend-Stream/Canal"),I8,IF(CONCATENATE($C8,"-",$D8)="Panhandle West-Stream/Canal",K8,"Error! Check Entries"))))))))) -> 34.42164431 | G8: =IF(AND(ISBLANK(B8),NOT(ISNUMBER(F8))),"",IF(ISBLANK(B8),"Measured DO Saturation Not entered!",IF(ISNUMBER(F8),IF(B8<F8,"No","Yes"),"Enter all required values!"))) -> Yes | I8: =1.18443700433286E-13*(HOUR($E8)*60+MINUTE($E8))^5 - 4.14323598958596E-10*(HOUR($E8)*60+MINUTE($E8))^4 + 4.77287727122539E-07*(HOUR($E8)*60+MINUTE($E8))^3 - 0.000196917585728373*(HOUR($E8)*60+MINUTE($E8))^2 + 0.0231405627601475*(HOUR($E8)*60+MINUTE($E8)) + 31.2398283659495 -> 34.42164431 | J8: =1.98879987167155E-13*(HOUR($E8)*60+MINUTE($E8))^5 - 6.89410992615642E-10*(HOUR($E8)*60+MINUTE($E8))^4 + 7.83730333422071E-07*(HOUR($E8)*60+MINUTE($E8))^3 - 0.00031597890334556*(HOUR($E8)*60+MINUTE($E8))^2 + 0.0355135105918976*(HOUR($E8)*60+MINUTE($E8)) + 33.4327310978006 -> 39.06672017 | K8: =9.08511511657608E-14*(HOUR($E8)*60+MINUTE($E8))^5 - 2.99407211249053E-10*(HOUR($E8)*60+MINUTE($E8))^4 + 3.1560253348998E-07*(HOUR($E8)*60+MINUTE($E8))^3 - 0.000108510891323021*(HOUR($E8)*60+MINUTE($E8))^2 + 0.00628484730145829*(HOUR($E8)*60+MINUTE($E8)) + 65.6142372750764 -> 67.98547319 | L8: 30.20868276 | M8: =1.37090283182826E-13*(HOUR($E8)*60+MINUTE($E8))^5 - 5.04960255463897E-10*(HOUR($E8)*60+MINUTE($E8))^4 + 6.13524315934422E-07*(HOUR($E8)*60+MINUTE($E8))^3 - 0.00025817433468811*(HOUR($E8)*60+MINUTE($E8))^2 + 0.0195966892410979*(HOUR($E8)*60+MINUTE($E8)) + 37.1360250050275 -> 35.68104915 | N8: =7.11895278892582E-14*(HOUR($E8)*60+MINUTE($E8))^5-2.64195273421019E-10*(HOUR($E8)*60+MINUTE($E8))^4 + 3.22473039456213E-07*(HOUR($E8)*60+MINUTE($E8))^3 - 0.00013606873481109*(HOUR($E8)*60+MINUTE($E8))^2 + 0.0107100719720847*(HOUR($E8)*60+MINUTE($E8))+66.3535900428978 -> 65.82576341 | P8: Peninsula
A9: 3 | F9: =IF(AND(ISBLANK($B9),ISBLANK($C9),ISBLANK($D9),ISBLANK($E9)),"",IF(OR(ISBLANK($B9),ISBLANK($C9),ISBLANK($D9),ISBLANK($E9)),"Enter all required values",IF($D9="Estuary/Marine","Time of day Adjustment not appropriate for marine waters!",IF(OR(CONCATENATE($C9,"-",$D9)="Peninsula-Lake/Wetland",CONCATENATE($C9,"-",$D9)="Everglades-Lake/Wetland"),M9,IF(OR(CONCATENATE($C9,"-",$D9)="Northeast-Lake/Wetland",CONCATENATE($C9,"-",$D9)="Big Bend-Lake/Wetland"),L9,IF(CONCATENATE($C9,"-",$D9)="Panhandle West-Lake/Wetland",N9,IF(OR(CONCATENATE($C9,"-",$D9)="Peninsula-Stream/Canal",CONCATENATE($C9,"-",$D9)="Everglades-Stream/Canal"),J9,IF(OR(CONCATENATE($C9,"-",$D9)="Northeast-Stream/Canal",CONCATENATE($C9,"-",$D9)="Big Bend-Stream/Canal"),I9,IF(CONCATENATE($C9,"-",$D9)="Panhandle West-Stream/Canal",K9,"Error! Check Entries"))))))))) ->  | I9: 31.23982837 | J9: 33.4327311 | K9: 65.61423728 | L9: 34.19111177 | M9: 37.13602501 | N9: 66.35359004 | P9: Marine
A10: 4 | I10: 31.23982837 | J10: 33.4327311 | K10: 65.61423728 | L10: 34.19111177 | M10: 37.13602501 | N10: 66.35359004
A11: 5 | I11: 31.23982837 | J11: 33.4327311 | K11: 65.61423728 | L11: 34.19111177 | M11: 37.13602501 | N11: 66.35359004
A12: 6 | I12: 31.23982837 | J12: 33.4327311 | K12: 65.61423728 | L12: 34.19111177 | M12: 37.13602501 | N12: 66.35359004
A13: 7 | I13: 31.23982837 | J13: 33.4327311 | K13: 65.61423728 | L13: 34.19111177 | M13: 37.13602501 | N13: 66.35359004
A14: 8 | I14: 31.23982837 | J14: 33.4327311 | K14: 65.61423728 | L14: 34.19111177 | M14: 37.13602501 | N14: 66.35359004
A15: 9 | I15: 31.23982837 | J15: 33.4327311 | K15: 65.61423728 | L15: 34.19111177 | M15: 37.13602501 | N15: 66.35359004
A16: 10 | I16: 31.23982837 | J16: 33.4327311 | K16: 65.61423728 | L16: 34.19111177 | M16: 37.13602501 | N16: 66.35359004
A17: 11 | I17: 31.23982837 | J17: 33.4327311 | K17: 65.61423728 | L17: 34.19111177 | M17: 37.13602501 | N17: 66.35359004
A18: 12 | I18: 31.23982837 | J18: 33.4327311 | K18: 65.61423728 | L18: 34.19111177 | M18: 37.13602501 | N18: 66.35359004
A19: 13 | I19: 31.23982837 | J19: 33.4327311 | K19: 65.61423728 | L19: 34.19111177 | M19: 37.13602501 | N19: 66.35359004
A20: 14 | I20: 31.23982837 | J20: 33.4327311 | K20: 65.61423728 | L20: 34.19111177 | M20: 37.13602501 | N20: 66.35359004
A21: 15 | I21: 31.23982837 | J21: 33.4327311 | K21: 65.61423728 | L21: 34.19111177 | M21: 37.13602501 | N21: 66.35359004
A22: 16 | I22: 31.23982837 | J22: 33.4327311 | K22: 65.61423728 | L22: 34.19111177 | M22: 37.13602501 | N22: 66.35359004
A23: 17 | I23: 31.23982837 | J23: 33.4327311 | K23: 65.61423728 | L23: 34.19111177 | M23: 37.13602501 | N23: 66.35359004
A24: 18 | I24: 31.23982837 | J24: 33.4327311 | K24: 65.61423728 | L24: 34.19111177 | M24: 37.13602501 | N24: 66.35359004
A25: 19 | I25: 31.23982837 | J25: 33.4327311 | K25: 65.61423728 | L25: 34.19111177 | M25: 37.13602501 | N25: 66.35359004
A26: 20 | I26: 31.23982837 | J26: 33.4327311 | K26: 65.61423728 | L26: 34.19111177 | M26: 37.13602501 | N26: 66.35359004
A27: 21 | I27: 31.23982837 | J27: 33.4327311 | K27: 65.61423728 | L27: 34.19111177 | M27: 37.13602501 | N27: 66.35359004
A28: 22 | I28: 31.23982837 | J28: 33.4327311 | K28: 65.61423728 | L28: 34.19111177 | M28: 37.13602501 | N28: 66.35359004
A29: 23 | I29: 31.23982837 | J29: 33.4327311 | K29: 65.61423728 | L29: 34.19111177 | M29: 37.13602501 | N29: 66.35359004
A30: 24 | I30: 31.23982837 | J30: 33.4327311 | K30: 65.61423728 | L30: 34.19111177 | M30: 37.13602501 | N30: 66.35359004
A31: 25 | I31: 31.23982837 | J31: 33.4327311 | K31: 65.61423728 | L31: 34.19111177 | M31: 37.13602501 | N31: 66.35359004
A32: 26 | I32: 31.23982837 | J32: 33.4327311 | K32: 65.61423728 | L32: 34.19111177 | M32: 37.13602501 | N32: 66.35359004
A33: 27 | I33: 31.23982837 | J33: 33.4327311 | K33: 65.61423728 | L33: 34.19111177 | M33: 37.13602501 | N33: 66.35359004
A34: 28 | I34: 31.23982837 | J34: 33.4327311 | K34: 65.61423728 | L34: 34.19111177 | M34: 37.13602501 | N34: 66.35359004
A35: 29 | I35: 31.23982837 | J35: 33.4327311 | K35: 65.61423728 | L35: 34.19111177 | M35: 37.13602501 | N35: 66.35359004
A36: 30 | I36: 31.23982837 | J36: 33.4327311 | K36: 65.61423728 | L36: 34.19111177 | M36: 37.13602501 | N36: 66.35359004
A37: 31 | I37: 31.23982837 | J37: 33.4327311 | K37: 65.61423728 | L37: 34.19111177 | M37: 37.13602501 | N37: 66.35359004
A38: 32 | I38: 31.23982837 | J38: 33.4327311 | K38: 65.61423728 | L38: 34.19111177 | M38: 37.13602501 | N38: 66.35359004
A39: 33 | I39: 31.23982837 | J39: 33.4327311 | K39: 65.61423728 | L39: 34.19111177 | M39: 37.13602501 | N39: 66.35359004
A40: 34 | I40: 31.23982837 | J40: 33.4327311 | K40: 65.61423728 | L40: 34.19111177 | M40: 37.13602501 | N40: 66.35359004
A41: 35 | I41: 31.23982837 | J41: 33.4327311 | K41: 65.61423728 | L41: 34.19111177 | M41: 37.13602501 | N41: 66.35359004
A42: 36 | I42: 31.23982837 | J42: 33.4327311 | K42: 65.61423728 | L42: 34.19111177 | M42: 37.13602501 | N42: 66.35359004
A43: 37 | I43: 31.23982837 | J43: 33.4327311 | K43: 65.61423728 | L43: 34.19111177 | M43: 37.13602501 | N43: 66.35359004
A44: 38 | I44: 31.23982837 | J44: 33.4327311 | K44: 65.61423728 | L44: 34.19111177 | M44: 37.13602501 | N44: 66.35359004
A45: 39 | I45: 31.23982837 | J45: 33.4327311 | K45: 65.61423728 | L45: 34.19111177 | M45: 37.13602501 | N45: 66.35359004
A46: 40 | I46: 31.23982837 | J46: 33.4327311 | K46: 65.61423728 | L46: 34.19111177 | M46: 37.13602501 | N46: 66.35359004
A47: 41 | I47: 31.23982837 | J47: 33.4327311 | K47: 65.61423728 | L47: 34.19111177 | M47: 37.13602501 | N47: 66.35359004
A48: 42 | I48: 31.23982837 | J48: 33.4327311 | K48: 65.61423728 | L48: 34.19111177 | M48: 37.13602501 | N48: 66.35359004
A49: 43 | I49: 31.23982837 | J49: 33.4327311 | K49: 65.61423728 | L49: 34.19111177 | M49: 37.13602501 | N49: 66.35359004
A50: 44 | I50: 31.23982837 | J50: 33.4327311 | K50: 65.61423728 | L50: 34.19111177 | M50: 37.13602501 | N50: 66.35359004
A51: 45 | I51: 31.23982837 | J51: 33.4327311 | K51: 65.61423728 | L51: 34.19111177 | M51: 37.13602501 | N51: 66.35359004
A52: 46 | I52: 31.23982837 | J52: 33.4327311 | K52: 65.61423728 | L52: 34.19111177 | M52: 37.13602501 | N52: 66.35359004
A53: 47 | I53: 31.23982837 | J53: 33.4327311 | K53: 65.61423728 | L53: 34.19111177 | M53: 37.13602501 | N53: 66.35359004
A54: 48 | I54: 31.23982837 | J54: 33.4327311 | K54: 65.61423728 | L54: 34.19111177 | M54: 37.13602501 | N54: 66.35359004
A55: 49 | I55: 31.23982837 | J55: 33.4327311 | K55: 65.61423728 | L55: 34.19111177 | M55: 37.13602501 | N55: 66.35359004
A56: 50 | I56: 31.23982837 | J56: 33.4327311 | K56: 65.61423728 | L56: 34.19111177 | M56: 37.13602501 | N56: 66.35359004
A57: 51 | I57: 31.23982837 | J57: 33.4327311 | K57: 65.61423728 | L57: 34.19111177 | M57: 37.13602501 | N57: 66.35359004
A58: 52 | I58: 31.23982837 | J58: 33.4327311 | K58: 65.61423728 | L58: 34.19111177 | M58: 37.13602501 | N58: 66.35359004
A59: 53 | I59: 31.23982837 | J59: 33.4327311 | K59: 65.61423728 | L59: 34.19111177 | M59: 37.13602501 | N59: 66.35359004
A60: 54 | I60: 31.23982837 | J60: 33.4327311 | K60: 65.61423728 | L60: 34.19111177 | M60: 37.13602501 | N60: 66.35359004
A61: 55 | I61: 31.23982837 | J61: 33.4327311 | K61: 65.61423728 | L61: 34.19111177 | M61: 37.13602501 | N61: 66.35359004
A62: 56 | I62: 31.23982837 | J62: 33.4327311 | K62: 65.61423728 | L62: 34.19111177 | M62: 37.13602501 | N62: 66.35359004
A63: 57 | I63: 31.23982837 | J63: 33.4327311 | K63: 65.61423728 | L63: 34.19111177 | M63: 37.13602501 | N63: 66.35359004
A64: 58 | I64: 31.23982837 | J64: 33.4327311 | K64: 65.61423728 | L64: 34.19111177 | M64: 37.13602501 | N64: 66.35359004
A65: 59 | I65: 31.23982837 | J65: 33.4327311 | K65: 65.61423728 | L65: 34.19111177 | M65: 37.13602501 | N65: 66.35359004
A66: 60 | I66: 31.23982837 | J66: 33.4327311 | K66: 65.61423728 | L66: 34.19111177 | M66: 37.13602501 | N66: 66.35359004
A67: 61 | I67: 31.23982837 | J67: 33.4327311 | K67: 65.61423728 | L67: 34.19111177 | M67: 37.13602501 | N67: 66.35359004
A68: 62 | I68: 31.23982837 | J68: 33.4327311 | K68: 65.61423728 | L68: 34.19111177 | M68: 37.13602501 | N68: 66.35359004
A69: 63 | I69: 31.23982837 | J69: 33.4327311 | K69: 65.61423728 | L69: 34.19111177 | M69: 37.13602501 | N69: 66.35359004
A70: 64 | I70: 31.23982837 | J70: 33.4327311 | K70: 65.61423728 | L70: 34.19111177 | M70: 37.13602501 | N70: 66.35359004
A71: 65 | I71: 31.23982837 | J71: 33.4327311 | K71: 65.61423728 | L71: =1.45776613020539E-13*(HOUR($E71)*60+MINUTE($E71))^5-5.56072270585461E-10*(HOUR($E71)*60+MINUTE($E71))^4+7.06833400255548E-07*(HOUR($E71)*60+MINUTE($E71))^3-0.000318788465226261*(HOUR($E71)*60+MINUTE($E71))^2+0.0281711711660364*(HOUR($E71)*60+MINUTE($E71))+34.1911117699055 -> 34.19111177 | M71: 37.13602501 | N71: 66.35359004
A72: 66 | G72: =IF(AND(ISBLANK(B72),NOT(ISNUMBER(F72))),"",IF(ISBLANK(B72),"Measured DO Saturation Not entered!",IF(ISNUMBER(F72),IF(B72<F72,"No","Yes"),"Enter all required values!"))) ->  | I72: =1.18443700433286E-13*(HOUR($E72)*60+MINUTE($E72))^5 - 4.14323598958596E-10*(HOUR($E72)*60+MINUTE($E72))^4 + 4.77287727122539E-07*(HOUR($E72)*60+MINUTE($E72))^3 - 0.000196917585728373*(HOUR($E72)*60+MINUTE($E72))^2 + 0.0231405627601475*(HOUR($E72)*60+MINUTE($E72)) + 31.2398283659495 -> 31.23982837 | J72: =1.98879987167155E-13*(HOUR($E72)*60+MINUTE($E72))^5 - 6.89410992615642E-10*(HOUR($E72)*60+MINUTE($E72))^4 + 7.83730333422071E-07*(HOUR($E72)*60+MINUTE($E72))^3 - 0.00031597890334556*(HOUR($E72)*60+MINUTE($E72))^2 + 0.0355135105918976*(HOUR($E72)*60+MINUTE($E72)) + 33.4327310978006 -> 33.4327311 | K72: =9.08511511657608E-14*(HOUR($E72)*60+MINUTE($E72))^5 - 2.99407211249053E-10*(HOUR($E72)*60+MINUTE($E72))^4 + 3.1560253348998E-07*(HOUR($E72)*60+MINUTE($E72))^3 - 0.000108510891323021*(HOUR($E72)*60+MINUTE($E72))^2 + 0.00628484730145829*(HOUR($E72)*60+MINUTE($E72)) + 65.6142372750764 -> 65.61423728 | L72: 34.19111177 | M72: =1.37090283182826E-13*(HOUR($E72)*60+MINUTE($E72))^5 - 5.04960255463897E-10*(HOUR($E72)*60+MINUTE($E72))^4 + 6.13524315934422E-07*(HOUR($E72)*60+MINUTE($E72))^3 - 0.00025817433468811*(HOUR($E72)*60+MINUTE($E72))^2 + 0.0195966892410979*(HOUR($E72)*60+MINUTE($E72)) + 37.1360250050275 -> 37.13602501 | N72: =7.11895278892582E-14*(HOUR($E72)*60+MINUTE($E72))^5-2.64195273421019E-10*(HOUR($E72)*60+MINUTE($E72))^4 + 3.22473039456213E-07*(HOUR($E72)*60+MINUTE($E72))^3 - 0.00013606873481109*(HOUR($E72)*60+MINUTE($E72))^2 + 0.0107100719720847*(HOUR($E72)*60+MINUTE($E72))+66.3535900428978 -> 66.35359004
A73: 67 | F73: =IF(AND(ISBLANK($B73),ISBLANK($C73),ISBLANK($D73),ISBLANK($E73)),"",IF(OR(ISBLANK($B73),ISBLANK($C73),ISBLANK($D73),ISBLANK($E73)),"Enter all required values",IF($D73="Estuary/Marine","Time of day Adjustment not appropriate for marine waters!",IF(OR(CONCATENATE($C73,"-",$D73)="Peninsula-Lake/Wetland",CONCATENATE($C73,"-",$D73)="Everglades-Lake/Wetland"),M73,IF(OR(CONCATENATE($C73,"-",$D73)="Northeast-Lake/Wetland",CONCATENATE($C73,"-",$D73)="Big Bend-Lake/Wetland"),L73,IF(CONCATENATE($C73,"-",$D73)="Panhandle West-Lake/Wetland",N73,IF(OR(CONCATENATE($C73,"-",$D73)="Peninsula-Stream/Canal",CONCATENATE($C73,"-",$D73)="Everglades-Stream/Canal"),J73,IF(OR(CONCATENATE($C73,"-",$D73)="Northeast-Stream/Canal",CONCATENATE($C73,"-",$D73)="Big Bend-Stream/Canal"),I73,IF(CONCATENATE($C73,"-",$D73)="Panhandle West-Stream/Canal",K73,"Error! Check Entries"))))))))) ->  | I73: 31.23982837 | J73: 33.4327311 | K73: 65.61423728 | L73: 34.19111177 | M73: 37.13602501 | N73: 66.35359004
A74: 68 | I74: 31.23982837 | J74: 33.4327311 | K74: 65.61423728 | L74: 34.19111177 | M74: 37.13602501 | N74: 66.35359004
A75: 69 | I75: 31.23982837 | J75: 33.4327311 | K75: 65.61423728 | L75: 34.19111177 | M75: 37.13602501 | N75: 66.35359004
A76: 70 | I76: 31.23982837 | J76: 33.4327311 | K76: 65.61423728 | L76: 34.19111177 | M76: 37.13602501 | N76: 66.35359004
A77: 71 | I77: 31.23982837 | J77: 33.4327311 | K77: 65.61423728 | L77: 34.19111177 | M77: 37.13602501 | N77: 66.35359004
A78: 72 | I78: 31.23982837 | J78: 33.4327311 | K78: 65.61423728 | L78: 34.19111177 | M78: 37.13602501 | N78: 66.35359004
A79: 73 | I79: 31.23982837 | J79: 33.4327311 | K79: 65.61423728 | L79: 34.19111177 | M79: 37.13602501 | N79: 66.35359004
A80: 74 | I80: 31.23982837 | J80: 33.4327311 | K80: 65.61423728 | L80: 34.19111177 | M80: 37.13602501 | N80: 66.35359004
A81: 75 | I81: 31.23982837 | J81: 33.4327311 | K81: 65.61423728 | L81: 34.19111177 | M81: 37.13602501 | N81: 66.35359004
A82: 76 | I82: 31.23982837 | J82: 33.4327311 | K82: 65.61423728 | L82: 34.19111177 | M82: 37.13602501 | N82: 66.35359004
A83: 77 | I83: 31.23982837 | J83: 33.4327311 | K83: 65.61423728 | L83: 34.19111177 | M83: 37.13602501 | N83: 66.35359004
A84: 78 | I84: 31.23982837 | J84: 33.4327311 | K84: 65.61423728 | L84: 34.19111177 | M84: 37.13602501 | N84: 66.35359004
A85: 79 | I85: 31.23982837 | J85: 33.4327311 | K85: 65.61423728 | L85: 34.19111177 | M85: 37.13602501 | N85: 66.35359004
A86: 80 | I86: 31.23982837 | J86: 33.4327311 | K86: 65.61423728 | L86: 34.19111177 | M86: 37.13602501 | N86: 66.35359004
A87: 81 | I87: 31.23982837 | J87: 33.4327311 | K87: 65.61423728 | L87: 34.19111177 | M87: 37.13602501 | N87: 66.35359004
A88: 82 | I88: 31.23982837 | J88: 33.4327311 | K88: 65.61423728 | L88: 34.19111177 | M88: 37.13602501 | N88: 66.35359004
A89: 83 | I89: 31.23982837 | J89: 33.4327311 | K89: 65.61423728 | L89: 34.19111177 | M89: 37.13602501 | N89: 66.35359004
A90: 84 | I90: 31.23982837 | J90: 33.4327311 | K90: 65.61423728 | L90: 34.19111177 | M90: 37.13602501 | N90: 66.35359004
A91: 85 | I91: 31.23982837 | J91: 33.4327311 | K91: 65.61423728 | L91: 34.19111177 | M91: 37.13602501 | N91: 66.35359004
A92: 86 | I92: 31.23982837 | J92: 33.4327311 | K92: 65.61423728 | L92: 34.19111177 | M92: 37.13602501 | N92: 66.35359004
A93: 87 | I93: 31.23982837 | J93: 33.4327311 | K93: 65.61423728 | L93: 34.19111177 | M93: 37.13602501 | N93: 66.35359004
A94: 88 | I94: 31.23982837 | J94: 33.4327311 | K94: 65.61423728 | L94: 34.19111177 | M94: 37.13602501 | N94: 66.35359004
A95: 89 | I95: 31.23982837 | J95: 33.4327311 | K95: 65.61423728 | L95: 34.19111177 | M95: 37.13602501 | N95: 66.35359004
A96: 90 | I96: 31.23982837 | J96: 33.4327311 | K96: 65.61423728 | L96: 34.19111177 | M96: 37.13602501 | N96: 66.35359004
A97: 91 | I97: 31.23982837 | J97: 33.4327311 | K97: 65.61423728 | L97: 34.19111177 | M97: 37.13602501 | N97: 66.35359004
A98: 92 | I98: 31.23982837 | J98: 33.4327311 | K98: 65.61423728 | L98: 34.19111177 | M98: 37.13602501 | N98: 66.35359004
A99: 93 | I99: 31.23982837 | J99: 33.4327311 | K99: 65.61423728 | L99: 34.19111177 | M99: 37.13602501 | N99: 66.35359004
A100: 94 | I100: 31.23982837 | J100: 33.4327311 | K100: 65.61423728 | L100: 34.19111177 | M100: 37.13602501 | N100: 66.35359004
A101: 95 | I101: 31.23982837 | J101: 33.4327311 | K101: 65.61423728 | L101: 34.19111177 | M101: 37.13602501 | N101: 66.35359004
A102: 96 | I102: 31.23982837 | J102: 33.4327311 | K102: 65.61423728 | L102: 34.19111177 | M102: 37.13602501 | N102: 66.35359004
A103: 97 | I103: 31.23982837 | J103: 33.4327311 | K103: 65.61423728 | L103: 34.19111177 | M103: 37.13602501 | N103: 66.35359004
A104: 98 | I104: 31.23982837 | J104: 33.4327311 | K104: 65.61423728 | L104: 34.19111177 | M104: 37.13602501 | N104: 66.35359004
A105: 99 | I105: 31.23982837 | J105: 33.4327311 | K105: 65.61423728 | L105: 34.19111177 | M105: 37.13602501 | N105: 66.35359004
A106: 100 | I106: 31.23982837 | J106: 33.4327311 | K106: 65.61423728 | L106: 34.19111177 | M106: 37.13602501 | N106: 66.35359004
A107: 101 | I107: 31.23982837 | J107: 33.4327311 | K107: 65.61423728 | L107: 34.19111177 | M107: 37.13602501 | N107: 66.35359004
A108: 102 | I108: 31.23982837 | J108: 33.4327311 | K108: 65.61423728 | L108: 34.19111177 | M108: 37.13602501 | N108: 66.35359004
A109: 103 | I109: 31.23982837 | J109: 33.4327311 | K109: 65.61423728 | L109: 34.19111177 | M109: 37.13602501 | N109: 66.35359004
A110: 104 | I110: 31.23982837 | J110: 33.4327311 | K110: 65.61423728 | L110: 34.19111177 | M110: 37.13602501 | N110: 66.35359004
A111: 105 | I111: 31.23982837 | J111: 33.4327311 | K111: 65.61423728 | L111: 34.19111177 | M111: 37.13602501 | N111: 66.35359004
A112: 106 | I112: 31.23982837 | J112: 33.4327311 | K112: 65.61423728 | L112: 34.19111177 | M112: 37.13602501 | N112: 66.35359004
A113: 107 | I113: 31.23982837 | J113: 33.4327311 | K113: 65.61423728 | L113: 34.19111177 | M113: 37.13602501 | N113: 66.35359004
A114: 108 | I114: 31.23982837 | J114: 33.4327311 | K114: 65.61423728 | L114: 34.19111177 | M114: 37.13602501 | N114: 66.35359004
A115: 109 | I115: 31.23982837 | J115: 33.4327311 | K115: 65.61423728 | L115: 34.19111177 | M115: 37.13602501 | N115: 66.35359004
A116: 110 | I116: 31.23982837 | J116: 33.4327311 | K116: 65.61423728 | L116: 34.19111177 | M116: 37.13602501 | N116: 66.35359004
A117: 111 | I117: 31.23982837 | J117: 33.4327311 | K117: 65.61423728 | L117: 34.19111177 | M117: 37.13602501 | N117: 66.35359004
A118: 112 | I118: 31.23982837 | J118: 33.4327311 | K118: 65.61423728 | L118: 34.19111177 | M118: 37.13602501 | N118: 66.35359004
A119: 113 | I119: 31.23982837 | J119: 33.4327311 | K119: 65.61423728 | L119: 34.19111177 | M119: 37.13602501 | N119: 66.35359004
A120: 114 | I120: 31.23982837 | J120: 33.4327311 | K120: 65.61423728 | L120: 34.19111177 | M120: 37.13602501 | N120: 66.35359004
A121: 115 | I121: 31.23982837 | J121: 33.4327311 | K121: 65.61423728 | L121: 34.19111177 | M121: 37.13602501 | N121: 66.35359004
A122: 116 | I122: 31.23982837 | J122: 33.4327311 | K122: 65.61423728 | L122: 34.19111177 | M122: 37.13602501 | N122: 66.35359004
A123: 117 | I123: 31.23982837 | J123: 33.4327311 | K123: 65.61423728 | L123: 34.19111177 | M123: 37.13602501 | N123: 66.35359004
A124: 118 | I124: 31.23982837 | J124: 33.4327311 | K124: 65.61423728 | L124: 34.19111177 | M124: 37.13602501 | N124: 66.35359004
A125: 119 | I125: 31.23982837 | J125: 33.4327311 | K125: 65.61423728 | L125: 34.19111177 | M125: 37.13602501 | N125: 66.35359004
A126: 120 | I126: 31.23982837 | J126: 33.4327311 | K126: 65.61423728 | L126: 34.19111177 | M126: 37.13602501 | N126: 66.35359004
A127: 121 | I127: 31.23982837 | J127: 33.4327311 | K127: 65.61423728 | L127: 34.19111177 | M127: 37.13602501 | N127: 66.35359004
A128: 122 | I128: 31.23982837 | J128: 33.4327311 | K128: 65.61423728 | L128: 34.19111177 | M128: 37.13602501 | N128: 66.35359004
A129: 123 | I129: 31.23982837 | J129: 33.4327311 | K129: 65.61423728 | L129: 34.19111177 | M129: 37.13602501 | N129: 66.35359004
A130: 124 | I130: 31.23982837 | J130: 33.4327311 | K130: 65.61423728 | L130: 34.19111177 | M130: 37.13602501 | N130: 66.35359004
A131: 125 | I131: 31.23982837 | J131: 33.4327311 | K131: 65.61423728 | L131: 34.19111177 | M131: 37.13602501 | N131: 66.35359004
A132: 126 | I132: 31.23982837 | J132: 33.4327311 | K132: 65.61423728 | L132: 34.19111177 | M132: 37.13602501 | N132: 66.35359004
A133: 127 | I133: 31.23982837 | J133: 33.4327311 | K133: 65.61423728 | L133: 34.19111177 | M133: 37.13602501 | N133: 66.35359004
A134: 128 | I134: 31.23982837 | J134: 33.4327311 | K134: 65.61423728 | L134: 34.19111177 | M134: 37.13602501 | N134: 66.35359004
A135: 129 | I135: 31.23982837 | J135: 33.4327311 | K135: 65.61423728 | L135: =1.45776613020539E-13*(HOUR($E135)*60+MINUTE($E135))^5-5.56072270585461E-10*(HOUR($E135)*60+MINUTE($E135))^4+7.06833400255548E-07*(HOUR($E135)*60+MINUTE($E135))^3-0.000318788465226261*(HOUR($E135)*60+MINUTE($E135))^2+0.0281711711660364*(HOUR($E135)*60+MINUTE($E135))+34.1911117699055 -> 34.19111177 | M135: 37.13602501 | N135: 66.35359004
A136: 130 | G136: =IF(AND(ISBLANK(B136),NOT(ISNUMBER(F136))),"",IF(ISBLANK(B136),"Measured DO Saturation Not entered!",IF(ISNUMBER(F136),IF(B136<F136,"No","Yes"),"Enter all required values!"))) ->  | I136: =1.18443700433286E-13*(HOUR($E136)*60+MINUTE($E136))^5 - 4.14323598958596E-10*(HOUR($E136)*60+MINUTE($E136))^4 + 4.77287727122539E-07*(HOUR($E136)*60+MINUTE($E136))^3 - 0.000196917585728373*(HOUR($E136)*60+MINUTE($E136))^2 + 0.0231405627601475*(HOUR($E136)*60+MINUTE($E136)) + 31.2398283659495 -> 31.23982837 | J136: =1.98879987167155E-13*(HOUR($E136)*60+MINUTE($E136))^5 - 6.89410992615642E-10*(HOUR($E136)*60+MINUTE($E136))^4 + 7.83730333422071E-07*(HOUR($E136)*60+MINUTE($E136))^3 - 0.00031597890334556*(HOUR($E136)*60+MINUTE($E136))^2 + 0.0355135105918976*(HOUR($E136)*60+MINUTE($E136)) + 33.4327310978006 -> 33.4327311 | K136: =9.08511511657608E-14*(HOUR($E136)*60+MINUTE($E136))^5 - 2.99407211249053E-10*(HOUR($E136)*60+MINUTE($E136))^4 + 3.1560253348998E-07*(HOUR($E136)*60+MINUTE($E136))^3 - 0.000108510891323021*(HOUR($E136)*60+MINUTE($E136))^2 + 0.00628484730145829*(HOUR($E136)*60+MINUTE($E136)) + 65.6142372750764 -> 65.61423728 | L136: 34.19111177 | M136: =1.37090283182826E-13*(HOUR($E136)*60+MINUTE($E136))^5 - 5.04960255463897E-10*(HOUR($E136)*60+MINUTE($E136))^4 + 6.13524315934422E-07*(HOUR($E136)*60+MINUTE($E136))^3 - 0.00025817433468811*(HOUR($E136)*60+MINUTE($E136))^2 + 0.0195966892410979*(HOUR($E136)*60+MINUTE($E136)) + 37.1360250050275 -> 37.13602501 | N136: =7.11895278892582E-14*(HOUR($E136)*60+MINUTE($E136))^5-2.64195273421019E-10*(HOUR($E136)*60+MINUTE($E136))^4 + 3.22473039456213E-07*(HOUR($E136)*60+MINUTE($E136))^3 - 0.00013606873481109*(HOUR($E136)*60+MINUTE($E136))^2 + 0.0107100719720847*(HOUR($E136)*60+MINUTE($E136))+66.3535900428978 -> 66.35359004
A137: 131 | F137: =IF(AND(ISBLANK($B137),ISBLANK($C137),ISBLANK($D137),ISBLANK($E137)),"",IF(OR(ISBLANK($B137),ISBLANK($C137),ISBLANK($D137),ISBLANK($E137)),"Enter all required values",IF($D137="Estuary/Marine","Time of day Adjustment not appropriate for marine waters!",IF(OR(CONCATENATE($C137,"-",$D137)="Peninsula-Lake/Wetland",CONCATENATE($C137,"-",$D137)="Everglades-Lake/Wetland"),M137,IF(OR(CONCATENATE($C137,"-",$D137)="Northeast-Lake/Wetland",CONCATENATE($C137,"-",$D137)="Big Bend-Lake/Wetland"),L137,IF(CONCATENATE($C137,"-",$D137)="Panhandle West-Lake/Wetland",N137,IF(OR(CONCATENATE($C137,"-",$D137)="Peninsula-Stream/Canal",CONCATENATE($C137,"-",$D137)="Everglades-Stream/Canal"),J137,IF(OR(CONCATENATE($C137,"-",$D137)="Northeast-Stream/Canal",CONCATENATE($C137,"-",$D137)="Big Bend-Stream/Canal"),I137,IF(CONCATENATE($C137,"-",$D137)="Panhandle West-Stream/Canal",K137,"Error! Check Entries"))))))))) ->  | I137: 31.23982837 | J137: 33.4327311 | K137: 65.61423728 | L137: 34.19111177 | M137: 37.13602501 | N137: 66.35359004
A138: 132 | I138: 31.23982837 | J138: 33.4327311 | K138: 65.61423728 | L138: 34.19111177 | M138: 37.13602501 | N138: 66.35359004
A139: 133 | I139: 31.23982837 | J139: 33.4327311 | K139: 65.61423728 | L139: 34.19111177 | M139: 37.13602501 | N139: 66.35359004
A140: 134 | I140: 31.23982837 | J140: 33.4327311 | K140: 65.61423728 | L140: 34.19111177 | M140: 37.13602501 | N140: 66.35359004
A141: 135 | I141: 31.23982837 | J141: 33.4327311 | K141: 65.61423728 | L141: 34.19111177 | M141: 37.13602501 | N141: 66.35359004
A142: 136 | I142: 31.23982837 | J142: 33.4327311 | K142: 65.61423728 | L142: 34.19111177 | M142: 37.13602501 | N142: 66.35359004
A143: 137 | I143: 31.23982837 | J143: 33.4327311 | K143: 65.61423728 | L143: 34.19111177 | M143: 37.13602501 | N143: 66.35359004
A144: 138 | I144: 31.23982837 | J144: 33.4327311 | K144: 65.61423728 | L144: 34.19111177 | M144: 37.13602501 | N144: 66.35359004
A145: 139 | I145: 31.23982837 | J145: 33.4327311 | K145: 65.61423728 | L145: 34.19111177 | M145: 37.13602501 | N145: 66.35359004
A146: 140 | I146: 31.23982837 | J146: 33.4327311 | K146: 65.61423728 | L146: 34.19111177 | M146: 37.13602501 | N146: 66.35359004
A147: 141 | I147: 31.23982837 | J147: 33.4327311 | K147: 65.61423728 | L147: 34.19111177 | M147: 37.13602501 | N147: 66.35359004
A148: 142 | I148: 31.23982837 | J148: 33.4327311 | K148: 65.61423728 | L148: 34.19111177 | M148: 37.13602501 | N148: 66.35359004
A149: 143 | I149: 31.23982837 | J149: 33.4327311 | K149: 65.61423728 | L149: 34.19111177 | M149: 37.13602501 | N149: 66.35359004
A150: 144 | I150: 31.23982837 | J150: 33.4327311 | K150: 65.61423728 | L150: 34.19111177 | M150: 37.13602501 | N150: 66.35359004
A151: 145 | I151: 31.23982837 | J151: 33.4327311 | K151: 65.61423728 | L151: 34.19111177 | M151: 37.13602501 | N151: 66.35359004
A152: 146 | I152: 31.23982837 | J152: 33.4327311 | K152: 65.61423728 | L152: 34.19111177 | M152: 37.13602501 | N152: 66.35359004
A153: 147 | I153: 31.23982837 | J153: 33.4327311 | K153: 65.61423728 | L153: 34.19111177 | M153: 37.13602501 | N153: 66.35359004
A154: 148 | I154: 31.23982837 | J154: 33.4327311 | K154: 65.61423728 | L154: 34.19111177 | M154: 37.13602501 | N154: 66.35359004
A155: 149 | I155: 31.23982837 | J155: 33.4327311 | K155: 65.61423728 | L155: 34.19111177 | M155: 37.13602501 | N155: 66.35359004
A156: 150 | I156: 31.23982837 | J156: 33.4327311 | K156: 65.61423728 | L156: 34.19111177 | M156: 37.13602501 | N156: 66.35359004
A157: 151 | I157: 31.23982837 | J157: 33.4327311 | K157: 65.61423728 | L157: 34.19111177 | M157: 37.13602501 | N157: 66.35359004
A158: 152 | I158: 31.23982837 | J158: 33.4327311 | K158: 65.61423728 | L158: 34.19111177 | M158: 37.13602501 | N158: 66.35359004
A159: 153 | I159: 31.23982837 | J159: 33.4327311 | K159: 65.61423728 | L159: 34.19111177 | M159: 37.13602501 | N159: 66.35359004
A160: 154 | I160: 31.23982837 | J160: 33.4327311 | K160: 65.61423728 | L160: 34.19111177 | M160: 37.13602501 | N160: 66.35359004
A161: 155 | I161: 31.23982837 | J161: 33.4327311 | K161: 65.61423728 | L161: 34.19111177 | M161: 37.13602501 | N161: 66.35359004
A162: 156 | I162: 31.23982837 | J162: 33.4327311 | K162: 65.61423728 | L162: 34.19111177 | M162: 37.13602501 | N162: 66.35359004
A163: 157 | I163: 31.23982837 | J163: 33.4327311 | K163: 65.61423728 | L163: 34.19111177 | M163: 37.13602501 | N163: 66.35359004
A164: 158 | I164: 31.23982837 | J164: 33.4327311 | K164: 65.61423728 | L164: 34.19111177 | M164: 37.13602501 | N164: 66.35359004
A165: 159 | I165: 31.23982837 | J165: 33.4327311 | K165: 65.61423728 | L165: 34.19111177 | M165: 37.13602501 | N165: 66.35359004
A166: 160 | I166: 31.23982837 | J166: 33.4327311 | K166: 65.61423728 | L166: 34.19111177 | M166: 37.13602501 | N166: 66.35359004
A167: 161 | I167: 31.23982837 | J167: 33.4327311 | K167: 65.61423728 | L167: 34.19111177 | M167: 37.13602501 | N167: 66.35359004
A168: 162 | I168: 31.23982837 | J168: 33.4327311 | K168: 65.61423728 | L168: 34.19111177 | M168: 37.13602501 | N168: 66.35359004
A169: 163 | I169: 31.23982837 | J169: 33.4327311 | K169: 65.61423728 | L169: 34.19111177 | M169: 37.13602501 | N169: 66.35359004
A170: 164 | I170: 31.23982837 | J170: 33.4327311 | K170: 65.61423728 | L170: 34.19111177 | M170: 37.13602501 | N170: 66.35359004
A171: 165 | I171: 31.23982837 | J171: 33.4327311 | K171: 65.61423728 | L171: 34.19111177 | M171: 37.13602501 | N171: 66.35359004
A172: 166 | I172: 31.23982837 | J172: 33.4327311 | K172: 65.61423728 | L172: 34.19111177 | M172: 37.13602501 | N172: 66.35359004
A173: 167 | I173: 31.23982837 | J173: 33.4327311 | K173: 65.61423728 | L173: 34.19111177 | M173: 37.13602501 | N173: 66.35359004
A174: 168 | I174: 31.23982837 | J174: 33.4327311 | K174: 65.61423728 | L174: 34.19111177 | M174: 37.13602501 | N174: 66.35359004
A175: 169 | I175: 31.23982837 | J175: 33.4327311 | K175: 65.61423728 | L175: 34.19111177 | M175: 37.13602501 | N175: 66.35359004
A176: 170 | I176: 31.23982837 | J176: 33.4327311 | K176: 65.61423728 | L176: 34.19111177 | M176: 37.13602501 | N176: 66.35359004
A177: 171 | I177: 31.23982837 | J177: 33.4327311 | K177: 65.61423728 | L177: 34.19111177 | M177: 37.13602501 | N177: 66.35359004
A178: 172 | I178: 31.23982837 | J178: 33.4327311 | K178: 65.61423728 | L178: 34.19111177 | M178: 37.13602501 | N178: 66.35359004
A179: 173 | I179: 31.23982837 | J179: 33.4327311 | K179: 65.61423728 | L179: 34.19111177 | M179: 37.13602501 | N179: 66.35359004
A180: 174 | I180: 31.23982837 | J180: 33.4327311 | K180: 65.61423728 | L180: 34.19111177 | M180: 37.13602501 | N180: 66.35359004
A181: 175 | I181: 31.23982837 | J181: 33.4327311 | K181: 65.61423728 | L181: 34.19111177 | M181: 37.13602501 | N181: 66.35359004
A182: 176 | I182: 31.23982837 | J182: 33.4327311 | K182: 65.61423728 | L182: 34.19111177 | M182: 37.13602501 | N182: 66.35359004
A183: 177 | I183: 31.23982837 | J183: 33.4327311 | K183: 65.61423728 | L183: 34.19111177 | M183: 37.13602501 | N183: 66.35359004
A184: 178 | I184: 31.23982837 | J184: 33.4327311 | K184: 65.61423728 | L184: 34.19111177 | M184: 37.13602501 | N184: 66.35359004
A185: 179 | I185: 31.23982837 | J185: 33.4327311 | K185: 65.61423728 | L185: 34.19111177 | M185: 37.13602501 | N185: 66.35359004
A186: 180 | I186: 31.23982837 | J186: 33.4327311 | K186: 65.61423728 | L186: 34.19111177 | M186: 37.13602501 | N186: 66.35359004
A187: 181 | I187: 31.23982837 | J187: 33.4327311 | K187: 65.61423728 | L187: 34.19111177 | M187: 37.13602501 | N187: 66.35359004
A188: 182 | I188: 31.23982837 | J188: 33.4327311 | K188: 65.61423728 | L188: 34.19111177 | M188: 37.13602501 | N188: 66.35359004
A189: 183 | I189: 31.23982837 | J189: 33.4327311 | K189: 65.61423728 | L189: 34.19111177 | M189: 37.13602501 | N189: 66.35359004
A190: 184 | I190: 31.23982837 | J190: 33.4327311 | K190: 65.61423728 | L190: 34.19111177 | M190: 37.13602501 | N190: 66.35359004
A191: 185 | I191: 31.23982837 | J191: 33.4327311 | K191: 65.61423728 | L191: 34.19111177 | M191: 37.13602501 | N191: 66.35359004
A192: 186 | I192: 31.23982837 | J192: 33.4327311 | K192: 65.61423728 | L192: 34.19111177 | M192: 37.13602501 | N192: 66.35359004
A193: 187 | I193: 31.23982837 | J193: 33.4327311 | K193: 65.61423728 | L193: 34.19111177 | M193: 37.13602501 | N193: 66.35359004
A194: 188 | I194: 31.23982837 | J194: 33.4327311 | K194: 65.61423728 | L194: 34.19111177 | M194: 37.13602501 | N194: 66.35359004
A195: 189 | I195: 31.23982837 | J195: 33.4327311 | K195: 65.61423728 | L195: 34.19111177 | M195: 37.13602501 | N195: 66.35359004
A196: 190 | I196: 31.23982837 | J196: 33.4327311 | K196: 65.61423728 | L196: 34.19111177 | M196: 37.13602501 | N196: 66.35359004
A197: 191 | I197: 31.23982837 | J197: 33.4327311 | K197: 65.61423728 | L197: 34.19111177 | M197: 37.13602501 | N197: 66.35359004
A198: 192 | I198: 31.23982837 | J198: 33.4327311 | K198: 65.61423728 | L198: 34.19111177 | M198: 37.13602501 | N198: 66.35359004
A199: 193 | I199: 31.23982837 | J199: 33.4327311 | K199: 65.61423728 | L199: =1.45776613020539E-13*(HOUR($E199)*60+MINUTE($E199))^5-5.56072270585461E-10*(HOUR($E199)*60+MINUTE($E199))^4+7.06833400255548E-07*(HOUR($E199)*60+MINUTE($E199))^3-0.000318788465226261*(HOUR($E199)*60+MINUTE($E199))^2+0.0281711711660364*(HOUR($E199)*60+MINUTE($E199))+34.1911117699055 -> 34.19111177 | M199: 37.13602501 | N199: 66.35359004
A200: 194 | G200: =IF(AND(ISBLANK(B200),NOT(ISNUMBER(F200))),"",IF(ISBLANK(B200),"Measured DO Saturation Not entered!",IF(ISNUMBER(F200),IF(B200<F200,"No","Yes"),"Enter all required values!"))) ->  | I200: =1.18443700433286E-13*(HOUR($E200)*60+MINUTE($E200))^5 - 4.14323598958596E-10*(HOUR($E200)*60+MINUTE($E200))^4 + 4.77287727122539E-07*(HOUR($E200)*60+MINUTE($E200))^3 - 0.000196917585728373*(HOUR($E200)*60+MINUTE($E200))^2 + 0.0231405627601475*(HOUR($E200)*60+MINUTE($E200)) + 31.2398283659495 -> 31.23982837 | J200: =1.98879987167155E-13*(HOUR($E200)*60+MINUTE($E200))^5 - 6.89410992615642E-10*(HOUR($E200)*60+MINUTE($E200))^4 + 7.83730333422071E-07*(HOUR($E200)*60+MINUTE($E200))^3 - 0.00031597890334556*(HOUR($E200)*60+MINUTE($E200))^2 + 0.0355135105918976*(HOUR($E200)*60+MINUTE($E200)) + 33.4327310978006 -> 33.4327311 | K200: =9.08511511657608E-14*(HOUR($E200)*60+MINUTE($E200))^5 - 2.99407211249053E-10*(HOUR($E200)*60+MINUTE($E200))^4 + 3.1560253348998E-07*(HOUR($E200)*60+MINUTE($E200))^3 - 0.000108510891323021*(HOUR($E200)*60+MINUTE($E200))^2 + 0.00628484730145829*(HOUR($E200)*60+MINUTE($E200)) + 65.6142372750764 -> 65.61423728 | L200: 34.19111177 | M200: =1.37090283182826E-13*(HOUR($E200)*60+MINUTE($E200))^5 - 5.04960255463897E-10*(HOUR($E200)*60+MINUTE($E200))^4 + 6.13524315934422E-07*(HOUR($E200)*60+MINUTE($E200))^3 - 0.00025817433468811*(HOUR($E200)*60+MINUTE($E200))^2 + 0.0195966892410979*(HOUR($E200)*60+MINUTE($E200)) + 37.1360250050275 -> 37.13602501 | N200: =7.11895278892582E-14*(HOUR($E200)*60+MINUTE($E200))^5-2.64195273421019E-10*(HOUR($E200)*60+MINUTE($E200))^4 + 3.22473039456213E-07*(HOUR($E200)*60+MINUTE($E200))^3 - 0.00013606873481109*(HOUR($E200)*60+MINUTE($E200))^2 + 0.0107100719720847*(HOUR($E200)*60+MINUTE($E200))+66.3535900428978 -> 66.35359004
... 1307 more rows

Sheet Combined DO Sat and Criteria
A1: Dissolved Oxygen Percent Saturation and Applicable DO Criteria Calculator
A2: To use: | B2: 1) Press "Clear Entries" button on right to remove all old data entries. 2) Choose SCI Bioregion and waterbody type from Drop-down lists. 3) Enter local time at which DO measurement was taken in 24 hour format (e.g., 16:10). 4) Enter measured DO concentration in mg/L and Water Temperature in °C (DO concentration and water temperature are always required). 5) Then enter Salinity (ppt)/Specific Conductance measurement in µmhos/cm if available (salinity or conductivity is required for estuarine/marine waters, and is optional for freshwaters) (Note: Calculation preferentially uses salinity. If salinity data is not available then leave salinity blank and enter conductivity and it will be used. If neither salinity or conductivity data are entered then a salinity of zero is assumed.) 6) Entry of Barometric Pressure is optional and should generally be left blank (if blank, 1 atmosphere (i.e., 760 mm Hg) is assumed). | X2: Bioregions | Y2: Waterbody Type
A3: White fields (Columns A - I) are for data entry. Additional notes are embedded as comments in the heading for each column, please review before using! | X3: Big Bend | Y3: Stream/Canal
A4: Shaded fields (Columns J - M) are results fields and are protected from change. Do Not Attempt to Change These Fields! | Q4: Streams | T4: Lakes | X4: Everglades | Y4: Lake/Wetland
A5: Site ID | B5: SCI-2012 Bioregion | C5: Waterbody Type (e.g., Lake or Stream) | D5: Time-of-day Sample Collected (local time, 23:15) | E5: Measured DO Concentration, mg/L | F5: Measured Water Temperature (°C) | G5: Measured Salinity (ppt) (Salinity = 1.80655*Chlorinity = 1.0045 Chloride) | H5: Measured Specific Conductance (μS/cm) | I5: Barometric Pressure (mm Hg) (1 atm = 760 mm Hg) | J5: DO Concentration (mg/L) at 100% Saturation | K5: DO Percent Saturation for Given DO Concentration | L5: Applicable DO Criteria | M5: Comments/Error Message | N5: Final Barometric Pressure | O5: Final Salinity | Q5: Northeast + Big Bend | R5: Peninsula + Everglades | S5: Panhandle West | T5: Northeast + Big Bend | U5: Peninsula + Everglades | V5: Panhandle West | X5: Northeast | Y5: Estuary/Marine
A6: 1 | B6: Northeast | C6: Lake/Wetland | D6: 12:45:00 | E6: 4.2 | F6: 20 | H6: 566 | J6: =IF(OR(ISBLANK($E6),ISBLANK($F6)),"",(EXP((-139.34411+(157570.1/($F6+273.15)-(66423080/($F6+273.15)^2)+(12438000000/($F6+273.15)^3)-(862194900000/($F6+273.15)^4))-($O6*(0.017674-(10.754/($F6+273.15))+(2140.7/($F6+273.15)^2))))))*($N6/760)*((1-((EXP(11.8581-(3840.7/($F6+273.15))-(216961/($F6+273.15)^2)))/($N6/760)))*(1-(0.000975-(0.00001426*$F6)+(0.00000006436*$F6^2))*($N6/760)))/((1-(EXP(11.8581-(3840.7/($F6+273.15))-(216961/($F6+273.15)^2))))*(1-(0.000975-(0.00001426*$F6)+(0.00000006436*$F6^2))))) -> 9.07770664 | K6: =IF(OR(ISBLANK(E6),ISBLANK(F6)),"",E6/J6*100) -> 46.26719244 | L6: =IF(AND(ISBLANK($B6),ISBLANK($C6),ISBLANK($D6)),"",IF(OR(ISBLANK($B6),ISBLANK($C6),ISBLANK($D6)),"Must Enter All Required Data",IF($O6>2.7,42,IF(AND($O6=0,OR($B6="Marine",$C6="Estuary/Marine")),42,IF(OR(CONCATENATE($B6,"-",$C6)="Peninsula-Lake/Wetland",CONCATENATE($B6,"-",$C6)="Everglades-Lake/Wetland"),U6,IF(OR(CONCATENATE($B6,"-",$C6)="Northeast-Lake/Wetland",CONCATENATE($B6,"-",$C6)="Big Bend-Lake/Wetland"),T6,IF(CONCATENATE($B6,"-",$C6)="Panhandle West-Lake/Wetland",V6,IF(OR(CONCATENATE($B6,"-",$C6)="Peninsula-Stream/Canal",CONCATENATE($B6,"-",$C6)="Everglades-Stream/Canal"),R6,IF(OR(CONCATENATE($B6,"-",$C6)="Northeast-Stream/Canal",CONCATENATE($B6,"-",$C6)="Big Bend-Stream/Canal"),Q6,IF(CONCATENATE($B6,"-",$C6)="Panhandle West-Stream/Canal",S6,"Error! Check Entries")))))))))) -> 33.37210244 | M6: =IF(O6>2.7,"Marine Criteria Apply, No time of day adjustment.",IF(AND(O6=0,OR(B6="Marine",C6="Estuary/Marine")),"Marine Criteria Apply, No time of day adjustment.",IF(AND($O6<=2.7,OR($B6="Marine",$C6="Estuary/Marine")),"Salinity and Bioregion or Waterbody Type Don't Agree",""))) ->  | N6: =IF(ISBLANK(I6),760,I6) -> 760 | O6: =IF(AND(ISBLANK($G6),ISBLANK($H6)),0,IF(ISBLANK($G6),IF($H6=0,0,(0.008-(0.1692*((($H6*(1+0.0191*($F6-25))/10000)/4.2914)/((1+(($N6/760*1.01325)*(0.000207-(0.0000000637*($N6/760*1.01325))+(0.000000000003989*($N6/760*1.01325)^2))/(1+(0.03426*$F6)+(0.0004464*$F6^2)+(0.4215-0.003107*$F6)*((($H6*(1+0.0191*($F6-25))/10000)/4.2914)))))*(0.6766097+0.0200564*$F6+0.0001104259*$F6^2-0.00000069698*$F6^3+0.0000000010031*$F6^4)))^0.5)+(25.3851*((($H6*(1+0.0191*($F6-25))/10000)/4.2914)/((1+(($N6/760*1.01325)*(0.000207-(0.0000000637*($N6/760*1.01325))+(0.000000000003989*($N6/760*1.01325)^2))/(1+(0.03426*$F6)+(0.0004464*$F6^2)+(0.4215-0.003107*$F6)*((($H6*(1+0.0191*($F6-25))/10000)/4.2914)))))*(0.6766097+0.0200564*$F6+0.0001104259*$F6^2-0.00000069698*$F6^3+0.0000000010031*$F6^4))))+(14.0941*((($H6*(1+0.0191*($F6-25))/10000)/4.2914)/((1+(($N6/760*1.01325)*(0.000207-(0.0000000637*($N6/760*1.01325))+(0.000000000003989*($N6/760*1.01325)^2))/(1+(0.03426*$F6)+(0.0004464*$F6^2)+(0.4215-0.003107*$F6)*((($H6*(1+0.0191*($F6-25))/10000)/4.2914)))))*(0.6766097+0.0200564*$F6+0.0001104259*$F6^2-0.00000069698*$F6^3+0.0000000010031*$F6^4)))^1.5)-(7.0261*((($H6*(1+0.0191*($F6-25))/10000)/4.2914)/((1+(($N6/760*1.01325)*(0.000207-(0.0000000637*($N6/760*1.01325))+(0.000000000003989*($N6/760*1.01325)^2))/(1+(0.03426*$F6)+(0.0004464*$F6^2)+(0.4215-0.003107*$F6)*((($H6*(1+0.0191*($F6-25))/10000)/4.2914)))))*(0.6766097+0.0200564*$F6+0.0001104259*$F6^2-0.00000069698*$F6^3+0.0000000010031*$F6^4)))^2)+(2.7081*((($H6*(1+0.0191*($F6-25))/10000)/4.2914)/((1+(($N6/760*1.01325)*(0.000207-(0.0000000637*($N6/760*1.01325))+(0.000000000003989*($N6/760*1.01325)^2))/(1+(0.03426*$F6)+(0.0004464*$F6^2)+(0.4215-0.003107*$F6)*((($H6*(1+0.0191*($F6-25))/10000)/4.2914)))))*(0.6766097+0.0200564*$F6+0.0001104259*$F6^2-0.00000069698*$F6^3+0.0000000010031*$F6^4)))^2.5)+(($F6-15)/(1+0.0162*($F6-15))*(0.0005-0.0056*((($H6*(1+0.0191*($F6-25))/10000)/4.2914)/((1+(($N6/760*1.01325)*(0.000207-(0.0000000637*($N6/760*1.01325))+(0.000000000003989*($N6/760*1.01325)^2))/(1+(0.03426*$F6)+(0.0004464*$F6^2)+(0.4215-0.003107*$F6)*((($H6*(1+0.0191*($F6-25))/10000)/4.2914)))))*(0.6766097+0.0200564*$F6+0.0001104259*$F6^2-0.00000069698*$F6^3+0.0000000010031*$F6^4)))^0.5-0.0066*((($H6*(1+0.0191*($F6-25))/10000)/4.2914)/((1+(($N6/760*1.01325)*(0.000207-(0.0000000637*($N6/760*1.01325))+(0.000000000003989*($N6/760*1.01325)^2))/(1+(0.03426*$F6)+(0.0004464*$F6^2)+(0.4215-0.003107*$F6)*((($H6*(1+0.0191*($F6-25))/10000)/4.2914)))))*(0.6766097+0.0200564*$F6+0.0001104259*$F6^2-0.00000069698*$F6^3+0.0000000010031*$F6^4)))-0.0375*((($H6*(1+0.0191*($F6-25))/10000)/4.2914)/((1+(($N6/760*1.01325)*(0.000207-(0.0000000637*($N6/760*1.01325))+(0.000000000003989*($N6/760*1.01325)^2))/(1+(0.03426*$F6)+(0.0004464*$F6^2)+(0.4215-0.003107*$F6)*((($H6*(1+0.0191*($F6-25))/10000)/4.2914)))))*(0.6766097+0.0200564*$F6+0.0001104259*$F6^2-0.00000069698*$F6^3+0.0000000010031*$F6^4)))^1.5+0.0636*((($H6*(1+0.0191*($F6-25))/10000)/4.2914)/((1+(($N6/760*1.01325)*(0.000207-(0.0000000637*($N6/760*1.01325))+(0.000000000003989*($N6/760*1.01325)^2))/(1+(0.03426*$F6)+(0.0004464*$F6^2)+(0.4215-0.003107*$F6)*((($H6*(1+0.0191*($F6-25))/10000)/4.2914)))))*(0.6766097+0.0200564*$F6+0.0001104259*$F6^2-0.00000069698*$F6^3+0.0000000010031*$F6^4)))^2-0.0144*((($H6*(1+0.0191*($F6-25))/10000)/4.2914)/((1+(($N6/760*1.01325)*(0.000207-(0.0000000637*($N6/760*1.01325))+(0.000000000003989*($N6/760*1.01325)^2))/(1+(0.03426*$F6)+(0.0004464*$F6^2)+(0.4215-0.003107*$F6)*((($H6*(1+0.0191*($F6-25))/10000)/4.2914)))))*(0.6766097+0.0200564*$F6+0.0001104259*$F6^2-0.00000069698*$F6^3+0.0000000010031*$F6^4)))^2.5)))-(0.008/(1+(1.5*400*((($H6*(1+0.0191*($F6-25))/10000)/4.2914)/((1+(($N6/760*1.01325)*(0.000207-(0.0000000637*($N6/760*1.01325))+(0.000000000003989*($N6/760*1.01325)^2))/(1+(0.03426*$F6)+(0.0004464*$F6^2)+(0.4215-0.003107*$F6)*((($H6*(1+0.0191*($F6-25))/10000)/4.2914)))))*(0.6766097+0.0200564*$F6+0.0001104259*$F6^2-0.00000069698*$F6^3+0.0000000010031*$F6^4))))+(400*((($H6*(1+0.0191*($F6-25))/10000)/4.2914)/((1+(($N6/760*1.01325)*(0.000207-(0.0000000637*($N6/760*1.01325))+(0.000000000003989*($N6/760*1.01325)^2))/(1+(0.03426*$F6)+(0.0004464*$F6^2)+(0.4215-0.003107*$F6)*((($H6*(1+0.0191*($F6-25))/10000)/4.2914)))))*(0.6766097+0.0200564*$F6+0.0001104259*$F6^2-0.00000069698*$F6^3+0.0000000010031*$F6^4))))^2))-((0.0005*($F6-15)/(1+0.0162*($F6-15)))/(1+(100*((($H6*(1+0.0191*($F6-25))/10000)/4.2914)/((1+(($N6/760*1.01325)*(0.000207-(0.0000000637*($N6/760*1.01325))+(0.000000000003989*($N6/760*1.01325)^2))/(1+(0.03426*$F6)+(0.0004464*$F6^2)+(0.4215-0.003107*$F6)*((($H6*(1+0.0191*($F6-25))/10000)/4.2914)))))*(0.6766097+0.0200564*$F6+0.0001104259*$F6^2-0.00000069698*$F6^3+0.0000000010031*$F6^4))))^0.5+(100*((($H6*(1+0.0191*($F6-25))/10000)/4.2914)/((1+(($N6/760*1.01325)*(0.000207-(0.0000000637*($N6/760*1.01325))+(0.000000000003989*($N6/760*1.01325)^2))/(1+(0.03426*$F6)+(0.0004464*$F6^2)+(0.4215-0.003107*$F6)*((($H6*(1+0.0191*($F6-25))/10000)/4.2914)))))*(0.6766097+0.0200564*$F6+0.0001104259*$F6^2-0.00000069698*$F6^3+0.0000000010031*$F6^4))))^1.5))),$G6)) -> 0.2746135507 | Q6: =1.18443700433286E-13*(HOUR($D6)*60+MINUTE($D6))^5 - 4.14323598958596E-10*(HOUR($D6)*60+MINUTE($D6))^4 + 4.77287727122539E-07*(HOUR($D6)*60+MINUTE($D6))^3 - 0.000196917585728373*(HOUR($D6)*60+MINUTE($D6))^2 + 0.0231405627601475*(HOUR($D6)*60+MINUTE($D6)) + 31.2398283659495 -> 36.51329267 | R6: =1.98879987167155E-13*(HOUR($D6)*60+MINUTE($D6))^5 - 6.89410992615642E-10*(HOUR($D6)*60+MINUTE($D6))^4 + 7.83730333422071E-07*(HOUR($D6)*60+MINUTE($D6))^3 - 0.00031597890334556*(HOUR($D6)*60+MINUTE($D6))^2 + 0.0355135105918976*(HOUR($D6)*60+MINUTE($D6)) + 33.4327310978006 -> 42.5476934 | S6: =9.08511511657608E-14*(HOUR($D6)*60+MINUTE($D6))^5 - 2.99407211249053E-10*(HOUR($D6)*60+MINUTE($D6))^4 + 3.1560253348998E-07*(HOUR($D6)*60+MINUTE($D6))^3 - 0.000108510891323021*(HOUR($D6)*60+MINUTE($D6))^2 + 0.00628484730145829*(HOUR($D6)*60+MINUTE($D6)) + 65.6142372750764 -> 69.47306312 | T6: =1.45776613020539E-13*(HOUR($D6)*60+MINUTE($D6))^5-5.56072270585461E-10*(HOUR($D6)*60+MINUTE($D6))^4+7.06833400255548E-07*(HOUR($D6)*60+MINUTE($D6))^3-0.000318788465226261*(HOUR($D6)*60+MINUTE($D6))^2+0.0281711711660364*(HOUR($D6)*60+MINUTE($D6))+34.1911117699055 -> 33.37210244 | U6: =1.37090283182826E-13*(HOUR($D6)*60+MINUTE($D6))^5 - 5.04960255463897E-10*(HOUR($D6)*60+MINUTE($D6))^4 + 6.13524315934422E-07*(HOUR($D6)*60+MINUTE($D6))^3 - 0.00025817433468811*(HOUR($D6)*60+MINUTE($D6))^2 + 0.0195966892410979*(HOUR($D6)*60+MINUTE($D6)) + 37.1360250050275 -> 38.6856507 | V6: =7.11895278892582E-14*(HOUR($D6)*60+MINUTE($D6))^5-2.64195273421019E-10*(HOUR($D6)*60+MINUTE($D6))^4 + 3.22473039456213E-07*(HOUR($D6)*60+MINUTE($D6))^3 - 0.00013606873481109*(HOUR($D6)*60+MINUTE($D6))^2 + 0.0107100719720847*(HOUR($D6)*60+MINUTE($D6))+66.3535900428978 -> 67.45434123 | X6: Panhandle West
A7: 2 | N7: 760 | O7: 0 | Q7: 31.23982837 | R7: 33.4327311 | S7: 65.61423728 | T7: 34.19111177 | U7: 37.13602501 | V7: 66.35359004 | X7: Peninsula
A8: 3 | N8: 760 | O8: 0 | Q8: 31.23982837 | R8: 33.4327311 | S8: 65.61423728 | T8: 34.19111177 | U8: 37.13602501 | V8: 66.35359004 | X8: Marine
A9: 4 | N9: 760 | O9: 0 | Q9: 31.23982837 | R9: 33.4327311 | S9: 65.61423728 | T9: 34.19111177 | U9: 37.13602501 | V9: 66.35359004
A10: 5 | K10: =IF(OR(ISBLANK(E10),ISBLANK(F10)),"",E10/J10*100) ->  | L10: =IF(AND(ISBLANK($B10),ISBLANK($C10),ISBLANK($D10)),"",IF(OR(ISBLANK($B10),ISBLANK($C10),ISBLANK($D10)),"Must Enter All Required Data",IF($O10>2.7,42,IF(AND($O10=0,OR($B10="Marine",$C10="Estuary/Marine")),42,IF(OR(CONCATENATE($B10,"-",$C10)="Peninsula-Lake/Wetland",CONCATENATE($B10,"-",$C10)="Everglades-Lake/Wetland"),U10,IF(OR(CONCATENATE($B10,"-",$C10)="Northeast-Lake/Wetland",CONCATENATE($B10,"-",$C10)="Big Bend-Lake/Wetland"),T10,IF(CONCATENATE($B10,"-",$C10)="Panhandle West-Lake/Wetland",V10,IF(OR(CONCATENATE($B10,"-",$C10)="Peninsula-Stream/Canal",CONCATENATE($B10,"-",$C10)="Everglades-Stream/Canal"),R10,IF(OR(CONCATENATE($B10,"-",$C10)="Northeast-Stream/Canal",CONCATENATE($B10,"-",$C10)="Big Bend-Stream/Canal"),Q10,IF(CONCATENATE($B10,"-",$C10)="Panhandle West-Stream/Canal",S10,"Error! Check Entries")))))))))) ->  | M10: =IF(O10>2.7,"Marine Criteria Apply, No time of day adjustment.",IF(AND(O10=0,OR(B10="Marine",C10="Estuary/Marine")),"Marine Criteria Apply, No time of day adjustment.",IF(AND($O10<=2.7,OR($B10="Marine",$C10="Estuary/Marine")),"Salinity and Bioregion or Waterbody Type Don't Agree",""))) ->  | N10: =IF(ISBLANK(I10),760,I10) -> 760 | O10: 0 | Q10: 31.23982837 | R10: 33.4327311 | S10: 65.61423728 | T10: 34.19111177 | U10: 37.13602501 | V10: 66.35359004
A11: 6 | N11: 760 | O11: 0 | Q11: 31.23982837 | R11: 33.4327311 | S11: 65.61423728 | T11: 34.19111177 | U11: 37.13602501 | V11: 66.35359004
A12: 7 | N12: 760 | O12: 0 | Q12: 31.23982837 | R12: 33.4327311 | S12: 65.61423728 | T12: 34.19111177 | U12: 37.13602501 | V12: 66.35359004
A13: 8 | N13: 760 | O13: 0 | Q13: 31.23982837 | R13: 33.4327311 | S13: 65.61423728 | T13: 34.19111177 | U13: 37.13602501 | V13: 66.35359004
A14: 9 | N14: 760 | O14: 0 | Q14: 31.23982837 | R14: 33.4327311 | S14: 65.61423728 | T14: 34.19111177 | U14: 37.13602501 | V14: 66.35359004
A15: 10 | N15: 760 | O15: 0 | Q15: 31.23982837 | R15: 33.4327311 | S15: 65.61423728 | T15: 34.19111177 | U15: 37.13602501 | V15: 66.35359004
A16: 11 | N16: 760 | O16: 0 | Q16: 31.23982837 | R16: 33.4327311 | S16: 65.61423728 | T16: 34.19111177 | U16: 37.13602501 | V16: 66.35359004
A17: 12 | N17: 760 | O17: 0 | Q17: 31.23982837 | R17: 33.4327311 | S17: 65.61423728 | T17: 34.19111177 | U17: 37.13602501 | V17: 66.35359004
A18: 13 | N18: 760 | O18: 0 | Q18: 31.23982837 | R18: 33.4327311 | S18: 65.61423728 | T18: 34.19111177 | U18: 37.13602501 | V18: 66.35359004
A19: 14 | N19: 760 | O19: 0 | Q19: 31.23982837 | R19: 33.4327311 | S19: 65.61423728 | T19: 34.19111177 | U19: 37.13602501 | V19: 66.35359004
A20: 15 | N20: 760 | O20: 0 | Q20: 31.23982837 | R20: 33.4327311 | S20: 65.61423728 | T20: 34.19111177 | U20: 37.13602501 | V20: 66.35359004
A21: 16 | N21: 760 | O21: 0 | Q21: 31.23982837 | R21: 33.4327311 | S21: 65.61423728 | T21: 34.19111177 | U21: 37.13602501 | V21: 66.35359004
A22: 17 | N22: 760 | O22: 0 | Q22: 31.23982837 | R22: 33.4327311 | S22: 65.61423728 | T22: 34.19111177 | U22: 37.13602501 | V22: 66.35359004
A23: 18 | N23: 760 | O23: 0 | Q23: 31.23982837 | R23: 33.4327311 | S23: 65.61423728 | T23: 34.19111177 | U23: 37.13602501 | V23: 66.35359004
A24: 19 | N24: 760 | O24: 0 | Q24: 31.23982837 | R24: 33.4327311 | S24: 65.61423728 | T24: 34.19111177 | U24: 37.13602501 | V24: 66.35359004
A25: 20 | N25: 760 | O25: 0 | Q25: 31.23982837 | R25: 33.4327311 | S25: 65.61423728 | T25: 34.19111177 | U25: 37.13602501 | V25: 66.35359004
A26: 21 | N26: 760 | O26: 0 | Q26: 31.23982837 | R26: 33.4327311 | S26: 65.61423728 | T26: 34.19111177 | U26: 37.13602501 | V26: 66.35359004
A27: 22 | N27: 760 | O27: 0 | Q27: 31.23982837 | R27: 33.4327311 | S27: 65.61423728 | T27: 34.19111177 | U27: 37.13602501 | V27: 66.35359004
A28: 23 | N28: 760 | O28: 0 | Q28: 31.23982837 | R28: 33.4327311 | S28: 65.61423728 | T28: 34.19111177 | U28: 37.13602501 | V28: 66.35359004
A29: 24 | N29: 760 | O29: 0 | Q29: 31.23982837 | R29: 33.4327311 | S29: 65.61423728 | T29: 34.19111177 | U29: 37.13602501 | V29: 66.35359004
A30: 25 | N30: 760 | O30: 0 | Q30: 31.23982837 | R30: 33.4327311 | S30: 65.61423728 | T30: 34.19111177 | U30: 37.13602501 | V30: 66.35359004
A31: 26 | N31: 760 | O31: 0 | Q31: 31.23982837 | R31: 33.4327311 | S31: 65.61423728 | T31: 34.19111177 | U31: 37.13602501 | V31: 66.35359004
A32: 27 | N32: 760 | O32: 0 | Q32: 31.23982837 | R32: 33.4327311 | S32: 65.61423728 | T32: 34.19111177 | U32: 37.13602501 | V32: 66.35359004
A33: 28 | N33: 760 | O33: 0 | Q33: 31.23982837 | R33: 33.4327311 | S33: 65.61423728 | T33: 34.19111177 | U33: 37.13602501 | V33: 66.35359004
A34: 29 | N34: 760 | O34: 0 | Q34: 31.23982837 | R34: 33.4327311 | S34: 65.61423728 | T34: 34.19111177 | U34: 37.13602501 | V34: 66.35359004
A35: 30 | N35: 760 | O35: 0 | Q35: 31.23982837 | R35: 33.4327311 | S35: 65.61423728 | T35: 34.19111177 | U35: 37.13602501 | V35: 66.35359004
A36: 31 | N36: 760 | O36: 0 | Q36: 31.23982837 | R36: 33.4327311 | S36: 65.61423728 | T36: 34.19111177 | U36: 37.13602501 | V36: 66.35359004
A37: 32 | N37: 760 | O37: 0 | Q37: 31.23982837 | R37: 33.4327311 | S37: 65.61423728 | T37: 34.19111177 | U37: 37.13602501 | V37: 66.35359004
A38: 33 | N38: 760 | O38: 0 | Q38: 31.23982837 | R38: 33.4327311 | S38: 65.61423728 | T38: 34.19111177 | U38: 37.13602501 | V38: 66.35359004
A39: 34 | N39: 760 | O39: 0 | Q39: 31.23982837 | R39: 33.4327311 | S39: 65.61423728 | T39: 34.19111177 | U39: 37.13602501 | V39: 66.35359004
A40: 35 | N40: 760 | O40: 0 | Q40: 31.23982837 | R40: 33.4327311 | S40: 65.61423728 | T40: 34.19111177 | U40: 37.13602501 | V40: 66.35359004
A41: 36 | N41: 760 | O41: 0 | Q41: 31.23982837 | R41: 33.4327311 | S41: 65.61423728 | T41: 34.19111177 | U41: 37.13602501 | V41: 66.35359004
A42: 37 | N42: 760 | O42: 0 | Q42: 31.23982837 | R42: 33.4327311 | S42: 65.61423728 | T42: 34.19111177 | U42: 37.13602501 | V42: 66.35359004
A43: 38 | N43: 760 | O43: 0 | Q43: 31.23982837 | R43: 33.4327311 | S43: 65.61423728 | T43: 34.19111177 | U43: 37.13602501 | V43: 66.35359004
A44: 39 | N44: 760 | O44: 0 | Q44: 31.23982837 | R44: 33.4327311 | S44: 65.61423728 | T44: 34.19111177 | U44: 37.13602501 | V44: 66.35359004
A45: 40 | N45: 760 | O45: 0 | Q45: 31.23982837 | R45: 33.4327311 | S45: 65.61423728 | T45: 34.19111177 | U45: 37.13602501 | V45: 66.35359004
A46: 41 | N46: 760 | O46: 0 | Q46: 31.23982837 | R46: 33.4327311 | S46: 65.61423728 | T46: 34.19111177 | U46: 37.13602501 | V46: 66.35359004
A47: 42 | N47: 760 | O47: 0 | Q47: 31.23982837 | R47: 33.4327311 | S47: 65.61423728 | T47: 34.19111177 | U47: 37.13602501 | V47: 66.35359004
A48: 43 | N48: 760 | O48: 0 | Q48: 31.23982837 | R48: 33.4327311 | S48: 65.61423728 | T48: 34.19111177 | U48: 37.13602501 | V48: 66.35359004
A49: 44 | N49: 760 | O49: 0 | Q49: 31.23982837 | R49: 33.4327311 | S49: 65.61423728 | T49: 34.19111177 | U49: 37.13602501 | V49: 66.35359004
A50: 45 | N50: 760 | O50: 0 | Q50: 31.23982837 | R50: 33.4327311 | S50: 65.61423728 | T50: 34.19111177 | U50: 37.13602501 | V50: 66.35359004
A51: 46 | N51: 760 | O51: 0 | Q51: 31.23982837 | R51: 33.4327311 | S51: 65.61423728 | T51: 34.19111177 | U51: 37.13602501 | V51: 66.35359004
A52: 47 | N52: 760 | O52: 0 | Q52: 31.23982837 | R52: 33.4327311 | S52: 65.61423728 | T52: 34.19111177 | U52: 37.13602501 | V52: 66.35359004
A53: 48 | N53: 760 | O53: 0 | Q53: 31.23982837 | R53: 33.4327311 | S53: 65.61423728 | T53: 34.19111177 | U53: 37.13602501 | V53: 66.35359004
A54: 49 | N54: 760 | O54: 0 | Q54: 31.23982837 | R54: 33.4327311 | S54: 65.61423728 | T54: 34.19111177 | U54: 37.13602501 | V54: 66.35359004
A55: 50 | N55: 760 | O55: 0 | Q55: 31.23982837 | R55: 33.4327311 | S55: 65.61423728 | T55: 34.19111177 | U55: 37.13602501 | V55: 66.35359004
A56: 51 | N56: 760 | O56: 0 | Q56: 31.23982837 | R56: 33.4327311 | S56: 65.61423728 | T56: 34.19111177 | U56: 37.13602501 | V56: 66.35359004
A57: 52 | N57: 760 | O57: 0 | Q57: 31.23982837 | R57: 33.4327311 | S57: 65.61423728 | T57: 34.19111177 | U57: 37.13602501 | V57: 66.35359004
A58: 53 | N58: 760 | O58: 0 | Q58: 31.23982837 | R58: 33.4327311 | S58: 65.61423728 | T58: 34.19111177 | U58: 37.13602501 | V58: 66.35359004
A59: 54 | N59: 760 | O59: 0 | Q59: 31.23982837 | R59: 33.4327311 | S59: 65.61423728 | T59: 34.19111177 | U59: 37.13602501 | V59: 66.35359004
A60: 55 | N60: 760 | O60: 0 | Q60: 31.23982837 | R60: 33.4327311 | S60: 65.61423728 | T60: 34.19111177 | U60: 37.13602501 | V60: 66.35359004
A61: 56 | N61: 760 | O61: 0 | Q61: 31.23982837 | R61: 33.4327311 | S61: 65.61423728 | T61: 34.19111177 | U61: 37.13602501 | V61: 66.35359004
A62: 57 | N62: 760 | O62: 0 | Q62: 31.23982837 | R62: 33.4327311 | S62: 65.61423728 | T62: 34.19111177 | U62: 37.13602501 | V62: 66.35359004
A63: 58 | N63: 760 | O63: 0 | Q63: 31.23982837 | R63: 33.4327311 | S63: 65.61423728 | T63: 34.19111177 | U63: 37.13602501 | V63: 66.35359004
A64: 59 | N64: 760 | O64: 0 | Q64: 31.23982837 | R64: 33.4327311 | S64: 65.61423728 | T64: 34.19111177 | U64: 37.13602501 | V64: 66.35359004
A65: 60 | N65: 760 | O65: 0 | Q65: 31.23982837 | R65: 33.4327311 | S65: 65.61423728 | T65: 34.19111177 | U65: 37.13602501 | V65: 66.35359004
A66: 61 | N66: 760 | O66: 0 | Q66: 31.23982837 | R66: 33.4327311 | S66: 65.61423728 | T66: 34.19111177 | U66: 37.13602501 | V66: 66.35359004
A67: 62 | N67: 760 | O67: 0 | Q67: 31.23982837 | R67: 33.4327311 | S67: 65.61423728 | T67: 34.19111177 | U67: 37.13602501 | V67: 66.35359004
A68: 63 | N68: 760 | O68: 0 | Q68: 31.23982837 | R68: 33.4327311 | S68: 65.61423728 | T68: 34.19111177 | U68: 37.13602501 | V68: 66.35359004
A69: 64 | N69: 760 | O69: 0 | Q69: 31.23982837 | R69: 33.4327311 | S69: 65.61423728 | T69: 34.19111177 | U69: 37.13602501 | V69: 66.35359004
A70: 65 | J70: =IF(OR(ISBLANK($E70),ISBLANK($F70)),"",(EXP((-139.34411+(157570.1/($F70+273.15)-(66423080/($F70+273.15)^2)+(12438000000/($F70+273.15)^3)-(862194900000/($F70+273.15)^4))-($O70*(0.017674-(10.754/($F70+273.15))+(2140.7/($F70+273.15)^2))))))*($N70/760)*((1-((EXP(11.8581-(3840.7/($F70+273.15))-(216961/($F70+273.15)^2)))/($N70/760)))*(1-(0.000975-(0.00001426*$F70)+(0.00000006436*$F70^2))*($N70/760)))/((1-(EXP(11.8581-(3840.7/($F70+273.15))-(216961/($F70+273.15)^2))))*(1-(0.000975-(0.00001426*$F70)+(0.00000006436*$F70^2))))) ->  | N70: 760 | O70: =IF(AND(ISBLANK($G70),ISBLANK($H70)),0,IF(ISBLANK($G70),IF($H70=0,0,(0.008-(0.1692*((($H70*(1+0.0191*($F70-25))/10000)/4.2914)/((1+(($N70/760*1.01325)*(0.000207-(0.0000000637*($N70/760*1.01325))+(0.000000000003989*($N70/760*1.01325)^2))/(1+(0.03426*$F70)+(0.0004464*$F70^2)+(0.4215-0.003107*$F70)*((($H70*(1+0.0191*($F70-25))/10000)/4.2914)))))*(0.6766097+0.0200564*$F70+0.0001104259*$F70^2-0.00000069698*$F70^3+0.0000000010031*$F70^4)))^0.5)+(25.3851*((($H70*(1+0.0191*($F70-25))/10000)/4.2914)/((1+(($N70/760*1.01325)*(0.000207-(0.0000000637*($N70/760*1.01325))+(0.000000000003989*($N70/760*1.01325)^2))/(1+(0.03426*$F70)+(0.0004464*$F70^2)+(0.4215-0.003107*$F70)*((($H70*(1+0.0191*($F70-25))/10000)/4.2914)))))*(0.6766097+0.0200564*$F70+0.0001104259*$F70^2-0.00000069698*$F70^3+0.0000000010031*$F70^4))))+(14.0941*((($H70*(1+0.0191*($F70-25))/10000)/4.2914)/((1+(($N70/760*1.01325)*(0.000207-(0.0000000637*($N70/760*1.01325))+(0.000000000003989*($N70/760*1.01325)^2))/(1+(0.03426*$F70)+(0.0004464*$F70^2)+(0.4215-0.003107*$F70)*((($H70*(1+0.0191*($F70-25))/10000)/4.2914)))))*(0.6766097+0.0200564*$F70+0.0001104259*$F70^2-0.00000069698*$F70^3+0.0000000010031*$F70^4)))^1.5)-(7.0261*((($H70*(1+0.0191*($F70-25))/10000)/4.2914)/((1+(($N70/760*1.01325)*(0.000207-(0.0000000637*($N70/760*1.01325))+(0.000000000003989*($N70/760*1.01325)^2))/(1+(0.03426*$F70)+(0.0004464*$F70^2)+(0.4215-0.003107*$F70)*((($H70*(1+0.0191*($F70-25))/10000)/4.2914)))))*(0.6766097+0.0200564*$F70+0.0001104259*$F70^2-0.00000069698*$F70^3+0.0000000010031*$F70^4)))^2)+(2.7081*((($H70*(1+0.0191*($F70-25))/10000)/4.2914)/((1+(($N70/760*1.01325)*(0.000207-(0.0000000637*($N70/760*1.01325))+(0.000000000003989*($N70/760*1.01325)^2))/(1+(0.03426*$F70)+(0.0004464*$F70^2)+(0.4215-0.003107*$F70)*((($H70*(1+0.0191*($F70-25))/10000)/4.2914)))))*(0.6766097+0.0200564*$F70+0.0001104259*$F70^2-0.00000069698*$F70^3+0.0000000010031*$F70^4)))^2.5)+(($F70-15)/(1+0.0162*($F70-15))*(0.0005-0.0056*((($H70*(1+0.0191*($F70-25))/10000)/4.2914)/((1+(($N70/760*1.01325)*(0.000207-(0.0000000637*($N70/760*1.01325))+(0.000000000003989*($N70/760*1.01325)^2))/(1+(0.03426*$F70)+(0.0004464*$F70^2)+(0.4215-0.003107*$F70)*((($H70*(1+0.0191*($F70-25))/10000)/4.2914)))))*(0.6766097+0.0200564*$F70+0.0001104259*$F70^2-0.00000069698*$F70^3+0.0000000010031*$F70^4)))^0.5-0.0066*((($H70*(1+0.0191*($F70-25))/10000)/4.2914)/((1+(($N70/760*1.01325)*(0.000207-(0.0000000637*($N70/760*1.01325))+(0.000000000003989*($N70/760*1.01325)^2))/(1+(0.03426*$F70)+(0.0004464*$F70^2)+(0.4215-0.003107*$F70)*((($H70*(1+0.0191*($F70-25))/10000)/4.2914)))))*(0.6766097+0.0200564*$F70+0.0001104259*$F70^2-0.00000069698*$F70^3+0.0000000010031*$F70^4)))-0.0375*((($H70*(1+0.0191*($F70-25))/10000)/4.2914)/((1+(($N70/760*1.01325)*(0.000207-(0.0000000637*($N70/760*1.01325))+(0.000000000003989*($N70/760*1.01325)^2))/(1+(0.03426*$F70)+(0.0004464*$F70^2)+(0.4215-0.003107*$F70)*((($H70*(1+0.0191*($F70-25))/10000)/4.2914)))))*(0.6766097+0.0200564*$F70+0.0001104259*$F70^2-0.00000069698*$F70^3+0.0000000010031*$F70^4)))^1.5+0.0636*((($H70*(1+0.0191*($F70-25))/10000)/4.2914)/((1+(($N70/760*1.01325)*(0.000207-(0.0000000637*($N70/760*1.01325))+(0.000000000003989*($N70/760*1.01325)^2))/(1+(0.03426*$F70)+(0.0004464*$F70^2)+(0.4215-0.003107*$F70)*((($H70*(1+0.0191*($F70-25))/10000)/4.2914)))))*(0.6766097+0.0200564*$F70+0.0001104259*$F70^2-0.00000069698*$F70^3+0.0000000010031*$F70^4)))^2-0.0144*((($H70*(1+0.0191*($F70-25))/10000)/4.2914)/((1+(($N70/760*1.01325)*(0.000207-(0.0000000637*($N70/760*1.01325))+(0.000000000003989*($N70/760*1.01325)^2))/(1+(0.03426*$F70)+(0.0004464*$F70^2)+(0.4215-0.003107*$F70)*((($H70*(1+0.0191*($F70-25))/10000)/4.2914)))))*(0.6766097+0.0200564*$F70+0.0001104259*$F70^2-0.00000069698*$F70^3+0.0000000010031*$F70^4)))^2.5)))-(0.008/(1+(1.5*400*((($H70*(1+0.0191*($F70-25))/10000)/4.2914)/((1+(($N70/760*1.01325)*(0.000207-(0.0000000637*($N70/760*1.01325))+(0.000000000003989*($N70/760*1.01325)^2))/(1+(0.03426*$F70)+(0.0004464*$F70^2)+(0.4215-0.003107*$F70)*((($H70*(1+0.0191*($F70-25))/10000)/4.2914)))))*(0.6766097+0.0200564*$F70+0.0001104259*$F70^2-0.00000069698*$F70^3+0.0000000010031*$F70^4))))+(400*((($H70*(1+0.0191*($F70-25))/10000)/4.2914)/((1+(($N70/760*1.01325)*(0.000207-(0.0000000637*($N70/760*1.01325))+(0.000000000003989*($N70/760*1.01325)^2))/(1+(0.03426*$F70)+(0.0004464*$F70^2)+(0.4215-0.003107*$F70)*((($H70*(1+0.0191*($F70-25))/10000)/4.2914)))))*(0.6766097+0.0200564*$F70+0.0001104259*$F70^2-0.00000069698*$F70^3+0.0000000010031*$F70^4))))^2))-((0.0005*($F70-15)/(1+0.0162*($F70-15)))/(1+(100*((($H70*(1+0.0191*($F70-25))/10000)/4.2914)/((1+(($N70/760*1.01325)*(0.000207-(0.0000000637*($N70/760*1.01325))+(0.000000000003989*($N70/760*1.01325)^2))/(1+(0.03426*$F70)+(0.0004464*$F70^2)+(0.4215-0.003107*$F70)*((($H70*(1+0.0191*($F70-25))/10000)/4.2914)))))*(0.6766097+0.0200564*$F70+0.0001104259*$F70^2-0.00000069698*$F70^3+0.0000000010031*$F70^4))))^0.5+(100*((($H70*(1+0.0191*($F70-25))/10000)/4.2914)/((1+(($N70/760*1.01325)*(0.000207-(0.0000000637*($N70/760*1.01325))+(0.000000000003989*($N70/760*1.01325)^2))/(1+(0.03426*$F70)+(0.0004464*$F70^2)+(0.4215-0.003107*$F70)*((($H70*(1+0.0191*($F70-25))/10000)/4.2914)))))*(0.6766097+0.0200564*$F70+0.0001104259*$F70^2-0.00000069698*$F70^3+0.0000000010031*$F70^4))))^1.5))),$G70)) -> 0 | Q70: =1.18443700433286E-13*(HOUR($D70)*60+MINUTE($D70))^5 - 4.14323598958596E-10*(HOUR($D70)*60+MINUTE($D70))^4 + 4.77287727122539E-07*(HOUR($D70)*60+MINUTE($D70))^3 - 0.000196917585728373*(HOUR($D70)*60+MINUTE($D70))^2 + 0.0231405627601475*(HOUR($D70)*60+MINUTE($D70)) + 31.2398283659495 -> 31.23982837 | R70: =1.98879987167155E-13*(HOUR($D70)*60+MINUTE($D70))^5 - 6.89410992615642E-10*(HOUR($D70)*60+MINUTE($D70))^4 + 7.83730333422071E-07*(HOUR($D70)*60+MINUTE($D70))^3 - 0.00031597890334556*(HOUR($D70)*60+MINUTE($D70))^2 + 0.0355135105918976*(HOUR($D70)*60+MINUTE($D70)) + 33.4327310978006 -> 33.4327311 | S70: =9.08511511657608E-14*(HOUR($D70)*60+MINUTE($D70))^5 - 2.99407211249053E-10*(HOUR($D70)*60+MINUTE($D70))^4 + 3.1560253348998E-07*(HOUR($D70)*60+MINUTE($D70))^3 - 0.000108510891323021*(HOUR($D70)*60+MINUTE($D70))^2 + 0.00628484730145829*(HOUR($D70)*60+MINUTE($D70)) + 65.6142372750764 -> 65.61423728 | T70: =1.45776613020539E-13*(HOUR($D70)*60+MINUTE($D70))^5-5.56072270585461E-10*(HOUR($D70)*60+MINUTE($D70))^4+7.06833400255548E-07*(HOUR($D70)*60+MINUTE($D70))^3-0.000318788465226261*(HOUR($D70)*60+MINUTE($D70))^2+0.0281711711660364*(HOUR($D70)*60+MINUTE($D70))+34.1911117699055 -> 34.19111177 | U70: =1.37090283182826E-13*(HOUR($D70)*60+MINUTE($D70))^5 - 5.04960255463897E-10*(HOUR($D70)*60+MINUTE($D70))^4 + 6.13524315934422E-07*(HOUR($D70)*60+MINUTE($D70))^3 - 0.00025817433468811*(HOUR($D70)*60+MINUTE($D70))^2 + 0.0195966892410979*(HOUR($D70)*60+MINUTE($D70)) + 37.1360250050275 -> 37.13602501 | V70: =7.11895278892582E-14*(HOUR($D70)*60+MINUTE($D70))^5-2.64195273421019E-10*(HOUR($D70)*60+MINUTE($D70))^4 + 3.22473039456213E-07*(HOUR($D70)*60+MINUTE($D70))^3 - 0.00013606873481109*(HOUR($D70)*60+MINUTE($D70))^2 + 0.0107100719720847*(HOUR($D70)*60+MINUTE($D70))+66.3535900428978 -> 66.35359004
A71: 66 | N71: 760 | O71: 0 | Q71: 31.23982837 | R71: 33.4327311 | S71: 65.61423728 | T71: 34.19111177 | U71: 37.13602501 | V71: 66.35359004
A72: 67 | N72: 760 | O72: 0 | Q72: 31.23982837 | R72: 33.4327311 | S72: 65.61423728 | T72: 34.19111177 | U72: 37.13602501 | V72: 66.35359004
A73: 68 | N73: 760 | O73: 0 | Q73: 31.23982837 | R73: 33.4327311 | S73: 65.61423728 | T73: 34.19111177 | U73: 37.13602501 | V73: 66.35359004
A74: 69 | K74: =IF(OR(ISBLANK(E74),ISBLANK(F74)),"",E74/J74*100) ->  | L74: =IF(AND(ISBLANK($B74),ISBLANK($C74),ISBLANK($D74)),"",IF(OR(ISBLANK($B74),ISBLANK($C74),ISBLANK($D74)),"Must Enter All Required Data",IF($O74>2.7,42,IF(AND($O74=0,OR($B74="Marine",$C74="Estuary/Marine")),42,IF(OR(CONCATENATE($B74,"-",$C74)="Peninsula-Lake/Wetland",CONCATENATE($B74,"-",$C74)="Everglades-Lake/Wetland"),U74,IF(OR(CONCATENATE($B74,"-",$C74)="Northeast-Lake/Wetland",CONCATENATE($B74,"-",$C74)="Big Bend-Lake/Wetland"),T74,IF(CONCATENATE($B74,"-",$C74)="Panhandle West-Lake/Wetland",V74,IF(OR(CONCATENATE($B74,"-",$C74)="Peninsula-Stream/Canal",CONCATENATE($B74,"-",$C74)="Everglades-Stream/Canal"),R74,IF(OR(CONCATENATE($B74,"-",$C74)="Northeast-Stream/Canal",CONCATENATE($B74,"-",$C74)="Big Bend-Stream/Canal"),Q74,IF(CONCATENATE($B74,"-",$C74)="Panhandle West-Stream/Canal",S74,"Error! Check Entries")))))))))) ->  | M74: =IF(O74>2.7,"Marine Criteria Apply, No time of day adjustment.",IF(AND(O74=0,OR(B74="Marine",C74="Estuary/Marine")),"Marine Criteria Apply, No time of day adjustment.",IF(AND($O74<=2.7,OR($B74="Marine",$C74="Estuary/Marine")),"Salinity and Bioregion or Waterbody Type Don't Agree",""))) ->  | N74: =IF(ISBLANK(I74),760,I74) -> 760 | O74: 0 | Q74: 31.23982837 | R74: 33.4327311 | S74: 65.61423728 | T74: 34.19111177 | U74: 37.13602501 | V74: 66.35359004
A75: 70 | N75: 760 | O75: 0 | Q75: 31.23982837 | R75: 33.4327311 | S75: 65.61423728 | T75: 34.19111177 | U75: 37.13602501 | V75: 66.35359004
A76: 71 | N76: 760 | O76: 0 | Q76: 31.23982837 | R76: 33.4327311 | S76: 65.61423728 | T76: 34.19111177 | U76: 37.13602501 | V76: 66.35359004
A77: 72 | N77: 760 | O77: 0 | Q77: 31.23982837 | R77: 33.4327311 | S77: 65.61423728 | T77: 34.19111177 | U77: 37.13602501 | V77: 66.35359004
A78: 73 | N78: 760 | O78: 0 | Q78: 31.23982837 | R78: 33.4327311 | S78: 65.61423728 | T78: 34.19111177 | U78: 37.13602501 | V78: 66.35359004
A79: 74 | N79: 760 | O79: 0 | Q79: 31.23982837 | R79: 33.4327311 | S79: 65.61423728 | T79: 34.19111177 | U79: 37.13602501 | V79: 66.35359004
A80: 75 | N80: 760 | O80: 0 | Q80: 31.23982837 | R80: 33.4327311 | S80: 65.61423728 | T80: 34.19111177 | U80: 37.13602501 | V80: 66.35359004
A81: 76 | N81: 760 | O81: 0 | Q81: 31.23982837 | R81: 33.4327311 | S81: 65.61423728 | T81: 34.19111177 | U81: 37.13602501 | V81: 66.35359004
A82: 77 | N82: 760 | O82: 0 | Q82: 31.23982837 | R82: 33.4327311 | S82: 65.61423728 | T82: 34.19111177 | U82: 37.13602501 | V82: 66.35359004
A83: 78 | N83: 760 | O83: 0 | Q83: 31.23982837 | R83: 33.4327311 | S83: 65.61423728 | T83: 34.19111177 | U83: 37.13602501 | V83: 66.35359004
A84: 79 | N84: 760 | O84: 0 | Q84: 31.23982837 | R84: 33.4327311 | S84: 65.61423728 | T84: 34.19111177 | U84: 37.13602501 | V84: 66.35359004
A85: 80 | N85: 760 | O85: 0 | Q85: 31.23982837 | R85: 33.4327311 | S85: 65.61423728 | T85: 34.19111177 | U85: 37.13602501 | V85: 66.35359004
A86: 81 | N86: 760 | O86: 0 | Q86: 31.23982837 | R86: 33.4327311 | S86: 65.61423728 | T86: 34.19111177 | U86: 37.13602501 | V86: 66.35359004
A87: 82 | N87: 760 | O87: 0 | Q87: 31.23982837 | R87: 33.4327311 | S87: 65.61423728 | T87: 34.19111177 | U87: 37.13602501 | V87: 66.35359004
A88: 83 | N88: 760 | O88: 0 | Q88: 31.23982837 | R88: 33.4327311 | S88: 65.61423728 | T88: 34.19111177 | U88: 37.13602501 | V88: 66.35359004
A89: 84 | N89: 760 | O89: 0 | Q89: 31.23982837 | R89: 33.4327311 | S89: 65.61423728 | T89: 34.19111177 | U89: 37.13602501 | V89: 66.35359004
A90: 85 | N90: 760 | O90: 0 | Q90: 31.23982837 | R90: 33.4327311 | S90: 65.61423728 | T90: 34.19111177 | U90: 37.13602501 | V90: 66.35359004
A91: 86 | N91: 760 | O91: 0 | Q91: 31.23982837 | R91: 33.4327311 | S91: 65.61423728 | T91: 34.19111177 | U91: 37.13602501 | V91: 66.35359004
A92: 87 | N92: 760 | O92: 0 | Q92: 31.23982837 | R92: 33.4327311 | S92: 65.61423728 | T92: 34.19111177 | U92: 37.13602501 | V92: 66.35359004
A93: 88 | N93: 760 | O93: 0 | Q93: 31.23982837 | R93: 33.4327311 | S93: 65.61423728 | T93: 34.19111177 | U93: 37.13602501 | V93: 66.35359004
A94: 89 | N94: 760 | O94: 0 | Q94: 31.23982837 | R94: 33.4327311 | S94: 65.61423728 | T94: 34.19111177 | U94: 37.13602501 | V94: 66.35359004
A95: 90 | N95: 760 | O95: 0 | Q95: 31.23982837 | R95: 33.4327311 | S95: 65.61423728 | T95: 34.19111177 | U95: 37.13602501 | V95: 66.35359004
A96: 91 | N96: 760 | O96: 0 | Q96: 31.23982837 | R96: 33.4327311 | S96: 65.61423728 | T96: 34.19111177 | U96: 37.13602501 | V96: 66.35359004
A97: 92 | N97: 760 | O97: 0 | Q97: 31.23982837 | R97: 33.4327311 | S97: 65.61423728 | T97: 34.19111177 | U97: 37.13602501 | V97: 66.35359004
A98: 93 | N98: 760 | O98: 0 | Q98: 31.23982837 | R98: 33.4327311 | S98: 65.61423728 | T98: 34.19111177 | U98: 37.13602501 | V98: 66.35359004
A99: 94 | N99: 760 | O99: 0 | Q99: 31.23982837 | R99: 33.4327311 | S99: 65.61423728 | T99: 34.19111177 | U99: 37.13602501 | V99: 66.35359004
A100: 95 | N100: 760 | O100: 0 | Q100: 31.23982837 | R100: 33.4327311 | S100: 65.61423728 | T100: 34.19111177 | U100: 37.13602501 | V100: 66.35359004
A101: 96 | N101: 760 | O101: 0 | Q101: 31.23982837 | R101: 33.4327311 | S101: 65.61423728 | T101: 34.19111177 | U101: 37.13602501 | V101: 66.35359004
A102: 97 | N102: 760 | O102: 0 | Q102: 31.23982837 | R102: 33.4327311 | S102: 65.61423728 | T102: 34.19111177 | U102: 37.13602501 | V102: 66.35359004
A103: 98 | N103: 760 | O103: 0 | Q103: 31.23982837 | R103: 33.4327311 | S103: 65.61423728 | T103: 34.19111177 | U103: 37.13602501 | V103: 66.35359004
A104: 99 | N104: 760 | O104: 0 | Q104: 31.23982837 | R104: 33.4327311 | S104: 65.61423728 | T104: 34.19111177 | U104: 37.13602501 | V104: 66.35359004
A105: 100 | N105: 760 | O105: 0 | Q105: 31.23982837 | R105: 33.4327311 | S105: 65.61423728 | T105: 34.19111177 | U105: 37.13602501 | V105: 66.35359004
A106: 101 | N106: 760 | O106: 0 | Q106: 31.23982837 | R106: 33.4327311 | S106: 65.61423728 | T106: 34.19111177 | U106: 37.13602501 | V106: 66.35359004
A107: 102 | N107: 760 | O107: 0 | Q107: 31.23982837 | R107: 33.4327311 | S107: 65.61423728 | T107: 34.19111177 | U107: 37.13602501 | V107: 66.35359004
A108: 103 | N108: 760 | O108: 0 | Q108: 31.23982837 | R108: 33.4327311 | S108: 65.61423728 | T108: 34.19111177 | U108: 37.13602501 | V108: 66.35359004
A109: 104 | N109: 760 | O109: 0 | Q109: 31.23982837 | R109: 33.4327311 | S109: 65.61423728 | T109: 34.19111177 | U109: 37.13602501 | V109: 66.35359004
A110: 105 | N110: 760 | O110: 0 | Q110: 31.23982837 | R110: 33.4327311 | S110: 65.61423728 | T110: 34.19111177 | U110: 37.13602501 | V110: 66.35359004
A111: 106 | N111: 760 | O111: 0 | Q111: 31.23982837 | R111: 33.4327311 | S111: 65.61423728 | T111: 34.19111177 | U111: 37.13602501 | V111: 66.35359004
A112: 107 | N112: 760 | O112: 0 | Q112: 31.23982837 | R112: 33.4327311 | S112: 65.61423728 | T112: 34.19111177 | U112: 37.13602501 | V112: 66.35359004
A113: 108 | N113: 760 | O113: 0 | Q113: 31.23982837 | R113: 33.4327311 | S113: 65.61423728 | T113: 34.19111177 | U113: 37.13602501 | V113: 66.35359004
A114: 109 | N114: 760 | O114: 0 | Q114: 31.23982837 | R114: 33.4327311 | S114: 65.61423728 | T114: 34.19111177 | U114: 37.13602501 | V114: 66.35359004
A115: 110 | N115: 760 | O115: 0 | Q115: 31.23982837 | R115: 33.4327311 | S115: 65.61423728 | T115: 34.19111177 | U115: 37.13602501 | V115: 66.35359004
A116: 111 | N116: 760 | O116: 0 | Q116: 31.23982837 | R116: 33.4327311 | S116: 65.61423728 | T116: 34.19111177 | U116: 37.13602501 | V116: 66.35359004
A117: 112 | N117: 760 | O117: 0 | Q117: 31.23982837 | R117: 33.4327311 | S117: 65.61423728 | T117: 34.19111177 | U117: 37.13602501 | V117: 66.35359004
A118: 113 | N118: 760 | O118: 0 | Q118: 31.23982837 | R118: 33.4327311 | S118: 65.61423728 | T118: 34.19111177 | U118: 37.13602501 | V118: 66.35359004
A119: 114 | N119: 760 | O119: 0 | Q119: 31.23982837 | R119: 33.4327311 | S119: 65.61423728 | T119: 34.19111177 | U119: 37.13602501 | V119: 66.35359004
A120: 115 | N120: 760 | O120: 0 | Q120: 31.23982837 | R120: 33.4327311 | S120: 65.61423728 | T120: 34.19111177 | U120: 37.13602501 | V120: 66.35359004
A121: 116 | N121: 760 | O121: 0 | Q121: 31.23982837 | R121: 33.4327311 | S121: 65.61423728 | T121: 34.19111177 | U121: 37.13602501 | V121: 66.35359004
A122: 117 | N122: 760 | O122: 0 | Q122: 31.23982837 | R122: 33.4327311 | S122: 65.61423728 | T122: 34.19111177 | U122: 37.13602501 | V122: 66.35359004
A123: 118 | N123: 760 | O123: 0 | Q123: 31.23982837 | R123: 33.4327311 | S123: 65.61423728 | T123: 34.19111177 | U123: 37.13602501 | V123: 66.35359004
A124: 119 | N124: 760 | O124: 0 | Q124: 31.23982837 | R124: 33.4327311 | S124: 65.61423728 | T124: 34.19111177 | U124: 37.13602501 | V124: 66.35359004
A125: 120 | N125: 760 | O125: 0 | Q125: 31.23982837 | R125: 33.4327311 | S125: 65.61423728 | T125: 34.19111177 | U125: 37.13602501 | V125: 66.35359004
A126: 121 | N126: 760 | O126: 0 | Q126: 31.23982837 | R126: 33.4327311 | S126: 65.61423728 | T126: 34.19111177 | U126: 37.13602501 | V126: 66.35359004
A127: 122 | N127: 760 | O127: 0 | Q127: 31.23982837 | R127: 33.4327311 | S127: 65.61423728 | T127: 34.19111177 | U127: 37.13602501 | V127: 66.35359004
A128: 123 | N128: 760 | O128: 0 | Q128: 31.23982837 | R128: 33.4327311 | S128: 65.61423728 | T128: 34.19111177 | U128: 37.13602501 | V128: 66.35359004
A129: 124 | N129: 760 | O129: 0 | Q129: 31.23982837 | R129: 33.4327311 | S129: 65.61423728 | T129: 34.19111177 | U129: 37.13602501 | V129: 66.35359004
A130: 125 | N130: 760 | O130: 0 | Q130: 31.23982837 | R130: 33.4327311 | S130: 65.61423728 | T130: 34.19111177 | U130: 37.13602501 | V130: 66.35359004
A131: 126 | N131: 760 | O131: 0 | Q131: 31.23982837 | R131: 33.4327311 | S131: 65.61423728 | T131: 34.19111177 | U131: 37.13602501 | V131: 66.35359004
A132: 127 | N132: 760 | O132: 0 | Q132: 31.23982837 | R132: 33.4327311 | S132: 65.61423728 | T132: 34.19111177 | U132: 37.13602501 | V132: 66.35359004
A133: 128 | N133: 760 | O133: 0 | Q133: 31.23982837 | R133: 33.4327311 | S133: 65.61423728 | T133: 34.19111177 | U133: 37.13602501 | V133: 66.35359004
A134: 129 | J134: =IF(OR(ISBLANK($E134),ISBLANK($F134)),"",(EXP((-139.34411+(157570.1/($F134+273.15)-(66423080/($F134+273.15)^2)+(12438000000/($F134+273.15)^3)-(862194900000/($F134+273.15)^4))-($O134*(0.017674-(10.754/($F134+273.15))+(2140.7/($F134+273.15)^2))))))*($N134/760)*((1-((EXP(11.8581-(3840.7/($F134+273.15))-(216961/($F134+273.15)^2)))/($N134/760)))*(1-(0.000975-(0.00001426*$F134)+(0.00000006436*$F134^2))*($N134/760)))/((1-(EXP(11.8581-(3840.7/($F134+273.15))-(216961/($F134+273.15)^2))))*(1-(0.000975-(0.00001426*$F134)+(0.00000006436*$F134^2))))) ->  | N134: 760 | O134: =IF(AND(ISBLANK($G134),ISBLANK($H134)),0,IF(ISBLANK($G134),IF($H134=0,0,(0.008-(0.1692*((($H134*(1+0.0191*($F134-25))/10000)/4.2914)/((1+(($N134/760*1.01325)*(0.000207-(0.0000000637*($N134/760*1.01325))+(0.000000000003989*($N134/760*1.01325)^2))/(1+(0.03426*$F134)+(0.0004464*$F134^2)+(0.4215-0.003107*$F134)*((($H134*(1+0.0191*($F134-25))/10000)/4.2914)))))*(0.6766097+0.0200564*$F134+0.0001104259*$F134^2-0.00000069698*$F134^3+0.0000000010031*$F134^4)))^0.5)+(25.3851*((($H134*(1+0.0191*($F134-25))/10000)/4.2914)/((1+(($N134/760*1.01325)*(0.000207-(0.0000000637*($N134/760*1.01325))+(0.000000000003989*($N134/760*1.01325)^2))/(1+(0.03426*$F134)+(0.0004464*$F134^2)+(0.4215-0.003107*$F134)*((($H134*(1+0.0191*($F134-25))/10000)/4.2914)))))*(0.6766097+0.0200564*$F134+0.0001104259*$F134^2-0.00000069698*$F134^3+0.0000000010031*$F134^4))))+(14.0941*((($H134*(1+0.0191*($F134-25))/10000)/4.2914)/((1+(($N134/760*1.01325)*(0.000207-(0.0000000637*($N134/760*1.01325))+(0.000000000003989*($N134/760*1.01325)^2))/(1+(0.03426*$F134)+(0.0004464*$F134^2)+(0.4215-0.003107*$F134)*((($H134*(1+0.0191*($F134-25))/10000)/4.2914)))))*(0.6766097+0.0200564*$F134+0.0001104259*$F134^2-0.00000069698*$F134^3+0.0000000010031*$F134^4)))^1.5)-(7.0261*((($H134*(1+0.0191*($F134-25))/10000)/4.2914)/((1+(($N134/760*1.01325)*(0.000207-(0.0000000637*($N134/760*1.01325))+(0.000000000003989*($N134/760*1.01325)^2))/(1+(0.03426*$F134)+(0.0004464*$F134^2)+(0.4215-0.003107*$F134)*((($H134*(1+0.0191*($F134-25))/10000)/4.2914)))))*(0.6766097+0.0200564*$F134+0.0001104259*$F134^2-0.00000069698*$F134^3+0.0000000010031*$F134^4)))^2)+(2.7081*((($H134*(1+0.0191*($F134-25))/10000)/4.2914)/((1+(($N134/760*1.01325)*(0.000207-(0.0000000637*($N134/760*1.01325))+(0.000000000003989*($N134/760*1.01325)^2))/(1+(0.03426*$F134)+(0.0004464*$F134^2)+(0.4215-0.003107*$F134)*((($H134*(1+0.0191*($F134-25))/10000)/4.2914)))))*(0.6766097+0.0200564*$F134+0.0001104259*$F134^2-0.00000069698*$F134^3+0.0000000010031*$F134^4)))^2.5)+(($F134-15)/(1+0.0162*($F134-15))*(0.0005-0.0056*((($H134*(1+0.0191*($F134-25))/10000)/4.2914)/((1+(($N134/760*1.01325)*(0.000207-(0.0000000637*($N134/760*1.01325))+(0.000000000003989*($N134/760*1.01325)^2))/(1+(0.03426*$F134)+(0.0004464*$F134^2)+(0.4215-0.003107*$F134)*((($H134*(1+0.0191*($F134-25))/10000)/4.2914)))))*(0.6766097+0.0200564*$F134+0.0001104259*$F134^2-0.00000069698*$F134^3+0.0000000010031*$F134^4)))^0.5-0.0066*((($H134*(1+0.0191*($F134-25))/10000)/4.2914)/((1+(($N134/760*1.01325)*(0.000207-(0.0000000637*($N134/760*1.01325))+(0.000000000003989*($N134/760*1.01325)^2))/(1+(0.03426*$F134)+(0.0004464*$F134^2)+(0.4215-0.003107*$F134)*((($H134*(1+0.0191*($F134-25))/10000)/4.2914)))))*(0.6766097+0.0200564*$F134+0.0001104259*$F134^2-0.00000069698*$F134^3+0.0000000010031*$F134^4)))-0.0375*((($H134*(1+0.0191*($F134-25))/10000)/4.2914)/((1+(($N134/760*1.01325)*(0.000207-(0.0000000637*($N134/760*1.01325))+(0.000000000003989*($N134/760*1.01325)^2))/(1+(0.03426*$F134)+(0.0004464*$F134^2)+(0.4215-0.003107*$F134)*((($H134*(1+0.0191*($F134-25))/10000)/4.2914)))))*(0.6766097+0.0200564*$F134+0.0001104259*$F134^2-0.00000069698*$F134^3+0.0000000010031*$F134^4)))^1.5+0.0636*((($H134*(1+0.0191*($F134-25))/10000)/4.2914)/((1+(($N134/760*1.01325)*(0.000207-(0.0000000637*($N134/760*1.01325))+(0.000000000003989*($N134/760*1.01325)^2))/(1+(0.03426*$F134)+(0.0004464*$F134^2)+(0.4215-0.003107*$F134)*((($H134*(1+0.0191*($F134-25))/10000)/4.2914)))))*(0.6766097+0.0200564*$F134+0.0001104259*$F134^2-0.00000069698*$F134^3+0.0000000010031*$F134^4)))^2-0.0144*((($H134*(1+0.0191*($F134-25))/10000)/4.2914)/((1+(($N134/760*1.01325)*(0.000207-(0.0000000637*($N134/760*1.01325))+(0.000000000003989*($N134/760*1.01325)^2))/(1+(0.03426*$F134)+(0.0004464*$F134^2)+(0.4215-0.003107*$F134)*((($H134*(1+0.0191*($F134-25))/10000)/4.2914)))))*(0.6766097+0.0200564*$F134+0.0001104259*$F134^2-0.00000069698*$F134^3+0.0000000010031*$F134^4)))^2.5)))-(0.008/(1+(1.5*400*((($H134*(1+0.0191*($F134-25))/10000)/4.2914)/((1+(($N134/760*1.01325)*(0.000207-(0.0000000637*($N134/760*1.01325))+(0.000000000003989*($N134/760*1.01325)^2))/(1+(0.03426*$F134)+(0.0004464*$F134^2)+(0.4215-0.003107*$F134)*((($H134*(1+0.0191*($F134-25))/10000)/4.2914)))))*(0.6766097+0.0200564*$F134+0.0001104259*$F134^2-0.00000069698*$F134^3+0.0000000010031*$F134^4))))+(400*((($H134*(1+0.0191*($F134-25))/10000)/4.2914)/((1+(($N134/760*1.01325)*(0.000207-(0.0000000637*($N134/760*1.01325))+(0.000000000003989*($N134/760*1.01325)^2))/(1+(0.03426*$F134)+(0.0004464*$F134^2)+(0.4215-0.003107*$F134)*((($H134*(1+0.0191*($F134-25))/10000)/4.2914)))))*(0.6766097+0.0200564*$F134+0.0001104259*$F134^2-0.00000069698*$F134^3+0.0000000010031*$F134^4))))^2))-((0.0005*($F134-15)/(1+0.0162*($F134-15)))/(1+(100*((($H134*(1+0.0191*($F134-25))/10000)/4.2914)/((1+(($N134/760*1.01325)*(0.000207-(0.0000000637*($N134/760*1.01325))+(0.000000000003989*($N134/760*1.01325)^2))/(1+(0.03426*$F134)+(0.0004464*$F134^2)+(0.4215-0.003107*$F134)*((($H134*(1+0.0191*($F134-25))/10000)/4.2914)))))*(0.6766097+0.0200564*$F134+0.0001104259*$F134^2-0.00000069698*$F134^3+0.0000000010031*$F134^4))))^0.5+(100*((($H134*(1+0.0191*($F134-25))/10000)/4.2914)/((1+(($N134/760*1.01325)*(0.000207-(0.0000000637*($N134/760*1.01325))+(0.000000000003989*($N134/760*1.01325)^2))/(1+(0.03426*$F134)+(0.0004464*$F134^2)+(0.4215-0.003107*$F134)*((($H134*(1+0.0191*($F134-25))/10000)/4.2914)))))*(0.6766097+0.0200564*$F134+0.0001104259*$F134^2-0.00000069698*$F134^3+0.0000000010031*$F134^4))))^1.5))),$G134)) -> 0 | Q134: =1.18443700433286E-13*(HOUR($D134)*60+MINUTE($D134))^5 - 4.14323598958596E-10*(HOUR($D134)*60+MINUTE($D134))^4 + 4.77287727122539E-07*(HOUR($D134)*60+MINUTE($D134))^3 - 0.000196917585728373*(HOUR($D134)*60+MINUTE($D134))^2 + 0.0231405627601475*(HOUR($D134)*60+MINUTE($D134)) + 31.2398283659495 -> 31.23982837 | R134: =1.98879987167155E-13*(HOUR($D134)*60+MINUTE($D134))^5 - 6.89410992615642E-10*(HOUR($D134)*60+MINUTE($D134))^4 + 7.83730333422071E-07*(HOUR($D134)*60+MINUTE($D134))^3 - 0.00031597890334556*(HOUR($D134)*60+MINUTE($D134))^2 + 0.0355135105918976*(HOUR($D134)*60+MINUTE($D134)) + 33.4327310978006 -> 33.4327311 | S134: =9.08511511657608E-14*(HOUR($D134)*60+MINUTE($D134))^5 - 2.99407211249053E-10*(HOUR($D134)*60+MINUTE($D134))^4 + 3.1560253348998E-07*(HOUR($D134)*60+MINUTE($D134))^3 - 0.000108510891323021*(HOUR($D134)*60+MINUTE($D134))^2 + 0.00628484730145829*(HOUR($D134)*60+MINUTE($D134)) + 65.6142372750764 -> 65.61423728 | T134: =1.45776613020539E-13*(HOUR($D134)*60+MINUTE($D134))^5-5.56072270585461E-10*(HOUR($D134)*60+MINUTE($D134))^4+7.06833400255548E-07*(HOUR($D134)*60+MINUTE($D134))^3-0.000318788465226261*(HOUR($D134)*60+MINUTE($D134))^2+0.0281711711660364*(HOUR($D134)*60+MINUTE($D134))+34.1911117699055 -> 34.19111177 | U134: =1.37090283182826E-13*(HOUR($D134)*60+MINUTE($D134))^5 - 5.04960255463897E-10*(HOUR($D134)*60+MINUTE($D134))^4 + 6.13524315934422E-07*(HOUR($D134)*60+MINUTE($D134))^3 - 0.00025817433468811*(HOUR($D134)*60+MINUTE($D134))^2 + 0.0195966892410979*(HOUR($D134)*60+MINUTE($D134)) + 37.1360250050275 -> 37.13602501 | V134: =7.11895278892582E-14*(HOUR($D134)*60+MINUTE($D134))^5-2.64195273421019E-10*(HOUR($D134)*60+MINUTE($D134))^4 + 3.22473039456213E-07*(HOUR($D134)*60+MINUTE($D134))^3 - 0.00013606873481109*(HOUR($D134)*60+MINUTE($D134))^2 + 0.0107100719720847*(HOUR($D134)*60+MINUTE($D134))+66.3535900428978 -> 66.35359004
A135: 130 | N135: 760 | O135: 0 | Q135: 31.23982837 | R135: 33.4327311 | S135: 65.61423728 | T135: 34.19111177 | U135: 37.13602501 | V135: 66.35359004
A136: 131 | N136: 760 | O136: 0 | Q136: 31.23982837 | R136: 33.4327311 | S136: 65.61423728 | T136: 34.19111177 | U136: 37.13602501 | V136: 66.35359004
A137: 132 | N137: 760 | O137: 0 | Q137: 31.23982837 | R137: 33.4327311 | S137: 65.61423728 | T137: 34.19111177 | U137: 37.13602501 | V137: 66.35359004
A138: 133 | K138: =IF(OR(ISBLANK(E138),ISBLANK(F138)),"",E138/J138*100) ->  | L138: =IF(AND(ISBLANK($B138),ISBLANK($C138),ISBLANK($D138)),"",IF(OR(ISBLANK($B138),ISBLANK($C138),ISBLANK($D138)),"Must Enter All Required Data",IF($O138>2.7,42,IF(AND($O138=0,OR($B138="Marine",$C138="Estuary/Marine")),42,IF(OR(CONCATENATE($B138,"-",$C138)="Peninsula-Lake/Wetland",CONCATENATE($B138,"-",$C138)="Everglades-Lake/Wetland"),U138,IF(OR(CONCATENATE($B138,"-",$C138)="Northeast-Lake/Wetland",CONCATENATE($B138,"-",$C138)="Big Bend-Lake/Wetland"),T138,IF(CONCATENATE($B138,"-",$C138)="Panhandle West-Lake/Wetland",V138,IF(OR(CONCATENATE($B138,"-",$C138)="Peninsula-Stream/Canal",CONCATENATE($B138,"-",$C138)="Everglades-Stream/Canal"),R138,IF(OR(CONCATENATE($B138,"-",$C138)="Northeast-Stream/Canal",CONCATENATE($B138,"-",$C138)="Big Bend-Stream/Canal"),Q138,IF(CONCATENATE($B138,"-",$C138)="Panhandle West-Stream/Canal",S138,"Error! Check Entries")))))))))) ->  | M138: =IF(O138>2.7,"Marine Criteria Apply, No time of day adjustment.",IF(AND(O138=0,OR(B138="Marine",C138="Estuary/Marine")),"Marine Criteria Apply, No time of day adjustment.",IF(AND($O138<=2.7,OR($B138="Marine",$C138="Estuary/Marine")),"Salinity and Bioregion or Waterbody Type Don't Agree",""))) ->  | N138: =IF(ISBLANK(I138),760,I138) -> 760 | O138: 0 | Q138: 31.23982837 | R138: 33.4327311 | S138: 65.61423728 | T138: 34.19111177 | U138: 37.13602501 | V138: 66.35359004
A139: 134 | N139: 760 | O139: 0 | Q139: 31.23982837 | R139: 33.4327311 | S139: 65.61423728 | T139: 34.19111177 | U139: 37.13602501 | V139: 66.35359004
A140: 135 | N140: 760 | O140: 0 | Q140: 31.23982837 | R140: 33.4327311 | S140: 65.61423728 | T140: 34.19111177 | U140: 37.13602501 | V140: 66.35359004
A141: 136 | N141: 760 | O141: 0 | Q141: 31.23982837 | R141: 33.4327311 | S141: 65.61423728 | T141: 34.19111177 | U141: 37.13602501 | V141: 66.35359004
A142: 137 | N142: 760 | O142: 0 | Q142: 31.23982837 | R142: 33.4327311 | S142: 65.61423728 | T142: 34.19111177 | U142: 37.13602501 | V142: 66.35359004
A143: 138 | N143: 760 | O143: 0 | Q143: 31.23982837 | R143: 33.4327311 | S143: 65.61423728 | T143: 34.19111177 | U143: 37.13602501 | V143: 66.35359004
A144: 139 | N144: 760 | O144: 0 | Q144: 31.23982837 | R144: 33.4327311 | S144: 65.61423728 | T144: 34.19111177 | U144: 37.13602501 | V144: 66.35359004
A145: 140 | N145: 760 | O145: 0 | Q145: 31.23982837 | R145: 33.4327311 | S145: 65.61423728 | T145: 34.19111177 | U145: 37.13602501 | V145: 66.35359004
A146: 141 | N146: 760 | O146: 0 | Q146: 31.23982837 | R146: 33.4327311 | S146: 65.61423728 | T146: 34.19111177 | U146: 37.13602501 | V146: 66.35359004
A147: 142 | N147: 760 | O147: 0 | Q147: 31.23982837 | R147: 33.4327311 | S147: 65.61423728 | T147: 34.19111177 | U147: 37.13602501 | V147: 66.35359004
A148: 143 | N148: 760 | O148: 0 | Q148: 31.23982837 | R148: 33.4327311 | S148: 65.61423728 | T148: 34.19111177 | U148: 37.13602501 | V148: 66.35359004
A149: 144 | N149: 760 | O149: 0 | Q149: 31.23982837 | R149: 33.4327311 | S149: 65.61423728 | T149: 34.19111177 | U149: 37.13602501 | V149: 66.35359004
A150: 145 | N150: 760 | O150: 0 | Q150: 31.23982837 | R150: 33.4327311 | S150: 65.61423728 | T150: 34.19111177 | U150: 37.13602501 | V150: 66.35359004
A151: 146 | N151: 760 | O151: 0 | Q151: 31.23982837 | R151: 33.4327311 | S151: 65.61423728 | T151: 34.19111177 | U151: 37.13602501 | V151: 66.35359004
A152: 147 | N152: 760 | O152: 0 | Q152: 31.23982837 | R152: 33.4327311 | S152: 65.61423728 | T152: 34.19111177 | U152: 37.13602501 | V152: 66.35359004
A153: 148 | N153: 760 | O153: 0 | Q153: 31.23982837 | R153: 33.4327311 | S153: 65.61423728 | T153: 34.19111177 | U153: 37.13602501 | V153: 66.35359004
A154: 149 | N154: 760 | O154: 0 | Q154: 31.23982837 | R154: 33.4327311 | S154: 65.61423728 | T154: 34.19111177 | U154: 37.13602501 | V154: 66.35359004
A155: 150 | N155: 760 | O155: 0 | Q155: 31.23982837 | R155: 33.4327311 | S155: 65.61423728 | T155: 34.19111177 | U155: 37.13602501 | V155: 66.35359004
A156: 151 | N156: 760 | O156: 0 | Q156: 31.23982837 | R156: 33.4327311 | S156: 65.61423728 | T156: 34.19111177 | U156: 37.13602501 | V156: 66.35359004
A157: 152 | N157: 760 | O157: 0 | Q157: 31.23982837 | R157: 33.4327311 | S157: 65.61423728 | T157: 34.19111177 | U157: 37.13602501 | V157: 66.35359004
A158: 153 | N158: 760 | O158: 0 | Q158: 31.23982837 | R158: 33.4327311 | S158: 65.61423728 | T158: 34.19111177 | U158: 37.13602501 | V158: 66.35359004
A159: 154 | N159: 760 | O159: 0 | Q159: 31.23982837 | R159: 33.4327311 | S159: 65.61423728 | T159: 34.19111177 | U159: 37.13602501 | V159: 66.35359004
A160: 155 | N160: 760 | O160: 0 | Q160: 31.23982837 | R160: 33.4327311 | S160: 65.61423728 | T160: 34.19111177 | U160: 37.13602501 | V160: 66.35359004
A161: 156 | N161: 760 | O161: 0 | Q161: 31.23982837 | R161: 33.4327311 | S161: 65.61423728 | T161: 34.19111177 | U161: 37.13602501 | V161: 66.35359004
A162: 157 | N162: 760 | O162: 0 | Q162: 31.23982837 | R162: 33.4327311 | S162: 65.61423728 | T162: 34.19111177 | U162: 37.13602501 | V162: 66.35359004
A163: 158 | N163: 760 | O163: 0 | Q163: 31.23982837 | R163: 33.4327311 | S163: 65.61423728 | T163: 34.19111177 | U163: 37.13602501 | V163: 66.35359004
A164: 159 | N164: 760 | O164: 0 | Q164: 31.23982837 | R164: 33.4327311 | S164: 65.61423728 | T164: 34.19111177 | U164: 37.13602501 | V164: 66.35359004
A165: 160 | N165: 760 | O165: 0 | Q165: 31.23982837 | R165: 33.4327311 | S165: 65.61423728 | T165: 34.19111177 | U165: 37.13602501 | V165: 66.35359004
A166: 161 | N166: 760 | O166: 0 | Q166: 31.23982837 | R166: 33.4327311 | S166: 65.61423728 | T166: 34.19111177 | U166: 37.13602501 | V166: 66.35359004
A167: 162 | N167: 760 | O167: 0 | Q167: 31.23982837 | R167: 33.4327311 | S167: 65.61423728 | T167: 34.19111177 | U167: 37.13602501 | V167: 66.35359004
A168: 163 | N168: 760 | O168: 0 | Q168: 31.23982837 | R168: 33.4327311 | S168: 65.61423728 | T168: 34.19111177 | U168: 37.13602501 | V168: 66.35359004
A169: 164 | N169: 760 | O169: 0 | Q169: 31.23982837 | R169: 33.4327311 | S169: 65.61423728 | T169: 34.19111177 | U169: 37.13602501 | V169: 66.35359004
A170: 165 | N170: 760 | O170: 0 | Q170: 31.23982837 | R170: 33.4327311 | S170: 65.61423728 | T170: 34.19111177 | U170: 37.13602501 | V170: 66.35359004
A171: 166 | N171: 760 | O171: 0 | Q171: 31.23982837 | R171: 33.4327311 | S171: 65.61423728 | T171: 34.19111177 | U171: 37.13602501 | V171: 66.35359004
A172: 167 | N172: 760 | O172: 0 | Q172: 31.23982837 | R172: 33.4327311 | S172: 65.61423728 | T172: 34.19111177 | U172: 37.13602501 | V172: 66.35359004
A173: 168 | N173: 760 | O173: 0 | Q173: 31.23982837 | R173: 33.4327311 | S173: 65.61423728 | T173: 34.19111177 | U173: 37.13602501 | V173: 66.35359004
A174: 169 | N174: 760 | O174: 0 | Q174: 31.23982837 | R174: 33.4327311 | S174: 65.61423728 | T174: 34.19111177 | U174: 37.13602501 | V174: 66.35359004
A175: 170 | N175: 760 | O175: 0 | Q175: 31.23982837 | R175: 33.4327311 | S175: 65.61423728 | T175: 34.19111177 | U175: 37.13602501 | V175: 66.35359004
A176: 171 | N176: 760 | O176: 0 | Q176: 31.23982837 | R176: 33.4327311 | S176: 65.61423728 | T176: 34.19111177 | U176: 37.13602501 | V176: 66.35359004
A177: 172 | N177: 760 | O177: 0 | Q177: 31.23982837 | R177: 33.4327311 | S177: 65.61423728 | T177: 34.19111177 | U177: 37.13602501 | V177: 66.35359004
A178: 173 | N178: 760 | O178: 0 | Q178: 31.23982837 | R178: 33.4327311 | S178: 65.61423728 | T178: 34.19111177 | U178: 37.13602501 | V178: 66.35359004
A179: 174 | N179: 760 | O179: 0 | Q179: 31.23982837 | R179: 33.4327311 | S179: 65.61423728 | T179: 34.19111177 | U179: 37.13602501 | V179: 66.35359004
A180: 175 | N180: 760 | O180: 0 | Q180: 31.23982837 | R180: 33.4327311 | S180: 65.61423728 | T180: 34.19111177 | U180: 37.13602501 | V180: 66.35359004
A181: 176 | N181: 760 | O181: 0 | Q181: 31.23982837 | R181: 33.4327311 | S181: 65.61423728 | T181: 34.19111177 | U181: 37.13602501 | V181: 66.35359004
A182: 177 | N182: 760 | O182: 0 | Q182: 31.23982837 | R182: 33.4327311 | S182: 65.61423728 | T182: 34.19111177 | U182: 37.13602501 | V182: 66.35359004
A183: 178 | N183: 760 | O183: 0 | Q183: 31.23982837 | R183: 33.4327311 | S183: 65.61423728 | T183: 34.19111177 | U183: 37.13602501 | V183: 66.35359004
A184: 179 | N184: 760 | O184: 0 | Q184: 31.23982837 | R184: 33.4327311 | S184: 65.61423728 | T184: 34.19111177 | U184: 37.13602501 | V184: 66.35359004
A185: 180 | N185: 760 | O185: 0 | Q185: 31.23982837 | R185: 33.4327311 | S185: 65.61423728 | T185: 34.19111177 | U185: 37.13602501 | V185: 66.35359004
A186: 181 | N186: 760 | O186: 0 | Q186: 31.23982837 | R186: 33.4327311 | S186: 65.61423728 | T186: 34.19111177 | U186: 37.13602501 | V186: 66.35359004
A187: 182 | N187: 760 | O187: 0 | Q187: 31.23982837 | R187: 33.4327311 | S187: 65.61423728 | T187: 34.19111177 | U187: 37.13602501 | V187: 66.35359004
A188: 183 | N188: 760 | O188: 0 | Q188: 31.23982837 | R188: 33.4327311 | S188: 65.61423728 | T188: 34.19111177 | U188: 37.13602501 | V188: 66.35359004
A189: 184 | N189: 760 | O189: 0 | Q189: 31.23982837 | R189: 33.4327311 | S189: 65.61423728 | T189: 34.19111177 | U189: 37.13602501 | V189: 66.35359004
A190: 185 | N190: 760 | O190: 0 | Q190: 31.23982837 | R190: 33.4327311 | S190: 65.61423728 | T190: 34.19111177 | U190: 37.13602501 | V190: 66.35359004
A191: 186 | N191: 760 | O191: 0 | Q191: 31.23982837 | R191: 33.4327311 | S191: 65.61423728 | T191: 34.19111177 | U191: 37.13602501 | V191: 66.35359004
A192: 187 | N192: 760 | O192: 0 | Q192: 31.23982837 | R192: 33.4327311 | S192: 65.61423728 | T192: 34.19111177 | U192: 37.13602501 | V192: 66.35359004
A193: 188 | N193: 760 | O193: 0 | Q193: 31.23982837 | R193: 33.4327311 | S193: 65.61423728 | T193: 34.19111177 | U193: 37.13602501 | V193: 66.35359004
A194: 189 | N194: 760 | O194: 0 | Q194: 31.23982837 | R194: 33.4327311 | S194: 65.61423728 | T194: 34.19111177 | U194: 37.13602501 | V194: 66.35359004
A195: 190 | N195: 760 | O195: 0 | Q195: 31.23982837 | R195: 33.4327311 | S195: 65.61423728 | T195: 34.19111177 | U195: 37.13602501 | V195: 66.35359004
A196: 191 | N196: 760 | O196: 0 | Q196: 31.23982837 | R196: 33.4327311 | S196: 65.61423728 | T196: 34.19111177 | U196: 37.13602501 | V196: 66.35359004
A197: 192 | N197: 760 | O197: 0 | Q197: 31.23982837 | R197: 33.4327311 | S197: 65.61423728 | T197: 34.19111177 | U197: 37.13602501 | V197: 66.35359004
A198: 193 | J198: =IF(OR(ISBLANK($E198),ISBLANK($F198)),"",(EXP((-139.34411+(157570.1/($F198+273.15)-(66423080/($F198+273.15)^2)+(12438000000/($F198+273.15)^3)-(862194900000/($F198+273.15)^4))-($O198*(0.017674-(10.754/($F198+273.15))+(2140.7/($F198+273.15)^2))))))*($N198/760)*((1-((EXP(11.8581-(3840.7/($F198+273.15))-(216961/($F198+273.15)^2)))/($N198/760)))*(1-(0.000975-(0.00001426*$F198)+(0.00000006436*$F198^2))*($N198/760)))/((1-(EXP(11.8581-(3840.7/($F198+273.15))-(216961/($F198+273.15)^2))))*(1-(0.000975-(0.00001426*$F198)+(0.00000006436*$F198^2))))) ->  | N198: 760 | O198: =IF(AND(ISBLANK($G198),ISBLANK($H198)),0,IF(ISBLANK($G198),IF($H198=0,0,(0.008-(0.1692*((($H198*(1+0.0191*($F198-25))/10000)/4.2914)/((1+(($N198/760*1.01325)*(0.000207-(0.0000000637*($N198/760*1.01325))+(0.000000000003989*($N198/760*1.01325)^2))/(1+(0.03426*$F198)+(0.0004464*$F198^2)+(0.4215-0.003107*$F198)*((($H198*(1+0.0191*($F198-25))/10000)/4.2914)))))*(0.6766097+0.0200564*$F198+0.0001104259*$F198^2-0.00000069698*$F198^3+0.0000000010031*$F198^4)))^0.5)+(25.3851*((($H198*(1+0.0191*($F198-25))/10000)/4.2914)/((1+(($N198/760*1.01325)*(0.000207-(0.0000000637*($N198/760*1.01325))+(0.000000000003989*($N198/760*1.01325)^2))/(1+(0.03426*$F198)+(0.0004464*$F198^2)+(0.4215-0.003107*$F198)*((($H198*(1+0.0191*($F198-25))/10000)/4.2914)))))*(0.6766097+0.0200564*$F198+0.0001104259*$F198^2-0.00000069698*$F198^3+0.0000000010031*$F198^4))))+(14.0941*((($H198*(1+0.0191*($F198-25))/10000)/4.2914)/((1+(($N198/760*1.01325)*(0.000207-(0.0000000637*($N198/760*1.01325))+(0.000000000003989*($N198/760*1.01325)^2))/(1+(0.03426*$F198)+(0.0004464*$F198^2)+(0.4215-0.003107*$F198)*((($H198*(1+0.0191*($F198-25))/10000)/4.2914)))))*(0.6766097+0.0200564*$F198+0.0001104259*$F198^2-0.00000069698*$F198^3+0.0000000010031*$F198^4)))^1.5)-(7.0261*((($H198*(1+0.0191*($F198-25))/10000)/4.2914)/((1+(($N198/760*1.01325)*(0.000207-(0.0000000637*($N198/760*1.01325))+(0.000000000003989*($N198/760*1.01325)^2))/(1+(0.03426*$F198)+(0.0004464*$F198^2)+(0.4215-0.003107*$F198)*((($H198*(1+0.0191*($F198-25))/10000)/4.2914)))))*(0.6766097+0.0200564*$F198+0.0001104259*$F198^2-0.00000069698*$F198^3+0.0000000010031*$F198^4)))^2)+(2.7081*((($H198*(1+0.0191*($F198-25))/10000)/4.2914)/((1+(($N198/760*1.01325)*(0.000207-(0.0000000637*($N198/760*1.01325))+(0.000000000003989*($N198/760*1.01325)^2))/(1+(0.03426*$F198)+(0.0004464*$F198^2)+(0.4215-0.003107*$F198)*((($H198*(1+0.0191*($F198-25))/10000)/4.2914)))))*(0.6766097+0.0200564*$F198+0.0001104259*$F198^2-0.00000069698*$F198^3+0.0000000010031*$F198^4)))^2.5)+(($F198-15)/(1+0.0162*($F198-15))*(0.0005-0.0056*((($H198*(1+0.0191*($F198-25))/10000)/4.2914)/((1+(($N198/760*1.01325)*(0.000207-(0.0000000637*($N198/760*1.01325))+(0.000000000003989*($N198/760*1.01325)^2))/(1+(0.03426*$F198)+(0.0004464*$F198^2)+(0.4215-0.003107*$F198)*((($H198*(1+0.0191*($F198-25))/10000)/4.2914)))))*(0.6766097+0.0200564*$F198+0.0001104259*$F198^2-0.00000069698*$F198^3+0.0000000010031*$F198^4)))^0.5-0.0066*((($H198*(1+0.0191*($F198-25))/10000)/4.2914)/((1+(($N198/760*1.01325)*(0.000207-(0.0000000637*($N198/760*1.01325))+(0.000000000003989*($N198/760*1.01325)^2))/(1+(0.03426*$F198)+(0.0004464*$F198^2)+(0.4215-0.003107*$F198)*((($H198*(1+0.0191*($F198-25))/10000)/4.2914)))))*(0.6766097+0.0200564*$F198+0.0001104259*$F198^2-0.00000069698*$F198^3+0.0000000010031*$F198^4)))-0.0375*((($H198*(1+0.0191*($F198-25))/10000)/4.2914)/((1+(($N198/760*1.01325)*(0.000207-(0.0000000637*($N198/760*1.01325))+(0.000000000003989*($N198/760*1.01325)^2))/(1+(0.03426*$F198)+(0.0004464*$F198^2)+(0.4215-0.003107*$F198)*((($H198*(1+0.0191*($F198-25))/10000)/4.2914)))))*(0.6766097+0.0200564*$F198+0.0001104259*$F198^2-0.00000069698*$F198^3+0.0000000010031*$F198^4)))^1.5+0.0636*((($H198*(1+0.0191*($F198-25))/10000)/4.2914)/((1+(($N198/760*1.01325)*(0.000207-(0.0000000637*($N198/760*1.01325))+(0.000000000003989*($N198/760*1.01325)^2))/(1+(0.03426*$F198)+(0.0004464*$F198^2)+(0.4215-0.003107*$F198)*((($H198*(1+0.0191*($F198-25))/10000)/4.2914)))))*(0.6766097+0.0200564*$F198+0.0001104259*$F198^2-0.00000069698*$F198^3+0.0000000010031*$F198^4)))^2-0.0144*((($H198*(1+0.0191*($F198-25))/10000)/4.2914)/((1+(($N198/760*1.01325)*(0.000207-(0.0000000637*($N198/760*1.01325))+(0.000000000003989*($N198/760*1.01325)^2))/(1+(0.03426*$F198)+(0.0004464*$F198^2)+(0.4215-0.003107*$F198)*((($H198*(1+0.0191*($F198-25))/10000)/4.2914)))))*(0.6766097+0.0200564*$F198+0.0001104259*$F198^2-0.00000069698*$F198^3+0.0000000010031*$F198^4)))^2.5)))-(0.008/(1+(1.5*400*((($H198*(1+0.0191*($F198-25))/10000)/4.2914)/((1+(($N198/760*1.01325)*(0.000207-(0.0000000637*($N198/760*1.01325))+(0.000000000003989*($N198/760*1.01325)^2))/(1+(0.03426*$F198)+(0.0004464*$F198^2)+(0.4215-0.003107*$F198)*((($H198*(1+0.0191*($F198-25))/10000)/4.2914)))))*(0.6766097+0.0200564*$F198+0.0001104259*$F198^2-0.00000069698*$F198^3+0.0000000010031*$F198^4))))+(400*((($H198*(1+0.0191*($F198-25))/10000)/4.2914)/((1+(($N198/760*1.01325)*(0.000207-(0.0000000637*($N198/760*1.01325))+(0.000000000003989*($N198/760*1.01325)^2))/(1+(0.03426*$F198)+(0.0004464*$F198^2)+(0.4215-0.003107*$F198)*((($H198*(1+0.0191*($F198-25))/10000)/4.2914)))))*(0.6766097+0.0200564*$F198+0.0001104259*$F198^2-0.00000069698*$F198^3+0.0000000010031*$F198^4))))^2))-((0.0005*($F198-15)/(1+0.0162*($F198-15)))/(1+(100*((($H198*(1+0.0191*($F198-25))/10000)/4.2914)/((1+(($N198/760*1.01325)*(0.000207-(0.0000000637*($N198/760*1.01325))+(0.000000000003989*($N198/760*1.01325)^2))/(1+(0.03426*$F198)+(0.0004464*$F198^2)+(0.4215-0.003107*$F198)*((($H198*(1+0.0191*($F198-25))/10000)/4.2914)))))*(0.6766097+0.0200564*$F198+0.0001104259*$F198^2-0.00000069698*$F198^3+0.0000000010031*$F198^4))))^0.5+(100*((($H198*(1+0.0191*($F198-25))/10000)/4.2914)/((1+(($N198/760*1.01325)*(0.000207-(0.0000000637*($N198/760*1.01325))+(0.000000000003989*($N198/760*1.01325)^2))/(1+(0.03426*$F198)+(0.0004464*$F198^2)+(0.4215-0.003107*$F198)*((($H198*(1+0.0191*($F198-25))/10000)/4.2914)))))*(0.6766097+0.0200564*$F198+0.0001104259*$F198^2-0.00000069698*$F198^3+0.0000000010031*$F198^4))))^1.5))),$G198)) -> 0 | Q198: =1.18443700433286E-13*(HOUR($D198)*60+MINUTE($D198))^5 - 4.14323598958596E-10*(HOUR($D198)*60+MINUTE($D198))^4 + 4.77287727122539E-07*(HOUR($D198)*60+MINUTE($D198))^3 - 0.000196917585728373*(HOUR($D198)*60+MINUTE($D198))^2 + 0.0231405627601475*(HOUR($D198)*60+MINUTE($D198)) + 31.2398283659495 -> 31.23982837 | R198: =1.98879987167155E-13*(HOUR($D198)*60+MINUTE($D198))^5 - 6.89410992615642E-10*(HOUR($D198)*60+MINUTE($D198))^4 + 7.83730333422071E-07*(HOUR($D198)*60+MINUTE($D198))^3 - 0.00031597890334556*(HOUR($D198)*60+MINUTE($D198))^2 + 0.0355135105918976*(HOUR($D198)*60+MINUTE($D198)) + 33.4327310978006 -> 33.4327311 | S198: =9.08511511657608E-14*(HOUR($D198)*60+MINUTE($D198))^5 - 2.99407211249053E-10*(HOUR($D198)*60+MINUTE($D198))^4 + 3.1560253348998E-07*(HOUR($D198)*60+MINUTE($D198))^3 - 0.000108510891323021*(HOUR($D198)*60+MINUTE($D198))^2 + 0.00628484730145829*(HOUR($D198)*60+MINUTE($D198)) + 65.6142372750764 -> 65.61423728 | T198: =1.45776613020539E-13*(HOUR($D198)*60+MINUTE($D198))^5-5.56072270585461E-10*(HOUR($D198)*60+MINUTE($D198))^4+7.06833400255548E-07*(HOUR($D198)*60+MINUTE($D198))^3-0.000318788465226261*(HOUR($D198)*60+MINUTE($D198))^2+0.0281711711660364*(HOUR($D198)*60+MINUTE($D198))+34.1911117699055 -> 34.19111177 | U198: =1.37090283182826E-13*(HOUR($D198)*60+MINUTE($D198))^5 - 5.04960255463897E-10*(HOUR($D198)*60+MINUTE($D198))^4 + 6.13524315934422E-07*(HOUR($D198)*60+MINUTE($D198))^3 - 0.00025817433468811*(HOUR($D198)*60+MINUTE($D198))^2 + 0.0195966892410979*(HOUR($D198)*60+MINUTE($D198)) + 37.1360250050275 -> 37.13602501 | V198: =7.11895278892582E-14*(HOUR($D198)*60+MINUTE($D198))^5-2.64195273421019E-10*(HOUR($D198)*60+MINUTE($D198))^4 + 3.22473039456213E-07*(HOUR($D198)*60+MINUTE($D198))^3 - 0.00013606873481109*(HOUR($D198)*60+MINUTE($D198))^2 + 0.0107100719720847*(HOUR($D198)*60+MINUTE($D198))+66.3535900428978 -> 66.35359004
A199: 194 | N199: 760 | O199: 0 | Q199: 31.23982837 | R199: 33.4327311 | S199: 65.61423728 | T199: 34.19111177 | U199: 37.13602501 | V199: 66.35359004
A200: 195 | N200: 760 | O200: 0 | Q200: 31.23982837 | R200: 33.4327311 | S200: 65.61423728 | T200: 34.19111177 | U200: 37.13602501 | V200: 66.35359004
... 1306 more rows
